{"text_format":"1","workbook":"xlsx","n_sheets":7,"sheets":["入力シート","請求書","記入方法　【入力シート（自社の内訳書_添付あり】","記入方法　【請求書（自社の内訳書_添付あり】","記入方法　【入力シート（自社の内訳書_添付なし】","記入方法　【請求書（自社の内訳書_添付なし】","設定"],"not_rendered":{"charts":0,"images":0,"macros":1,"external_links":0,"defined_names":3,"comments":0,"pivot_tables":0},"unopened":[],"bounds":{"document_bytes":16777216,"sheet_cells":100000,"rows_first":2000,"rows_last":500,"rows_between":2000,"halvings":0,"cell_chars":16384,"cell_head_chars":4096},"cells_cut":0,"cells_raw":0,"read":"whole","date_system":"1900"}

{"sheet":"入力シート","index":0,"n_rows":96,"n_cols":23,"rows_kept":96,"cut":false,"hidden":false,"merged":[[6,0,7,0],[6,1,7,3],[6,4,6,12],[7,4,7,12],[2,0,2,13],[3,1,3,3],[3,4,3,6],[4,5,4,9],[5,1,5,3],[11,1,11,3],[11,4,11,5],[11,10,11,11],[11,6,11,9],[8,1,8,3],[8,4,8,12],[9,4,9,6],[10,1,10,3],[10,4,10,6],[20,1,20,3],[20,4,20,13],[12,4,12,5],[12,10,12,11],[13,4,13,5],[13,7,13,8],[13,9,13,11],[12,6,12,9],[14,4,14,7],[14,8,14,13],[18,0,18,13],[19,1,19,3],[19,4,19,6],[16,4,16,5],[28,4,28,6],[28,7,28,9],[29,4,29,9],[28,1,29,3],[24,2,24,3],[24,4,24,6],[24,7,24,9],[25,4,25,6],[26,4,26,6],[27,4,27,6],[25,7,25,9],[26,7,26,9],[27,7,27,9]]}
["請求書入力シート【納入業者／一般請求】"]
[]
["取引先情報"]
["①","取引先コード"]
["②","インボイス登録番号",null,null,"T"]
["③","郵便番号",null,null,null,"-"]
["④","住所"]
[]
["⑤","社名"]
["⑥","電話番号"]
["⑦","FAX"]
["⑧","振込先情報",null,null,"金融機関名"]
[null,null,null,null,"本店・支店"]
[null,null,null,null,"預金区分",null,null,"口座番号"]
[null,null,null,null,"口座名義（カタカナ入力）"]
["⑨","請求日付",null,null,"20",null,"年",null,"月",null,"日"]
["⑩","消費税の端数処理",null,null,"切り捨て",null,null,{"$f":"IF(E17=\"\",\"入力必須です\",\"\")","v":""}]
[]
["当社請求先情報"]
["⑪","工事コード",null,null,null,null,null,"-"]
["⑫","工事名称又は部課名"]
[]
[null,null,null,null,"自社の内訳書を添付する場合"]
[]
[null,null,false,null,"税率別計",null,null,"消費税額"]
[null,"　　①　10% 対象　　"]
[null,"　　②　  8% 対象 　※"]
[null,"  　③　非課税対象　◎",null,null,null,null,null,0]
[null,"合　計 （①+②+③）",null,null,{"$f":"SUM(E26:G28)","v":0},null,null,{"$f":"SUM(H26:J28)","v":0}]
[null,null,null,null,{"$f":"SUM(E29:J29)","v":0}]
[]
[]
[]
[]
[]
[]
[]
[]
[]
[]
[]
[]
[]
[]
[]
[]
[]
[]
[]
[]
[]
[]
[]
[]
[]
[]
[]
[]
[]
[]
[]
[]
[]
[]
[]
[]
[]
[]
[]
[]
[]
[]
[]
[]
[]
[]
[]
[]
[]
[]
[]
[]
[]
[]
[]
[]
[]
[]
[]
[]
[]
[]
[]
[]
[]
[null,null,null,null,null,null,null,null,null,null,null,null,null,null,null,null,null,null,null,null,null,null,{"$f":"IF(SUM(W56:AB95)>0,SUM(W56:AB95),\"\")","v":""}]

{"sheet":"請求書","index":1,"n_rows":530,"n_cols":33,"rows_kept":530,"cut":false,"hidden":false,"merged":[[529,0,529,1],[529,2,529,4],[529,5,529,13],[529,14,529,15],[529,16,529,17],[529,18,529,21],[529,24,529,29],[529,22,529,23],[529,30,529,33],[528,0,528,1],[528,2,528,4],[528,5,528,13],[528,14,528,15],[528,16,528,17],[528,18,528,21],[528,24,528,29],[528,22,528,23],[528,30,528,33],[527,0,527,1],[527,2,527,4],[527,5,527,13],[527,14,527,15],[527,16,527,17],[527,18,527,21],[527,24,527,29],[527,22,527,23],[527,30,527,33],[526,0,526,1],[526,2,526,4],[526,5,526,13],[526,14,526,15],[526,16,526,17],[526,18,526,21],[526,24,526,29],[526,22,526,23],[526,30,526,33],[525,0,525,1],[525,2,525,4],[525,5,525,13],[525,14,525,15],[525,16,525,17],[525,18,525,21],[525,24,525,29],[525,22,525,23],[525,30,525,33],[524,0,524,1],[524,2,524,4],[524,5,524,13],[524,14,524,15],[524,16,524,17],[524,18,524,21],[524,24,524,29],[524,22,524,23],[524,30,524,33],[523,0,523,1],[523,2,523,4],[523,5,523,13],[523,14,523,15],[523,16,523,17],[523,18,523,21],[523,24,523,29],[523,22,523,23],[523,30,523,33],[522,0,522,1],[522,2,522,4],[522,5,522,13],[522,14,522,15],[522,16,522,17],[522,18,522,21],[522,24,522,29],[522,22,522,23],[522,30,522,33],[521,0,521,1],[521,2,521,4],[521,5,521,13],[521,14,521,15],[521,16,521,17],[521,18,521,21],[521,24,521,29],[521,22,521,23],[521,30,521,33],[520,0,520,1],[520,2,520,4],[520,5,520,13],[520,14,520,15],[520,16,520,17],[520,18,520,21],[520,24,520,29],[520,22,520,23],[520,30,520,33],[519,0,519,1],[519,2,519,4],[519,5,519,13],[519,14,519,15],[519,16,519,17],[519,18,519,21],[519,24,519,29],[519,22,519,23],[519,30,519,33],[518,0,518,1],[518,2,518,4],[518,5,518,13],[518,14,518,15],[518,16,518,17],[518,18,518,21],[518,24,518,29],[518,22,518,23],[518,30,518,33],[517,0,517,1],[517,2,517,4],[517,5,517,13],[517,14,517,15],[517,16,517,17],[517,18,517,21],[517,24,517,29],[517,22,517,23],[517,30,517,33],[516,0,516,1],[516,2,516,4],[516,5,516,13],[516,14,516,15],[516,16,516,17],[516,18,516,21],[516,24,516,29],[516,22,516,23],[516,30,516,33],[515,0,515,1],[515,2,515,4],[515,5,515,13],[515,14,515,15],[515,16,515,17],[515,18,515,21],[515,24,515,29],[515,22,515,23],[515,30,515,33],[514,0,514,1],[514,2,514,4],[514,5,514,13],[514,14,514,15],[514,16,514,17],[514,18,514,21],[514,24,514,29],[514,22,514,23],[514,30,514,33],[513,0,513,1],[513,2,513,4],[513,5,513,13],[513,14,513,15],[513,16,513,17],[513,18,513,21],[513,24,513,29],[513,22,513,23],[513,30,513,33],[512,0,512,1],[512,2,512,4],[512,5,512,13],[512,14,512,15],[512,16,512,17],[512,18,512,21],[512,24,512,29],[512,22,512,23],[512,30,512,33],[511,0,511,1],[511,2,511,4],[511,5,511,13],[511,14,511,15],[511,16,511,17],[511,18,511,21],[511,24,511,29],[511,22,511,23],[511,30,511,33],[510,0,510,1],[510,2,510,4],[510,5,510,13],[510,14,510,15],[510,16,510,17],[510,18,510,21],[510,24,510,29],[510,22,510,23],[510,30,510,33],[509,0,509,1],[509,2,509,4],[509,5,509,13],[509,14,509,15],[509,16,509,17],[509,18,509,21],[509,24,509,29],[509,22,509,23],[509,30,509,33],[508,0,508,1],[508,2,508,4],[508,5,508,13],[508,14,508,15],[508,16,508,17],[508,18,508,21],[508,24,508,29],[508,22,508,23],[508,30,508,33],[507,0,507,1],[507,2,507,4],[507,5,507,13],[507,14,507,15],[507,16,507,17],[507,18,507,21],[507,24,507,29],[507,22,507,23],[507,30,507,33],[506,0,506,1],[506,2,506,4],[506,5,506,13],[506,14,506,15],[506,16,506,17],[506,18,506,21],[506,24,506,29],[506,22,506,23],[506,30,506,33],[505,0,505,1],[505,2,505,4],[505,5,505,13],[505,14,505,15],[505,16,505,17],[505,18,505,21],[505,24,505,29],[505,22,505,23],[505,30,505,33],[504,0,504,1],[504,2,504,4],[504,5,504,13],[504,14,504,15],[504,16,504,17],[504,18,504,21],[504,24,504,29],[504,22,504,23],[504,30,504,33],[503,0,503,1],[503,2,503,4],[503,5,503,13],[503,14,503,15],[503,16,503,17],[503,18,503,21],[503,24,503,29],[503,22,503,23],[503,30,503,33],[502,0,502,1],[502,2,502,4],[502,5,502,13],[502,14,502,15],[502,16,502,17],[502,18,502,21],[502,24,502,29],[502,22,502,23],[502,30,502,33],[501,0,501,1],[501,2,501,4],[501,5,501,13],[501,14,501,15],[501,16,501,17],[501,18,501,21],[501,24,501,29],[501,22,501,23],[501,30,501,33],[500,0,500,1],[500,2,500,4],[500,5,500,13],[500,14,500,15],[500,16,500,17],[500,18,500,21],[500,24,500,29],[500,22,500,23],[500,30,500,33],[499,0,499,1],[499,2,499,4],[499,5,499,13],[499,14,499,15],[499,16,499,17],[499,18,499,21],[499,24,499,29],[499,22,499,23],[499,30,499,33],[498,0,498,1],[498,2,498,4],[498,5,498,13],[498,14,498,15],[498,16,498,17],[498,18,498,21],[498,24,498,29],[498,22,498,23],[498,30,498,33],[497,0,497,1],[497,2,497,4],[497,5,497,13],[497,14,497,15],[497,16,497,17],[497,18,497,21],[497,24,497,29],[497,22,497,23],[497,30,497,33],[496,0,496,1],[496,2,496,4],[496,5,496,13],[496,14,496,15],[496,16,496,17],[496,18,496,21],[496,24,496,29],[496,22,496,23],[496,30,496,33],[495,0,495,1],[495,2,495,4],[495,5,495,13],[495,14,495,15],[495,16,495,17],[495,18,495,21],[495,24,495,29],[495,22,495,23],[495,30,495,33],[494,0,494,1],[494,2,494,4],[494,5,494,13],[494,14,494,15],[494,16,494,17],[494,18,494,21],[494,24,494,29],[494,22,494,23],[494,30,494,33],[493,0,493,1],[493,2,493,4],[493,5,493,13],[493,14,493,15],[493,16,493,17],[493,18,493,21],[493,24,493,29],[493,22,493,23],[493,30,493,33],[492,0,492,1],[492,2,492,4],[492,5,492,13],[492,14,492,15],[492,16,492,17],[492,18,492,21],[492,24,492,29],[492,22,492,23],[492,30,492,33],[491,0,491,1],[491,2,491,4],[491,5,491,13],[491,14,491,15],[491,16,491,17],[491,18,491,21],[491,24,491,29],[491,22,491,23],[491,30,491,33],[490,0,490,1],[490,2,490,4],[490,5,490,13],[490,14,490,15],[490,16,490,17],[490,18,490,21],[490,24,490,29],[490,22,490,23],[490,30,490,33],[489,0,489,1],[489,2,489,4],[489,5,489,13],[489,14,489,15],[489,16,489,17],[489,18,489,21],[489,24,489,29],[489,22,489,23],[489,30,489,33],[488,0,488,1],[488,2,488,4],[488,5,488,13],[488,14,488,15],[488,16,488,17],[488,18,488,21],[488,24,488,29],[488,22,488,23],[488,30,488,33],[487,0,487,1],[487,2,487,4],[487,5,487,13],[487,14,487,15],[487,16,487,17],[487,18,487,21],[487,24,487,29],[487,22,487,23],[487,30,487,33],[486,0,486,1],[486,2,486,4],[486,5,486,13],[486,14,486,15],[486,16,486,17],[486,18,486,21],[486,24,486,29],[486,22,486,23],[486,30,486,33],[485,0,485,1],[485,2,485,4],[485,5,485,13],[485,14,485,15],[485,16,485,17],[485,18,485,21],[485,24,485,29],[485,22,485,23],[485,30,485,33],[484,0,484,1],[484,2,484,4],[484,5,484,13],[484,14,484,15],[484,16,484,17],[484,18,484,21],[484,24,484,29],[484,22,484,23],[484,30,484,33],[483,0,483,1],[483,2,483,4],[483,5,483,13],[483,14,483,15],[483,16,483,17],[483,18,483,21],[483,24,483,29],[483,22,483,23],[483,30,483,33],[482,0,482,1],[482,2,482,4],[482,5,482,13],[482,14,482,15],[482,16,482,17],[482,18,482,21],[482,24,482,29],[482,22,482,23],[482,30,482,33],[481,0,481,1],[481,2,481,4],[481,5,481,13],[481,14,481,15],[481,16,481,17],[481,18,481,21],[481,24,481,29],[481,22,481,23],[481,30,481,33],[480,0,480,1],[480,2,480,4],[480,5,480,13],[480,14,480,15],[480,16,480,17],[480,18,480,21],[480,24,480,29],[480,22,480,23],[480,30,480,33],[479,0,479,1],[479,2,479,4],[479,5,479,13],[479,14,479,15],[479,16,479,17],[479,18,479,21],[479,24,479,29],[479,22,479,23],[479,30,479,33],[478,0,478,1],[478,2,478,4],[478,5,478,13],[478,14,478,15],[478,16,478,17],[478,18,478,21],[478,24,478,29],[478,22,478,23],[478,30,478,33],[477,0,477,1],[477,2,477,4],[477,5,477,13],[477,14,477,15],[477,16,477,17],[477,18,477,21],[477,24,477,29],[477,22,477,23],[477,30,477,33],[476,0,476,1],[476,2,476,4],[476,5,476,13],[476,14,476,15],[476,16,476,17],[476,18,476,21],[476,24,476,29],[476,22,476,23],[476,30,476,33],[475,0,475,1],[475,2,475,4],[475,5,475,13],[475,14,475,15],[475,16,475,17],[475,18,475,21],[475,24,475,29],[475,22,475,23],[475,30,475,33],[474,0,474,1],[474,2,474,4],[474,5,474,13],[474,14,474,15],[474,16,474,17],[474,18,474,21],[474,24,474,29],[474,22,474,23],[474,30,474,33],[473,0,473,1],[473,2,473,4],[473,5,473,13],[473,14,473,15],[473,16,473,17],[473,18,473,21],[473,24,473,29],[473,22,473,23],[473,30,473,33],[472,0,472,1],[472,2,472,4],[472,5,472,13],[472,14,472,15],[472,16,472,17],[472,18,472,21],[472,24,472,29],[472,22,472,23],[472,30,472,33],[471,0,471,1],[471,2,471,4],[471,5,471,13],[471,14,471,15],[471,16,471,17],[471,18,471,21],[471,24,471,29],[471,22,471,23],[471,30,471,33],[470,0,470,1],[470,2,470,4],[470,5,470,13],[470,14,470,15],[470,16,470,17],[470,18,470,21],[470,24,470,29],[470,22,470,23],[470,30,470,33],[469,0,469,1],[469,2,469,4],[469,5,469,13],[469,14,469,15],[469,16,469,17],[469,18,469,21],[469,24,469,29],[469,22,469,23],[469,30,469,33],[468,0,468,1],[468,2,468,4],[468,5,468,13],[468,14,468,15],[468,16,468,17],[468,18,468,21],[468,24,468,29],[468,22,468,23],[468,30,468,33],[467,0,467,1],[467,2,467,4],[467,5,467,13],[467,14,467,15],[467,16,467,17],[467,18,467,21],[467,24,467,29],[467,22,467,23],[467,30,467,33],[466,0,466,1],[466,2,466,4],[466,5,466,13],[466,14,466,15],[466,16,466,17],[466,18,466,21],[466,24,466,29],[466,22,466,23],[466,30,466,33],[465,0,465,1],[465,2,465,4],[465,5,465,13],[465,14,465,15],[465,16,465,17],[465,18,465,21],[465,24,465,29],[465,22,465,23],[465,30,465,33],[464,0,464,1],[464,2,464,4],[464,5,464,13],[464,14,464,15],[464,16,464,17],[464,18,464,21],[464,24,464,29],[464,22,464,23],[464,30,464,33],[463,0,463,1],[463,2,463,4],[463,5,463,13],[463,14,463,15],[463,16,463,17],[463,18,463,21],[463,24,463,29],[463,22,463,23],[463,30,463,33],[462,0,462,1],[462,2,462,4],[462,5,462,13],[462,14,462,15],[462,16,462,17],[462,18,462,21],[462,24,462,29],[462,22,462,23],[462,30,462,33],[461,0,461,1],[461,2,461,4],[461,5,461,13],[461,14,461,15],[461,16,461,17],[461,18,461,21],[461,24,461,29],[461,22,461,23],[461,30,461,33],[460,0,460,1],[460,2,460,4],[460,5,460,13],[460,14,460,15],[460,16,460,17],[460,18,460,21],[460,24,460,29],[460,22,460,23],[460,30,460,33],[459,0,459,1],[459,2,459,4],[459,5,459,13],[459,14,459,15],[459,16,459,17],[459,18,459,21],[459,24,459,29],[459,22,459,23],[459,30,459,33],[458,0,458,1],[458,2,458,4],[458,5,458,13],[458,14,458,15],[458,16,458,17],[458,18,458,21],[458,24,458,29],[458,22,458,23],[458,30,458,33],[457,0,457,1],[457,2,457,4],[457,5,457,13],[457,14,457,15],[457,16,457,17],[457,18,457,21],[457,24,457,29],[457,22,457,23],[457,30,457,33],[456,0,456,1],[456,2,456,4],[456,5,456,13],[456,14,456,15],[456,16,456,17],[456,18,456,21],[456,24,456,29],[456,22,456,23],[456,30,456,33],[455,0,455,1],[455,2,455,4],[455,5,455,13],[455,14,455,15],[455,16,455,17],[455,18,455,21],[455,24,455,29],[455,22,455,23],[455,30,455,33],[454,0,454,1],[454,2,454,4],[454,5,454,13],[454,14,454,15],[454,16,454,17],[454,18,454,21],[454,24,454,29],[454,22,454,23],[454,30,454,33],[453,0,453,1],[453,2,453,4],[453,5,453,13],[453,14,453,15],[453,16,453,17],[453,18,453,21],[453,24,453,29],[453,22,453,23],[453,30,453,33],[452,0,452,1],[452,2,452,4],[452,5,452,13],[452,14,452,15],[452,16,452,17],[452,18,452,21],[452,24,452,29],[452,22,452,23],[452,30,452,33],[451,0,451,1],[451,2,451,4],[451,5,451,13],[451,14,451,15],[451,16,451,17],[451,18,451,21],[451,24,451,29],[451,22,451,23],[451,30,451,33],[450,0,450,1],[450,2,450,4],[450,5,450,13],[450,14,450,15],[450,16,450,17],[450,18,450,21],[450,24,450,29],[450,22,450,23],[450,30,450,33],[449,0,449,1],[449,2,449,4],[449,5,449,13],[449,14,449,15],[449,16,449,17],[449,18,449,21],[449,24,449,29],[449,22,449,23],[449,30,449,33],[448,0,448,1],[448,2,448,4],[448,5,448,13],[448,14,448,15],[448,16,448,17],[448,18,448,21],[448,24,448,29],[448,22,448,23],[448,30,448,33],[447,0,447,1],[447,2,447,4],[447,5,447,13],[447,14,447,15],[447,16,447,17],[447,18,447,21],[447,24,447,29],[447,22,447,23],[447,30,447,33],[446,0,446,1],[446,2,446,4],[446,5,446,13],[446,14,446,15],[446,16,446,17],[446,18,446,21],[446,24,446,29],[446,22,446,23],[446,30,446,33],[445,0,445,1],[445,2,445,4],[445,5,445,13],[445,14,445,15],[445,16,445,17],[445,18,445,21],[445,24,445,29],[445,22,445,23],[445,30,445,33],[444,0,444,1],[444,2,444,4],[444,5,444,13],[444,14,444,15],[444,16,444,17],[444,18,444,21],[444,24,444,29],[444,22,444,23],[444,30,444,33],[443,0,443,1],[443,2,443,4],[443,5,443,13],[443,14,443,15],[443,16,443,17],[443,18,443,21],[443,24,443,29],[443,22,443,23],[443,30,443,33],[442,0,442,1],[442,2,442,4],[442,5,442,13],[442,14,442,15],[442,16,442,17],[442,18,442,21],[442,24,442,29],[442,22,442,23],[442,30,442,33],[441,0,441,1],[441,2,441,4],[441,5,441,13],[441,14,441,15],[441,16,441,17],[441,18,441,21],[441,24,441,29],[441,22,441,23],[441,30,441,33],[440,0,440,1],[440,2,440,4],[440,5,440,13],[440,14,440,15],[440,16,440,17],[440,18,440,21],[440,24,440,29],[440,22,440,23],[440,30,440,33],[439,0,439,1],[439,2,439,4],[439,5,439,13],[439,14,439,15],[439,16,439,17],[439,18,439,21],[439,24,439,29],[439,22,439,23],[439,30,439,33],[438,0,438,1],[438,2,438,4],[438,5,438,13],[438,14,438,15],[438,16,438,17],[438,18,438,21],[438,24,438,29],[438,22,438,23],[438,30,438,33],[437,0,437,1],[437,2,437,4],[437,5,437,13],[437,14,437,15],[437,16,437,17],[437,18,437,21],[437,24,437,29],[437,22,437,23],[437,30,437,33],[436,0,436,1],[436,2,436,4],[436,5,436,13],[436,14,436,15],[436,16,436,17],[436,18,436,21],[436,24,436,29],[436,22,436,23],[436,30,436,33],[435,0,435,1],[435,2,435,4],[435,5,435,13],[435,14,435,15],[435,16,435,17],[435,18,435,21],[435,24,435,29],[435,22,435,23],[435,30,435,33],[434,0,434,1],[434,2,434,4],[434,5,434,13],[434,14,434,15],[434,16,434,17],[434,18,434,21],[434,24,434,29],[434,22,434,23],[434,30,434,33],[433,0,433,1],[433,2,433,4],[433,5,433,13],[433,14,433,15],[433,16,433,17],[433,18,433,21],[433,24,433,29],[433,22,433,23],[433,30,433,33],[432,0,432,1],[432,2,432,4],[432,5,432,13],[432,14,432,15],[432,16,432,17],[432,18,432,21],[432,24,432,29],[432,22,432,23],[432,30,432,33],[431,0,431,1],[431,2,431,4],[431,5,431,13],[431,14,431,15],[431,16,431,17],[431,18,431,21],[431,24,431,29],[431,22,431,23],[431,30,431,33],[430,0,430,1],[430,2,430,4],[430,5,430,13],[430,14,430,15],[430,16,430,17],[430,18,430,21],[430,24,430,29],[430,22,430,23],[430,30,430,33],[429,0,429,1],[429,2,429,4],[429,5,429,13],[429,14,429,15],[429,16,429,17],[429,18,429,21],[429,24,429,29],[429,22,429,23],[429,30,429,33],[428,0,428,1],[428,2,428,4],[428,5,428,13],[428,14,428,15],[428,16,428,17],[428,18,428,21],[428,24,428,29],[428,22,428,23],[428,30,428,33],[427,0,427,1],[427,2,427,4],[427,5,427,13],[427,14,427,15],[427,16,427,17],[427,18,427,21],[427,24,427,29],[427,22,427,23],[427,30,427,33],[426,0,426,1],[426,2,426,4],[426,5,426,13],[426,14,426,15],[426,16,426,17],[426,18,426,21],[426,24,426,29],[426,22,426,23],[426,30,426,33],[425,0,425,1],[425,2,425,4],[425,5,425,13],[425,14,425,15],[425,16,425,17],[425,18,425,21],[425,24,425,29],[425,22,425,23],[425,30,425,33],[424,0,424,1],[424,2,424,4],[424,5,424,13],[424,14,424,15],[424,16,424,17],[424,18,424,21],[424,24,424,29],[424,22,424,23],[424,30,424,33],[423,0,423,1],[423,2,423,4],[423,5,423,13],[423,14,423,15],[423,16,423,17],[423,18,423,21],[423,24,423,29],[423,22,423,23],[423,30,423,33],[422,0,422,1],[422,2,422,4],[422,5,422,13],[422,14,422,15],[422,16,422,17],[422,18,422,21],[422,24,422,29],[422,22,422,23],[422,30,422,33],[421,0,421,1],[421,2,421,4],[421,5,421,13],[421,14,421,15],[421,16,421,17],[421,18,421,21],[421,24,421,29],[421,22,421,23],[421,30,421,33],[420,0,420,1],[420,2,420,4],[420,5,420,13],[420,14,420,15],[420,16,420,17],[420,18,420,21],[420,24,420,29],[420,22,420,23],[420,30,420,33],[419,0,419,1],[419,2,419,4],[419,5,419,13],[419,14,419,15],[419,16,419,17],[419,18,419,21],[419,24,419,29],[419,22,419,23],[419,30,419,33],[418,0,418,1]],"merged_total":4583,"flags":["merged_cut"]}
["請　求　書　【納入業者／一般請求】"]
[]
["磯部建設株式会社",null,null,null,null,null,null,null,"御中",null,null,null,null,null,null,null,null,null,"請求年月日",null,null,null,20,null,{"$f":"IF(入力シート!F16=0,\"\",入力シート!F16)","v":""},null,"年",{"$f":"IF(入力シート!H16=0,\"\",入力シート!H16)","v":""},null,"月",{"$f":"IF(入力シート!J16=0,\"\",入力シート!J16)","v":""},null,"日"]
[]
[null,null,null,null,null,null,null,null,null,null,null,null,null,null,null,"〒",null,null,{"$f":"IF(入力シート!E6=\"\",\"\",入力シート!E6)","v":""},null,"-",{"$f":"IF(入力シート!G6=\"\",\"\",入力シート!G6)","v":""}]
[null,null,null,null,null,null,null,null,null,null,null,null,null,null,null,"住　所",null,null,{"$f":"IF(入力シート!E7=\"\",\"\",入力シート!E7)","v":""}]
[null,null,null,null,null,null,null,null,null,null,null,null,null,null,null,null,null,null,{"$f":"IF(入力シート!E8=\"\",\"\",入力シート!E8)","v":""}]
[null,null,null,null,null,null,null,null,null,null,null,null,null,null,null,"社　名",null,null,{"$f":"IF(入力シート!E9=\"\",\"\",入力シート!E9)","v":""}]
[]
[null,null,null,null,null,null,null,null,null,null,null,null,null,null,null,"電話番号",null,null,{"$f":"IF(入力シート!E10=\"\",\"\",入力シート!E10)","v":""},null,null,null,null,null,"FAX",null,null,{"$f":"IF(入力シート!E11=\"\",\"\",入力シート!E11)","v":""}]
["インボイス\n登録番号",null,null,null,"T",{"$f":"IF(入力シート!F5=\"\",\"\",入力シート!F5)","v":""}]
[null,null,null,null,null,null,null,null,null,null,null,null,null,null,null,"金融機関",null,null,{"$f":"IF(入力シート!G12=\"\",\"\",入力シート!G12&入力シート!I12)","v":""},null,null,null,null,null,null,"店名",null,null,{"$f":"IF(入力シート!G13=\"\",\"\",入力シート!G13)","v":""}]
[null,null,null,null,null,null,null,null,null,null,null,null,null,null,null,"預金区分",null,null,{"$f":"IF(入力シート!G14=\"\",\"\",入力シート!G14)","v":""},null,null,null,"口座番号",null,null,{"$f":"IF(入力シート!J14=\"\",\"\",入力シート!J14)","v":""}]
["取引先コード",null,null,null,{"$f":"IF(入力シート!E4=\"\",\"\",入力シート!E4)","v":""},null,null,null,null,null,null,null,null,null,null,"口座名義",null,null,{"$f":"IF(入力シート!I15=\"\",\"\",入力シート!I15)","v":""}]
["工事コード",null,null,null,{"$f":"IF(入力シート!E20=\"\",\"\",入力シート!E20)","v":""},null,null,null,null,null,null,"-",{"$f":"IF(入力シート!I20=\"\",\"\",入力シート!I20)","v":""}]
["工事名称又は部課名",null,null,null,null,null,{"$f":"IF(入力シート!E21=\"\",\"\",入力シート!E21)","v":""}]
[]
["下記の通りご請求申し上げます。"]
["請求金額",null,null,null,{"$f":"W26","v":0},null,null,null,null,null,null,null,null,"円",null,null,"（内、消費税額",null,null,null,{"$f":"AC25","v":0},null,null,null,null,"円）"]
[]
[null,null,null,null,null,null,null,null,null,null,null,null,null,null,null,null,null,null,null,null,null,null,"税率別計",null,null,null,null,null,"消費税額"]
[null,"・税率区分について",null,null,null,null,null,null,"空白",null,0.1,null,null,null,null,null,"　①　10% 対象　　",null,null,null,null,null,{"$f":"SUMIF( W31:W530, \"\", Y31:Y530 )","v":0},null,null,null,null,null,{"$f":"IF(I25=\"切り捨て\",ROUNDDOWN(W22*0.1,0),IF(I25=\"切り上げ\",ROUNDUP(W22*0.1,0),ROUND(W22*0.1,0)))","v":0}]
[null,null,null,null,null,null,null,null,"※",null,0.08,null,null,null,null,null,"　②　  8% 対象 　※",null,null,null,null,null,{"$f":"SUMIF( W31:W530, \"※\", Y31:Y530 )","v":0},null,null,null,null,null,{"$f":"IF(I25=\"切り捨て\",ROUNDDOWN(W23*0.08,0),IF(I25=\"切り上げ\",ROUNDUP(W23*0.08,0),ROUND(W23*0.08,0)))","v":0}]
[null,null,null,null,null,null,null,null,"◎",null,"非課税",null,null,null,null,null,"  ③　非課税対象　◎",null,null,null,null,null,{"$f":"SUMIF( W31:W530, \"◎\", Y31:Y530 )","v":0},null,null,null,null,null,0]
[null,"・消費税の端数処理　　≪",null,null,null,null,null,null,{"$f":"入力シート!E17","v":"切り捨て"},null,null,"≫",null,null,null,null,"合　計 （①+②+③）",null,null,null,null,null,{"$f":"SUM(W22:AB24)","v":0},null,null,null,null,null,{"$f":"SUM(AC22:AH24)","v":0}]
[null,null,null,null,null,null,null,null,null,null,null,null,null,null,null,null,null,null,null,null,null,null,{"$f":"SUM(W25:AH25)","v":0}]
[]
["【請求金額内訳】"]
["番号",null,"日付",null,null,"取引内容",null,null,null,null,null,null,null,null,"数量",null,"単位",null,"単価",null,null,null,"税率\n区分",null,"金額",null,null,null,null,null,"備考"]
[]
[1,null,null,null,null,null,null,null,null,null,null,null,null,null,null,null,null,null,null,null,null,null,null,null,{"$f":"IF(O31*S31>0,O31*S31,\"\")","v":""}]
[2,null,null,null,null,null,null,null,null,null,null,null,null,null,null,null,null,null,null,null,null,null,null,null,{"$f":"IF(O32*S32>0,O32*S32,\"\")","v":""}]
[3,null,null,null,null,null,null,null,null,null,null,null,null,null,null,null,null,null,null,null,null,null,null,null,""]
[4,null,null,null,null,null,null,null,null,null,null,null,null,null,null,null,null,null,null,null,null,null,null,null,""]
[5,null,null,null,null,null,null,null,null,null,null,null,null,null,null,null,null,null,null,null,null,null,null,null,""]
[6,null,null,null,null,null,null,null,null,null,null,null,null,null,null,null,null,null,null,null,null,null,null,null,""]
[7,null,null,null,null,null,null,null,null,null,null,null,null,null,null,null,null,null,null,null,null,null,null,null,""]
[8,null,null,null,null,null,null,null,null,null,null,null,null,null,null,null,null,null,null,null,null,null,null,null,""]
[9,null,null,null,null,null,null,null,null,null,null,null,null,null,null,null,null,null,null,null,null,null,null,null,""]
[10,null,null,null,null,null,null,null,null,null,null,null,null,null,null,null,null,null,null,null,null,null,null,null,""]
[11,null,null,null,null,null,null,null,null,null,null,null,null,null,null,null,null,null,null,null,null,null,null,null,{"$f":"IF(O41*S41>0,O41*S41,\"\")","v":""}]
[12,null,null,null,null,null,null,null,null,null,null,null,null,null,null,null,null,null,null,null,null,null,null,null,""]
[13,null,null,null,null,null,null,null,null,null,null,null,null,null,null,null,null,null,null,null,null,null,null,null,""]
[14,null,null,null,null,null,null,null,null,null,null,null,null,null,null,null,null,null,null,null,null,null,null,null,""]
[15,null,null,null,null,null,null,null,null,null,null,null,null,null,null,null,null,null,null,null,null,null,null,null,""]
[16,null,null,null,null,null,null,null,null,null,null,null,null,null,null,null,null,null,null,null,null,null,null,null,""]
[17,null,null,null,null,null,null,null,null,null,null,null,null,null,null,null,null,null,null,null,null,null,null,null,""]
[18,null,null,null,null,null,null,null,null,null,null,null,null,null,null,null,null,null,null,null,null,null,null,null,{"$f":"IF(O48*S48>0,O48*S48,\"\")","v":""}]
[19,null,null,null,null,null,null,null,null,null,null,null,null,null,null,null,null,null,null,null,null,null,null,null,""]
[20,null,null,null,null,null,null,null,null,null,null,null,null,null,null,null,null,null,null,null,null,null,null,null,""]
[21,null,null,null,null,null,null,null,null,null,null,null,null,null,null,null,null,null,null,null,null,null,null,null,""]
[22,null,null,null,null,null,null,null,null,null,null,null,null,null,null,null,null,null,null,null,null,null,null,null,""]
[23,null,null,null,null,null,null,null,null,null,null,null,null,null,null,null,null,null,null,null,null,null,null,null,""]
[24,null,null,null,null,null,null,null,null,null,null,null,null,null,null,null,null,null,null,null,null,null,null,null,""]
[25,null,null,null,null,null,null,null,null,null,null,null,null,null,null,null,null,null,null,null,null,null,null,null,""]
[26,null,null,null,null,null,null,null,null,null,null,null,null,null,null,null,null,null,null,null,null,null,null,null,""]
[27,null,null,null,null,null,null,null,null,null,null,null,null,null,null,null,null,null,null,null,null,null,null,null,""]
[28,null,null,null,null,null,null,null,null,null,null,null,null,null,null,null,null,null,null,null,null,null,null,null,""]
[29,null,null,null,null,null,null,null,null,null,null,null,null,null,null,null,null,null,null,null,null,null,null,null,""]
[30,null,null,null,null,null,null,null,null,null,null,null,null,null,null,null,null,null,null,null,null,null,null,null,""]
[31,null,null,null,null,null,null,null,null,null,null,null,null,null,null,null,null,null,null,null,null,null,null,null,""]
[32,null,null,null,null,null,null,null,null,null,null,null,null,null,null,null,null,null,null,null,null,null,null,null,""]
[33,null,null,null,null,null,null,null,null,null,null,null,null,null,null,null,null,null,null,null,null,null,null,null,""]
[34,null,null,null,null,null,null,null,null,null,null,null,null,null,null,null,null,null,null,null,null,null,null,null,""]
[35,null,null,null,null,null,null,null,null,null,null,null,null,null,null,null,null,null,null,null,null,null,null,null,""]
[36,null,null,null,null,null,null,null,null,null,null,null,null,null,null,null,null,null,null,null,null,null,null,null,""]
[37,null,null,null,null,null,null,null,null,null,null,null,null,null,null,null,null,null,null,null,null,null,null,null,""]
[38,null,null,null,null,null,null,null,null,null,null,null,null,null,null,null,null,null,null,null,null,null,null,null,""]
[39,null,null,null,null,null,null,null,null,null,null,null,null,null,null,null,null,null,null,null,null,null,null,null,""]
[40,null,null,null,null,null,null,null,null,null,null,null,null,null,null,null,null,null,null,null,null,null,null,null,""]
[41,null,null,null,null,null,null,null,null,null,null,null,null,null,null,null,null,null,null,null,null,null,null,null,""]
[42,null,null,null,null,null,null,null,null,null,null,null,null,null,null,null,null,null,null,null,null,null,null,null,""]
[43,null,null,null,null,null,null,null,null,null,null,null,null,null,null,null,null,null,null,null,null,null,null,null,""]
[44,null,null,null,null,null,null,null,null,null,null,null,null,null,null,null,null,null,null,null,null,null,null,null,""]
[45,null,null,null,null,null,null,null,null,null,null,null,null,null,null,null,null,null,null,null,null,null,null,null,""]
[46,null,null,null,null,null,null,null,null,null,null,null,null,null,null,null,null,null,null,null,null,null,null,null,""]
[47,null,null,null,null,null,null,null,null,null,null,null,null,null,null,null,null,null,null,null,null,null,null,null,""]
[48,null,null,null,null,null,null,null,null,null,null,null,null,null,null,null,null,null,null,null,null,null,null,null,""]
[49,null,null,null,null,null,null,null,null,null,null,null,null,null,null,null,null,null,null,null,null,null,null,null,""]
[50,null,null,null,null,null,null,null,null,null,null,null,null,null,null,null,null,null,null,null,null,null,null,null,""]
[51,null,null,null,null,null,null,null,null,null,null,null,null,null,null,null,null,null,null,null,null,null,null,null,""]
[52,null,null,null,null,null,null,null,null,null,null,null,null,null,null,null,null,null,null,null,null,null,null,null,""]
[53,null,null,null,null,null,null,null,null,null,null,null,null,null,null,null,null,null,null,null,null,null,null,null,""]
[54,null,null,null,null,null,null,null,null,null,null,null,null,null,null,null,null,null,null,null,null,null,null,null,""]
[55,null,null,null,null,null,null,null,null,null,null,null,null,null,null,null,null,null,null,null,null,null,null,null,""]
[56,null,null,null,null,null,null,null,null,null,null,null,null,null,null,null,null,null,null,null,null,null,null,null,""]
[57,null,null,null,null,null,null,null,null,null,null,null,null,null,null,null,null,null,null,null,null,null,null,null,""]
[58,null,null,null,null,null,null,null,null,null,null,null,null,null,null,null,null,null,null,null,null,null,null,null,""]
[59,null,null,null,null,null,null,null,null,null,null,null,null,null,null,null,null,null,null,null,null,null,null,null,""]
[60,null,null,null,null,null,null,null,null,null,null,null,null,null,null,null,null,null,null,null,null,null,null,null,""]
[61,null,null,null,null,null,null,null,null,null,null,null,null,null,null,null,null,null,null,null,null,null,null,null,""]
[62,null,null,null,null,null,null,null,null,null,null,null,null,null,null,null,null,null,null,null,null,null,null,null,""]
[63,null,null,null,null,null,null,null,null,null,null,null,null,null,null,null,null,null,null,null,null,null,null,null,""]
[64,null,null,null,null,null,null,null,null,null,null,null,null,null,null,null,null,null,null,null,null,null,null,null,{"$f":"IF(O94*S94>0,O94*S94,\"\")","v":""}]
[65,null,null,null,null,null,null,null,null,null,null,null,null,null,null,null,null,null,null,null,null,null,null,null,{"$f":"IF(O95*S95>0,O95*S95,\"\")","v":""}]
[66,null,null,null,null,null,null,null,null,null,null,null,null,null,null,null,null,null,null,null,null,null,null,null,{"$f":"IF(O96*S96>0,O96*S96,\"\")","v":""}]
[67,null,null,null,null,null,null,null,null,null,null,null,null,null,null,null,null,null,null,null,null,null,null,null,""]
[68,null,null,null,null,null,null,null,null,null,null,null,null,null,null,null,null,null,null,null,null,null,null,null,""]
[69,null,null,null,null,null,null,null,null,null,null,null,null,null,null,null,null,null,null,null,null,null,null,null,""]
[70,null,null,null,null,null,null,null,null,null,null,null,null,null,null,null,null,null,null,null,null,null,null,null,""]
[71,null,null,null,null,null,null,null,null,null,null,null,null,null,null,null,null,null,null,null,null,null,null,null,""]
[72,null,null,null,null,null,null,null,null,null,null,null,null,null,null,null,null,null,null,null,null,null,null,null,""]
[73,null,null,null,null,null,null,null,null,null,null,null,null,null,null,null,null,null,null,null,null,null,null,null,""]
[74,null,null,null,null,null,null,null,null,null,null,null,null,null,null,null,null,null,null,null,null,null,null,null,""]
[75,null,null,null,null,null,null,null,null,null,null,null,null,null,null,null,null,null,null,null,null,null,null,null,""]
[76,null,null,null,null,null,null,null,null,null,null,null,null,null,null,null,null,null,null,null,null,null,null,null,""]
[77,null,null,null,null,null,null,null,null,null,null,null,null,null,null,null,null,null,null,null,null,null,null,null,""]
[78,null,null,null,null,null,null,null,null,null,null,null,null,null,null,null,null,null,null,null,null,null,null,null,""]
[79,null,null,null,null,null,null,null,null,null,null,null,null,null,null,null,null,null,null,null,null,null,null,null,""]
[80,null,null,null,null,null,null,null,null,null,null,null,null,null,null,null,null,null,null,null,null,null,null,null,""]
[81,null,null,null,null,null,null,null,null,null,null,null,null,null,null,null,null,null,null,null,null,null,null,null,""]
[82,null,null,null,null,null,null,null,null,null,null,null,null,null,null,null,null,null,null,null,null,null,null,null,""]
[83,null,null,null,null,null,null,null,null,null,null,null,null,null,null,null,null,null,null,null,null,null,null,null,""]
[84,null,null,null,null,null,null,null,null,null,null,null,null,null,null,null,null,null,null,null,null,null,null,null,""]
[85,null,null,null,null,null,null,null,null,null,null,null,null,null,null,null,null,null,null,null,null,null,null,null,""]
[86,null,null,null,null,null,null,null,null,null,null,null,null,null,null,null,null,null,null,null,null,null,null,null,""]
[87,null,null,null,null,null,null,null,null,null,null,null,null,null,null,null,null,null,null,null,null,null,null,null,""]
[88,null,null,null,null,null,null,null,null,null,null,null,null,null,null,null,null,null,null,null,null,null,null,null,""]
[89,null,null,null,null,null,null,null,null,null,null,null,null,null,null,null,null,null,null,null,null,null,null,null,""]
[90,null,null,null,null,null,null,null,null,null,null,null,null,null,null,null,null,null,null,null,null,null,null,null,""]
[91,null,null,null,null,null,null,null,null,null,null,null,null,null,null,null,null,null,null,null,null,null,null,null,""]
[92,null,null,null,null,null,null,null,null,null,null,null,null,null,null,null,null,null,null,null,null,null,null,null,""]
[93,null,null,null,null,null,null,null,null,null,null,null,null,null,null,null,null,null,null,null,null,null,null,null,""]
[94,null,null,null,null,null,null,null,null,null,null,null,null,null,null,null,null,null,null,null,null,null,null,null,""]
[95,null,null,null,null,null,null,null,null,null,null,null,null,null,null,null,null,null,null,null,null,null,null,null,""]
[96,null,null,null,null,null,null,null,null,null,null,null,null,null,null,null,null,null,null,null,null,null,null,null,""]
[97,null,null,null,null,null,null,null,null,null,null,null,null,null,null,null,null,null,null,null,null,null,null,null,""]
[98,null,null,null,null,null,null,null,null,null,null,null,null,null,null,null,null,null,null,null,null,null,null,null,""]
[99,null,null,null,null,null,null,null,null,null,null,null,null,null,null,null,null,null,null,null,null,null,null,null,""]
[100,null,null,null,null,null,null,null,null,null,null,null,null,null,null,null,null,null,null,null,null,null,null,null,""]
[101,null,null,null,null,null,null,null,null,null,null,null,null,null,null,null,null,null,null,null,null,null,null,null,""]
[102,null,null,null,null,null,null,null,null,null,null,null,null,null,null,null,null,null,null,null,null,null,null,null,""]
[103,null,null,null,null,null,null,null,null,null,null,null,null,null,null,null,null,null,null,null,null,null,null,null,""]
[104,null,null,null,null,null,null,null,null,null,null,null,null,null,null,null,null,null,null,null,null,null,null,null,""]
[105,null,null,null,null,null,null,null,null,null,null,null,null,null,null,null,null,null,null,null,null,null,null,null,""]
[106,null,null,null,null,null,null,null,null,null,null,null,null,null,null,null,null,null,null,null,null,null,null,null,""]
[107,null,null,null,null,null,null,null,null,null,null,null,null,null,null,null,null,null,null,null,null,null,null,null,""]
[108,null,null,null,null,null,null,null,null,null,null,null,null,null,null,null,null,null,null,null,null,null,null,null,""]
[109,null,null,null,null,null,null,null,null,null,null,null,null,null,null,null,null,null,null,null,null,null,null,null,""]
[110,null,null,null,null,null,null,null,null,null,null,null,null,null,null,null,null,null,null,null,null,null,null,null,""]
[111,null,null,null,null,null,null,null,null,null,null,null,null,null,null,null,null,null,null,null,null,null,null,null,""]
[112,null,null,null,null,null,null,null,null,null,null,null,null,null,null,null,null,null,null,null,null,null,null,null,""]
[113,null,null,null,null,null,null,null,null,null,null,null,null,null,null,null,null,null,null,null,null,null,null,null,""]
[114,null,null,null,null,null,null,null,null,null,null,null,null,null,null,null,null,null,null,null,null,null,null,null,""]
[115,null,null,null,null,null,null,null,null,null,null,null,null,null,null,null,null,null,null,null,null,null,null,null,""]
[116,null,null,null,null,null,null,null,null,null,null,null,null,null,null,null,null,null,null,null,null,null,null,null,""]
[117,null,null,null,null,null,null,null,null,null,null,null,null,null,null,null,null,null,null,null,null,null,null,null,""]
[118,null,null,null,null,null,null,null,null,null,null,null,null,null,null,null,null,null,null,null,null,null,null,null,""]
[119,null,null,null,null,null,null,null,null,null,null,null,null,null,null,null,null,null,null,null,null,null,null,null,""]
[120,null,null,null,null,null,null,null,null,null,null,null,null,null,null,null,null,null,null,null,null,null,null,null,""]
[121,null,null,null,null,null,null,null,null,null,null,null,null,null,null,null,null,null,null,null,null,null,null,null,""]
[122,null,null,null,null,null,null,null,null,null,null,null,null,null,null,null,null,null,null,null,null,null,null,null,""]
[123,null,null,null,null,null,null,null,null,null,null,null,null,null,null,null,null,null,null,null,null,null,null,null,""]
[124,null,null,null,null,null,null,null,null,null,null,null,null,null,null,null,null,null,null,null,null,null,null,null,""]
[125,null,null,null,null,null,null,null,null,null,null,null,null,null,null,null,null,null,null,null,null,null,null,null,""]
[126,null,null,null,null,null,null,null,null,null,null,null,null,null,null,null,null,null,null,null,null,null,null,null,""]
[127,null,null,null,null,null,null,null,null,null,null,null,null,null,null,null,null,null,null,null,null,null,null,null,""]
[128,null,null,null,null,null,null,null,null,null,null,null,null,null,null,null,null,null,null,null,null,null,null,null,""]
[129,null,null,null,null,null,null,null,null,null,null,null,null,null,null,null,null,null,null,null,null,null,null,null,""]
[130,null,null,null,null,null,null,null,null,null,null,null,null,null,null,null,null,null,null,null,null,null,null,null,{"$f":"IF(O160*S160>0,O160*S160,\"\")","v":""}]
[131,null,null,null,null,null,null,null,null,null,null,null,null,null,null,null,null,null,null,null,null,null,null,null,""]
[132,null,null,null,null,null,null,null,null,null,null,null,null,null,null,null,null,null,null,null,null,null,null,null,""]
[133,null,null,null,null,null,null,null,null,null,null,null,null,null,null,null,null,null,null,null,null,null,null,null,""]
[134,null,null,null,null,null,null,null,null,null,null,null,null,null,null,null,null,null,null,null,null,null,null,null,""]
[135,null,null,null,null,null,null,null,null,null,null,null,null,null,null,null,null,null,null,null,null,null,null,null,""]
[136,null,null,null,null,null,null,null,null,null,null,null,null,null,null,null,null,null,null,null,null,null,null,null,""]
[137,null,null,null,null,null,null,null,null,null,null,null,null,null,null,null,null,null,null,null,null,null,null,null,""]
[138,null,null,null,null,null,null,null,null,null,null,null,null,null,null,null,null,null,null,null,null,null,null,null,""]
[139,null,null,null,null,null,null,null,null,null,null,null,null,null,null,null,null,null,null,null,null,null,null,null,""]
[140,null,null,null,null,null,null,null,null,null,null,null,null,null,null,null,null,null,null,null,null,null,null,null,""]
[141,null,null,null,null,null,null,null,null,null,null,null,null,null,null,null,null,null,null,null,null,null,null,null,""]
[142,null,null,null,null,null,null,null,null,null,null,null,null,null,null,null,null,null,null,null,null,null,null,null,""]
[143,null,null,null,null,null,null,null,null,null,null,null,null,null,null,null,null,null,null,null,null,null,null,null,""]
[144,null,null,null,null,null,null,null,null,null,null,null,null,null,null,null,null,null,null,null,null,null,null,null,""]
[145,null,null,null,null,null,null,null,null,null,null,null,null,null,null,null,null,null,null,null,null,null,null,null,""]
[146,null,null,null,null,null,null,null,null,null,null,null,null,null,null,null,null,null,null,null,null,null,null,null,""]
[147,null,null,null,null,null,null,null,null,null,null,null,null,null,null,null,null,null,null,null,null,null,null,null,""]
[148,null,null,null,null,null,null,null,null,null,null,null,null,null,null,null,null,null,null,null,null,null,null,null,""]
[149,null,null,null,null,null,null,null,null,null,null,null,null,null,null,null,null,null,null,null,null,null,null,null,""]
[150,null,null,null,null,null,null,null,null,null,null,null,null,null,null,null,null,null,null,null,null,null,null,null,""]
[151,null,null,null,null,null,null,null,null,null,null,null,null,null,null,null,null,null,null,null,null,null,null,null,""]
[152,null,null,null,null,null,null,null,null,null,null,null,null,null,null,null,null,null,null,null,null,null,null,null,""]
[153,null,null,null,null,null,null,null,null,null,null,null,null,null,null,null,null,null,null,null,null,null,null,null,""]
[154,null,null,null,null,null,null,null,null,null,null,null,null,null,null,null,null,null,null,null,null,null,null,null,""]
[155,null,null,null,null,null,null,null,null,null,null,null,null,null,null,null,null,null,null,null,null,null,null,null,""]
[156,null,null,null,null,null,null,null,null,null,null,null,null,null,null,null,null,null,null,null,null,null,null,null,""]
[157,null,null,null,null,null,null,null,null,null,null,null,null,null,null,null,null,null,null,null,null,null,null,null,""]
[158,null,null,null,null,null,null,null,null,null,null,null,null,null,null,null,null,null,null,null,null,null,null,null,""]
[159,null,null,null,null,null,null,null,null,null,null,null,null,null,null,null,null,null,null,null,null,null,null,null,""]
[160,null,null,null,null,null,null,null,null,null,null,null,null,null,null,null,null,null,null,null,null,null,null,null,""]
[161,null,null,null,null,null,null,null,null,null,null,null,null,null,null,null,null,null,null,null,null,null,null,null,""]
[162,null,null,null,null,null,null,null,null,null,null,null,null,null,null,null,null,null,null,null,null,null,null,null,""]
[163,null,null,null,null,null,null,null,null,null,null,null,null,null,null,null,null,null,null,null,null,null,null,null,""]
[164,null,null,null,null,null,null,null,null,null,null,null,null,null,null,null,null,null,null,null,null,null,null,null,""]
[165,null,null,null,null,null,null,null,null,null,null,null,null,null,null,null,null,null,null,null,null,null,null,null,""]
[166,null,null,null,null,null,null,null,null,null,null,null,null,null,null,null,null,null,null,null,null,null,null,null,""]
[167,null,null,null,null,null,null,null,null,null,null,null,null,null,null,null,null,null,null,null,null,null,null,null,""]
[168,null,null,null,null,null,null,null,null,null,null,null,null,null,null,null,null,null,null,null,null,null,null,null,""]
[169,null,null,null,null,null,null,null,null,null,null,null,null,null,null,null,null,null,null,null,null,null,null,null,""]
[170,null,null,null,null,null,null,null,null,null,null,null,null,null,null,null,null,null,null,null,null,null,null,null,""]
[171,null,null,null,null,null,null,null,null,null,null,null,null,null,null,null,null,null,null,null,null,null,null,null,""]
[172,null,null,null,null,null,null,null,null,null,null,null,null,null,null,null,null,null,null,null,null,null,null,null,""]
[173,null,null,null,null,null,null,null,null,null,null,null,null,null,null,null,null,null,null,null,null,null,null,null,""]
[174,null,null,null,null,null,null,null,null,null,null,null,null,null,null,null,null,null,null,null,null,null,null,null,""]
[175,null,null,null,null,null,null,null,null,null,null,null,null,null,null,null,null,null,null,null,null,null,null,null,""]
[176,null,null,null,null,null,null,null,null,null,null,null,null,null,null,null,null,null,null,null,null,null,null,null,""]
[177,null,null,null,null,null,null,null,null,null,null,null,null,null,null,null,null,null,null,null,null,null,null,null,""]
[178,null,null,null,null,null,null,null,null,null,null,null,null,null,null,null,null,null,null,null,null,null,null,null,""]
[179,null,null,null,null,null,null,null,null,null,null,null,null,null,null,null,null,null,null,null,null,null,null,null,""]
[180,null,null,null,null,null,null,null,null,null,null,null,null,null,null,null,null,null,null,null,null,null,null,null,""]
[181,null,null,null,null,null,null,null,null,null,null,null,null,null,null,null,null,null,null,null,null,null,null,null,""]
[182,null,null,null,null,null,null,null,null,null,null,null,null,null,null,null,null,null,null,null,null,null,null,null,""]
[183,null,null,null,null,null,null,null,null,null,null,null,null,null,null,null,null,null,null,null,null,null,null,null,""]
[184,null,null,null,null,null,null,null,null,null,null,null,null,null,null,null,null,null,null,null,null,null,null,null,""]
[185,null,null,null,null,null,null,null,null,null,null,null,null,null,null,null,null,null,null,null,null,null,null,null,""]
[186,null,null,null,null,null,null,null,null,null,null,null,null,null,null,null,null,null,null,null,null,null,null,null,""]
[187,null,null,null,null,null,null,null,null,null,null,null,null,null,null,null,null,null,null,null,null,null,null,null,""]
[188,null,null,null,null,null,null,null,null,null,null,null,null,null,null,null,null,null,null,null,null,null,null,null,""]
[189,null,null,null,null,null,null,null,null,null,null,null,null,null,null,null,null,null,null,null,null,null,null,null,""]
[190,null,null,null,null,null,null,null,null,null,null,null,null,null,null,null,null,null,null,null,null,null,null,null,""]
[191,null,null,null,null,null,null,null,null,null,null,null,null,null,null,null,null,null,null,null,null,null,null,null,""]
[192,null,null,null,null,null,null,null,null,null,null,null,null,null,null,null,null,null,null,null,null,null,null,null,""]
[193,null,null,null,null,null,null,null,null,null,null,null,null,null,null,null,null,null,null,null,null,null,null,null,""]
[194,null,null,null,null,null,null,null,null,null,null,null,null,null,null,null,null,null,null,null,null,null,null,null,{"$f":"IF(O224*S224>0,O224*S224,\"\")","v":""}]
[195,null,null,null,null,null,null,null,null,null,null,null,null,null,null,null,null,null,null,null,null,null,null,null,""]
[196,null,null,null,null,null,null,null,null,null,null,null,null,null,null,null,null,null,null,null,null,null,null,null,""]
[197,null,null,null,null,null,null,null,null,null,null,null,null,null,null,null,null,null,null,null,null,null,null,null,""]
[198,null,null,null,null,null,null,null,null,null,null,null,null,null,null,null,null,null,null,null,null,null,null,null,""]
[199,null,null,null,null,null,null,null,null,null,null,null,null,null,null,null,null,null,null,null,null,null,null,null,""]
[200,null,null,null,null,null,null,null,null,null,null,null,null,null,null,null,null,null,null,null,null,null,null,null,""]
[201,null,null,null,null,null,null,null,null,null,null,null,null,null,null,null,null,null,null,null,null,null,null,null,""]
[202,null,null,null,null,null,null,null,null,null,null,null,null,null,null,null,null,null,null,null,null,null,null,null,""]
[203,null,null,null,null,null,null,null,null,null,null,null,null,null,null,null,null,null,null,null,null,null,null,null,""]
[204,null,null,null,null,null,null,null,null,null,null,null,null,null,null,null,null,null,null,null,null,null,null,null,""]
[205,null,null,null,null,null,null,null,null,null,null,null,null,null,null,null,null,null,null,null,null,null,null,null,""]
[206,null,null,null,null,null,null,null,null,null,null,null,null,null,null,null,null,null,null,null,null,null,null,null,""]
[207,null,null,null,null,null,null,null,null,null,null,null,null,null,null,null,null,null,null,null,null,null,null,null,""]
[208,null,null,null,null,null,null,null,null,null,null,null,null,null,null,null,null,null,null,null,null,null,null,null,""]
[209,null,null,null,null,null,null,null,null,null,null,null,null,null,null,null,null,null,null,null,null,null,null,null,""]
[210,null,null,null,null,null,null,null,null,null,null,null,null,null,null,null,null,null,null,null,null,null,null,null,""]
[211,null,null,null,null,null,null,null,null,null,null,null,null,null,null,null,null,null,null,null,null,null,null,null,""]
[212,null,null,null,null,null,null,null,null,null,null,null,null,null,null,null,null,null,null,null,null,null,null,null,""]
[213,null,null,null,null,null,null,null,null,null,null,null,null,null,null,null,null,null,null,null,null,null,null,null,""]
[214,null,null,null,null,null,null,null,null,null,null,null,null,null,null,null,null,null,null,null,null,null,null,null,""]
[215,null,null,null,null,null,null,null,null,null,null,null,null,null,null,null,null,null,null,null,null,null,null,null,""]
[216,null,null,null,null,null,null,null,null,null,null,null,null,null,null,null,null,null,null,null,null,null,null,null,""]
[217,null,null,null,null,null,null,null,null,null,null,null,null,null,null,null,null,null,null,null,null,null,null,null,""]
[218,null,null,null,null,null,null,null,null,null,null,null,null,null,null,null,null,null,null,null,null,null,null,null,""]
[219,null,null,null,null,null,null,null,null,null,null,null,null,null,null,null,null,null,null,null,null,null,null,null,""]
[220,null,null,null,null,null,null,null,null,null,null,null,null,null,null,null,null,null,null,null,null,null,null,null,""]
[221,null,null,null,null,null,null,null,null,null,null,null,null,null,null,null,null,null,null,null,null,null,null,null,""]
[222,null,null,null,null,null,null,null,null,null,null,null,null,null,null,null,null,null,null,null,null,null,null,null,""]
[223,null,null,null,null,null,null,null,null,null,null,null,null,null,null,null,null,null,null,null,null,null,null,null,""]
[224,null,null,null,null,null,null,null,null,null,null,null,null,null,null,null,null,null,null,null,null,null,null,null,""]
[225,null,null,null,null,null,null,null,null,null,null,null,null,null,null,null,null,null,null,null,null,null,null,null,""]
[226,null,null,null,null,null,null,null,null,null,null,null,null,null,null,null,null,null,null,null,null,null,null,null,""]
[227,null,null,null,null,null,null,null,null,null,null,null,null,null,null,null,null,null,null,null,null,null,null,null,""]
[228,null,null,null,null,null,null,null,null,null,null,null,null,null,null,null,null,null,null,null,null,null,null,null,""]
[229,null,null,null,null,null,null,null,null,null,null,null,null,null,null,null,null,null,null,null,null,null,null,null,""]
[230,null,null,null,null,null,null,null,null,null,null,null,null,null,null,null,null,null,null,null,null,null,null,null,""]
[231,null,null,null,null,null,null,null,null,null,null,null,null,null,null,null,null,null,null,null,null,null,null,null,""]
[232,null,null,null,null,null,null,null,null,null,null,null,null,null,null,null,null,null,null,null,null,null,null,null,""]
[233,null,null,null,null,null,null,null,null,null,null,null,null,null,null,null,null,null,null,null,null,null,null,null,""]
[234,null,null,null,null,null,null,null,null,null,null,null,null,null,null,null,null,null,null,null,null,null,null,null,""]
[235,null,null,null,null,null,null,null,null,null,null,null,null,null,null,null,null,null,null,null,null,null,null,null,""]
[236,null,null,null,null,null,null,null,null,null,null,null,null,null,null,null,null,null,null,null,null,null,null,null,""]
[237,null,null,null,null,null,null,null,null,null,null,null,null,null,null,null,null,null,null,null,null,null,null,null,""]
[238,null,null,null,null,null,null,null,null,null,null,null,null,null,null,null,null,null,null,null,null,null,null,null,""]
[239,null,null,null,null,null,null,null,null,null,null,null,null,null,null,null,null,null,null,null,null,null,null,null,""]
[240,null,null,null,null,null,null,null,null,null,null,null,null,null,null,null,null,null,null,null,null,null,null,null,""]
[241,null,null,null,null,null,null,null,null,null,null,null,null,null,null,null,null,null,null,null,null,null,null,null,""]
[242,null,null,null,null,null,null,null,null,null,null,null,null,null,null,null,null,null,null,null,null,null,null,null,""]
[243,null,null,null,null,null,null,null,null,null,null,null,null,null,null,null,null,null,null,null,null,null,null,null,""]
[244,null,null,null,null,null,null,null,null,null,null,null,null,null,null,null,null,null,null,null,null,null,null,null,""]
[245,null,null,null,null,null,null,null,null,null,null,null,null,null,null,null,null,null,null,null,null,null,null,null,""]
[246,null,null,null,null,null,null,null,null,null,null,null,null,null,null,null,null,null,null,null,null,null,null,null,""]
[247,null,null,null,null,null,null,null,null,null,null,null,null,null,null,null,null,null,null,null,null,null,null,null,""]
[248,null,null,null,null,null,null,null,null,null,null,null,null,null,null,null,null,null,null,null,null,null,null,null,""]
[249,null,null,null,null,null,null,null,null,null,null,null,null,null,null,null,null,null,null,null,null,null,null,null,""]
[250,null,null,null,null,null,null,null,null,null,null,null,null,null,null,null,null,null,null,null,null,null,null,null,""]
[251,null,null,null,null,null,null,null,null,null,null,null,null,null,null,null,null,null,null,null,null,null,null,null,""]
[252,null,null,null,null,null,null,null,null,null,null,null,null,null,null,null,null,null,null,null,null,null,null,null,""]
[253,null,null,null,null,null,null,null,null,null,null,null,null,null,null,null,null,null,null,null,null,null,null,null,""]
[254,null,null,null,null,null,null,null,null,null,null,null,null,null,null,null,null,null,null,null,null,null,null,null,""]
[255,null,null,null,null,null,null,null,null,null,null,null,null,null,null,null,null,null,null,null,null,null,null,null,""]
[256,null,null,null,null,null,null,null,null,null,null,null,null,null,null,null,null,null,null,null,null,null,null,null,""]
[257,null,null,null,null,null,null,null,null,null,null,null,null,null,null,null,null,null,null,null,null,null,null,null,""]
[258,null,null,null,null,null,null,null,null,null,null,null,null,null,null,null,null,null,null,null,null,null,null,null,{"$f":"IF(O288*S288>0,O288*S288,\"\")","v":""}]
[259,null,null,null,null,null,null,null,null,null,null,null,null,null,null,null,null,null,null,null,null,null,null,null,""]
[260,null,null,null,null,null,null,null,null,null,null,null,null,null,null,null,null,null,null,null,null,null,null,null,""]
[261,null,null,null,null,null,null,null,null,null,null,null,null,null,null,null,null,null,null,null,null,null,null,null,""]
[262,null,null,null,null,null,null,null,null,null,null,null,null,null,null,null,null,null,null,null,null,null,null,null,""]
[263,null,null,null,null,null,null,null,null,null,null,null,null,null,null,null,null,null,null,null,null,null,null,null,""]
[264,null,null,null,null,null,null,null,null,null,null,null,null,null,null,null,null,null,null,null,null,null,null,null,""]
[265,null,null,null,null,null,null,null,null,null,null,null,null,null,null,null,null,null,null,null,null,null,null,null,""]
[266,null,null,null,null,null,null,null,null,null,null,null,null,null,null,null,null,null,null,null,null,null,null,null,""]
[267,null,null,null,null,null,null,null,null,null,null,null,null,null,null,null,null,null,null,null,null,null,null,null,""]
[268,null,null,null,null,null,null,null,null,null,null,null,null,null,null,null,null,null,null,null,null,null,null,null,""]
[269,null,null,null,null,null,null,null,null,null,null,null,null,null,null,null,null,null,null,null,null,null,null,null,""]
[270,null,null,null,null,null,null,null,null,null,null,null,null,null,null,null,null,null,null,null,null,null,null,null,""]
[271,null,null,null,null,null,null,null,null,null,null,null,null,null,null,null,null,null,null,null,null,null,null,null,""]
[272,null,null,null,null,null,null,null,null,null,null,null,null,null,null,null,null,null,null,null,null,null,null,null,""]
[273,null,null,null,null,null,null,null,null,null,null,null,null,null,null,null,null,null,null,null,null,null,null,null,""]
[274,null,null,null,null,null,null,null,null,null,null,null,null,null,null,null,null,null,null,null,null,null,null,null,""]
[275,null,null,null,null,null,null,null,null,null,null,null,null,null,null,null,null,null,null,null,null,null,null,null,""]
[276,null,null,null,null,null,null,null,null,null,null,null,null,null,null,null,null,null,null,null,null,null,null,null,""]
[277,null,null,null,null,null,null,null,null,null,null,null,null,null,null,null,null,null,null,null,null,null,null,null,""]
[278,null,null,null,null,null,null,null,null,null,null,null,null,null,null,null,null,null,null,null,null,null,null,null,""]
[279,null,null,null,null,null,null,null,null,null,null,null,null,null,null,null,null,null,null,null,null,null,null,null,""]
[280,null,null,null,null,null,null,null,null,null,null,null,null,null,null,null,null,null,null,null,null,null,null,null,""]
[281,null,null,null,null,null,null,null,null,null,null,null,null,null,null,null,null,null,null,null,null,null,null,null,""]
[282,null,null,null,null,null,null,null,null,null,null,null,null,null,null,null,null,null,null,null,null,null,null,null,""]
[283,null,null,null,null,null,null,null,null,null,null,null,null,null,null,null,null,null,null,null,null,null,null,null,""]
[284,null,null,null,null,null,null,null,null,null,null,null,null,null,null,null,null,null,null,null,null,null,null,null,""]
[285,null,null,null,null,null,null,null,null,null,null,null,null,null,null,null,null,null,null,null,null,null,null,null,""]
[286,null,null,null,null,null,null,null,null,null,null,null,null,null,null,null,null,null,null,null,null,null,null,null,""]
[287,null,null,null,null,null,null,null,null,null,null,null,null,null,null,null,null,null,null,null,null,null,null,null,""]
[288,null,null,null,null,null,null,null,null,null,null,null,null,null,null,null,null,null,null,null,null,null,null,null,""]
[289,null,null,null,null,null,null,null,null,null,null,null,null,null,null,null,null,null,null,null,null,null,null,null,""]
[290,null,null,null,null,null,null,null,null,null,null,null,null,null,null,null,null,null,null,null,null,null,null,null,""]
[291,null,null,null,null,null,null,null,null,null,null,null,null,null,null,null,null,null,null,null,null,null,null,null,""]
[292,null,null,null,null,null,null,null,null,null,null,null,null,null,null,null,null,null,null,null,null,null,null,null,""]
[293,null,null,null,null,null,null,null,null,null,null,null,null,null,null,null,null,null,null,null,null,null,null,null,""]
[294,null,null,null,null,null,null,null,null,null,null,null,null,null,null,null,null,null,null,null,null,null,null,null,""]
[295,null,null,null,null,null,null,null,null,null,null,null,null,null,null,null,null,null,null,null,null,null,null,null,""]
[296,null,null,null,null,null,null,null,null,null,null,null,null,null,null,null,null,null,null,null,null,null,null,null,""]
[297,null,null,null,null,null,null,null,null,null,null,null,null,null,null,null,null,null,null,null,null,null,null,null,""]
[298,null,null,null,null,null,null,null,null,null,null,null,null,null,null,null,null,null,null,null,null,null,null,null,""]
[299,null,null,null,null,null,null,null,null,null,null,null,null,null,null,null,null,null,null,null,null,null,null,null,""]
[300,null,null,null,null,null,null,null,null,null,null,null,null,null,null,null,null,null,null,null,null,null,null,null,""]
[301,null,null,null,null,null,null,null,null,null,null,null,null,null,null,null,null,null,null,null,null,null,null,null,""]
[302,null,null,null,null,null,null,null,null,null,null,null,null,null,null,null,null,null,null,null,null,null,null,null,""]
[303,null,null,null,null,null,null,null,null,null,null,null,null,null,null,null,null,null,null,null,null,null,null,null,""]
[304,null,null,null,null,null,null,null,null,null,null,null,null,null,null,null,null,null,null,null,null,null,null,null,""]
[305,null,null,null,null,null,null,null,null,null,null,null,null,null,null,null,null,null,null,null,null,null,null,null,""]
[306,null,null,null,null,null,null,null,null,null,null,null,null,null,null,null,null,null,null,null,null,null,null,null,""]
[307,null,null,null,null,null,null,null,null,null,null,null,null,null,null,null,null,null,null,null,null,null,null,null,""]
[308,null,null,null,null,null,null,null,null,null,null,null,null,null,null,null,null,null,null,null,null,null,null,null,""]
[309,null,null,null,null,null,null,null,null,null,null,null,null,null,null,null,null,null,null,null,null,null,null,null,""]
[310,null,null,null,null,null,null,null,null,null,null,null,null,null,null,null,null,null,null,null,null,null,null,null,""]
[311,null,null,null,null,null,null,null,null,null,null,null,null,null,null,null,null,null,null,null,null,null,null,null,""]
[312,null,null,null,null,null,null,null,null,null,null,null,null,null,null,null,null,null,null,null,null,null,null,null,""]
[313,null,null,null,null,null,null,null,null,null,null,null,null,null,null,null,null,null,null,null,null,null,null,null,""]
[314,null,null,null,null,null,null,null,null,null,null,null,null,null,null,null,null,null,null,null,null,null,null,null,""]
[315,null,null,null,null,null,null,null,null,null,null,null,null,null,null,null,null,null,null,null,null,null,null,null,""]
[316,null,null,null,null,null,null,null,null,null,null,null,null,null,null,null,null,null,null,null,null,null,null,null,""]
[317,null,null,null,null,null,null,null,null,null,null,null,null,null,null,null,null,null,null,null,null,null,null,null,""]
[318,null,null,null,null,null,null,null,null,null,null,null,null,null,null,null,null,null,null,null,null,null,null,null,""]
[319,null,null,null,null,null,null,null,null,null,null,null,null,null,null,null,null,null,null,null,null,null,null,null,""]
[320,null,null,null,null,null,null,null,null,null,null,null,null,null,null,null,null,null,null,null,null,null,null,null,""]
[321,null,null,null,null,null,null,null,null,null,null,null,null,null,null,null,null,null,null,null,null,null,null,null,""]
[322,null,null,null,null,null,null,null,null,null,null,null,null,null,null,null,null,null,null,null,null,null,null,null,{"$f":"IF(O352*S352>0,O352*S352,\"\")","v":""}]
[323,null,null,null,null,null,null,null,null,null,null,null,null,null,null,null,null,null,null,null,null,null,null,null,""]
[324,null,null,null,null,null,null,null,null,null,null,null,null,null,null,null,null,null,null,null,null,null,null,null,""]
[325,null,null,null,null,null,null,null,null,null,null,null,null,null,null,null,null,null,null,null,null,null,null,null,""]
[326,null,null,null,null,null,null,null,null,null,null,null,null,null,null,null,null,null,null,null,null,null,null,null,""]
[327,null,null,null,null,null,null,null,null,null,null,null,null,null,null,null,null,null,null,null,null,null,null,null,""]
[328,null,null,null,null,null,null,null,null,null,null,null,null,null,null,null,null,null,null,null,null,null,null,null,""]
[329,null,null,null,null,null,null,null,null,null,null,null,null,null,null,null,null,null,null,null,null,null,null,null,""]
[330,null,null,null,null,null,null,null,null,null,null,null,null,null,null,null,null,null,null,null,null,null,null,null,""]
[331,null,null,null,null,null,null,null,null,null,null,null,null,null,null,null,null,null,null,null,null,null,null,null,""]
[332,null,null,null,null,null,null,null,null,null,null,null,null,null,null,null,null,null,null,null,null,null,null,null,""]
[333,null,null,null,null,null,null,null,null,null,null,null,null,null,null,null,null,null,null,null,null,null,null,null,""]
[334,null,null,null,null,null,null,null,null,null,null,null,null,null,null,null,null,null,null,null,null,null,null,null,""]
[335,null,null,null,null,null,null,null,null,null,null,null,null,null,null,null,null,null,null,null,null,null,null,null,""]
[336,null,null,null,null,null,null,null,null,null,null,null,null,null,null,null,null,null,null,null,null,null,null,null,""]
[337,null,null,null,null,null,null,null,null,null,null,null,null,null,null,null,null,null,null,null,null,null,null,null,""]
[338,null,null,null,null,null,null,null,null,null,null,null,null,null,null,null,null,null,null,null,null,null,null,null,""]
[339,null,null,null,null,null,null,null,null,null,null,null,null,null,null,null,null,null,null,null,null,null,null,null,""]
[340,null,null,null,null,null,null,null,null,null,null,null,null,null,null,null,null,null,null,null,null,null,null,null,""]
[341,null,null,null,null,null,null,null,null,null,null,null,null,null,null,null,null,null,null,null,null,null,null,null,""]
[342,null,null,null,null,null,null,null,null,null,null,null,null,null,null,null,null,null,null,null,null,null,null,null,""]
[343,null,null,null,null,null,null,null,null,null,null,null,null,null,null,null,null,null,null,null,null,null,null,null,""]
[344,null,null,null,null,null,null,null,null,null,null,null,null,null,null,null,null,null,null,null,null,null,null,null,""]
[345,null,null,null,null,null,null,null,null,null,null,null,null,null,null,null,null,null,null,null,null,null,null,null,""]
[346,null,null,null,null,null,null,null,null,null,null,null,null,null,null,null,null,null,null,null,null,null,null,null,""]
[347,null,null,null,null,null,null,null,null,null,null,null,null,null,null,null,null,null,null,null,null,null,null,null,""]
[348,null,null,null,null,null,null,null,null,null,null,null,null,null,null,null,null,null,null,null,null,null,null,null,""]
[349,null,null,null,null,null,null,null,null,null,null,null,null,null,null,null,null,null,null,null,null,null,null,null,""]
[350,null,null,null,null,null,null,null,null,null,null,null,null,null,null,null,null,null,null,null,null,null,null,null,""]
[351,null,null,null,null,null,null,null,null,null,null,null,null,null,null,null,null,null,null,null,null,null,null,null,""]
[352,null,null,null,null,null,null,null,null,null,null,null,null,null,null,null,null,null,null,null,null,null,null,null,""]
[353,null,null,null,null,null,null,null,null,null,null,null,null,null,null,null,null,null,null,null,null,null,null,null,""]
[354,null,null,null,null,null,null,null,null,null,null,null,null,null,null,null,null,null,null,null,null,null,null,null,""]
[355,null,null,null,null,null,null,null,null,null,null,null,null,null,null,null,null,null,null,null,null,null,null,null,""]
[356,null,null,null,null,null,null,null,null,null,null,null,null,null,null,null,null,null,null,null,null,null,null,null,""]
[357,null,null,null,null,null,null,null,null,null,null,null,null,null,null,null,null,null,null,null,null,null,null,null,""]
[358,null,null,null,null,null,null,null,null,null,null,null,null,null,null,null,null,null,null,null,null,null,null,null,""]
[359,null,null,null,null,null,null,null,null,null,null,null,null,null,null,null,null,null,null,null,null,null,null,null,""]
[360,null,null,null,null,null,null,null,null,null,null,null,null,null,null,null,null,null,null,null,null,null,null,null,""]
[361,null,null,null,null,null,null,null,null,null,null,null,null,null,null,null,null,null,null,null,null,null,null,null,""]
[362,null,null,null,null,null,null,null,null,null,null,null,null,null,null,null,null,null,null,null,null,null,null,null,""]
[363,null,null,null,null,null,null,null,null,null,null,null,null,null,null,null,null,null,null,null,null,null,null,null,""]
[364,null,null,null,null,null,null,null,null,null,null,null,null,null,null,null,null,null,null,null,null,null,null,null,""]
[365,null,null,null,null,null,null,null,null,null,null,null,null,null,null,null,null,null,null,null,null,null,null,null,""]
[366,null,null,null,null,null,null,null,null,null,null,null,null,null,null,null,null,null,null,null,null,null,null,null,""]
[367,null,null,null,null,null,null,null,null,null,null,null,null,null,null,null,null,null,null,null,null,null,null,null,""]
[368,null,null,null,null,null,null,null,null,null,null,null,null,null,null,null,null,null,null,null,null,null,null,null,""]
[369,null,null,null,null,null,null,null,null,null,null,null,null,null,null,null,null,null,null,null,null,null,null,null,""]
[370,null,null,null,null,null,null,null,null,null,null,null,null,null,null,null,null,null,null,null,null,null,null,null,""]
[371,null,null,null,null,null,null,null,null,null,null,null,null,null,null,null,null,null,null,null,null,null,null,null,""]
[372,null,null,null,null,null,null,null,null,null,null,null,null,null,null,null,null,null,null,null,null,null,null,null,""]
[373,null,null,null,null,null,null,null,null,null,null,null,null,null,null,null,null,null,null,null,null,null,null,null,""]
[374,null,null,null,null,null,null,null,null,null,null,null,null,null,null,null,null,null,null,null,null,null,null,null,""]
[375,null,null,null,null,null,null,null,null,null,null,null,null,null,null,null,null,null,null,null,null,null,null,null,""]
[376,null,null,null,null,null,null,null,null,null,null,null,null,null,null,null,null,null,null,null,null,null,null,null,""]
[377,null,null,null,null,null,null,null,null,null,null,null,null,null,null,null,null,null,null,null,null,null,null,null,""]
[378,null,null,null,null,null,null,null,null,null,null,null,null,null,null,null,null,null,null,null,null,null,null,null,""]
[379,null,null,null,null,null,null,null,null,null,null,null,null,null,null,null,null,null,null,null,null,null,null,null,""]
[380,null,null,null,null,null,null,null,null,null,null,null,null,null,null,null,null,null,null,null,null,null,null,null,""]
[381,null,null,null,null,null,null,null,null,null,null,null,null,null,null,null,null,null,null,null,null,null,null,null,""]
[382,null,null,null,null,null,null,null,null,null,null,null,null,null,null,null,null,null,null,null,null,null,null,null,""]
[383,null,null,null,null,null,null,null,null,null,null,null,null,null,null,null,null,null,null,null,null,null,null,null,""]
[384,null,null,null,null,null,null,null,null,null,null,null,null,null,null,null,null,null,null,null,null,null,null,null,""]
[385,null,null,null,null,null,null,null,null,null,null,null,null,null,null,null,null,null,null,null,null,null,null,null,""]
[386,null,null,null,null,null,null,null,null,null,null,null,null,null,null,null,null,null,null,null,null,null,null,null,{"$f":"IF(O416*S416>0,O416*S416,\"\")","v":""}]
[387,null,null,null,null,null,null,null,null,null,null,null,null,null,null,null,null,null,null,null,null,null,null,null,""]
[388,null,null,null,null,null,null,null,null,null,null,null,null,null,null,null,null,null,null,null,null,null,null,null,""]
[389,null,null,null,null,null,null,null,null,null,null,null,null,null,null,null,null,null,null,null,null,null,null,null,""]
[390,null,null,null,null,null,null,null,null,null,null,null,null,null,null,null,null,null,null,null,null,null,null,null,""]
[391,null,null,null,null,null,null,null,null,null,null,null,null,null,null,null,null,null,null,null,null,null,null,null,""]
[392,null,null,null,null,null,null,null,null,null,null,null,null,null,null,null,null,null,null,null,null,null,null,null,""]
[393,null,null,null,null,null,null,null,null,null,null,null,null,null,null,null,null,null,null,null,null,null,null,null,""]
[394,null,null,null,null,null,null,null,null,null,null,null,null,null,null,null,null,null,null,null,null,null,null,null,""]
[395,null,null,null,null,null,null,null,null,null,null,null,null,null,null,null,null,null,null,null,null,null,null,null,""]
[396,null,null,null,null,null,null,null,null,null,null,null,null,null,null,null,null,null,null,null,null,null,null,null,""]
[397,null,null,null,null,null,null,null,null,null,null,null,null,null,null,null,null,null,null,null,null,null,null,null,""]
[398,null,null,null,null,null,null,null,null,null,null,null,null,null,null,null,null,null,null,null,null,null,null,null,""]
[399,null,null,null,null,null,null,null,null,null,null,null,null,null,null,null,null,null,null,null,null,null,null,null,""]
[400,null,null,null,null,null,null,null,null,null,null,null,null,null,null,null,null,null,null,null,null,null,null,null,""]
[401,null,null,null,null,null,null,null,null,null,null,null,null,null,null,null,null,null,null,null,null,null,null,null,""]
[402,null,null,null,null,null,null,null,null,null,null,null,null,null,null,null,null,null,null,null,null,null,null,null,""]
[403,null,null,null,null,null,null,null,null,null,null,null,null,null,null,null,null,null,null,null,null,null,null,null,""]
[404,null,null,null,null,null,null,null,null,null,null,null,null,null,null,null,null,null,null,null,null,null,null,null,""]
[405,null,null,null,null,null,null,null,null,null,null,null,null,null,null,null,null,null,null,null,null,null,null,null,""]
[406,null,null,null,null,null,null,null,null,null,null,null,null,null,null,null,null,null,null,null,null,null,null,null,""]
[407,null,null,null,null,null,null,null,null,null,null,null,null,null,null,null,null,null,null,null,null,null,null,null,""]
[408,null,null,null,null,null,null,null,null,null,null,null,null,null,null,null,null,null,null,null,null,null,null,null,""]
[409,null,null,null,null,null,null,null,null,null,null,null,null,null,null,null,null,null,null,null,null,null,null,null,""]
[410,null,null,null,null,null,null,null,null,null,null,null,null,null,null,null,null,null,null,null,null,null,null,null,""]
[411,null,null,null,null,null,null,null,null,null,null,null,null,null,null,null,null,null,null,null,null,null,null,null,""]
[412,null,null,null,null,null,null,null,null,null,null,null,null,null,null,null,null,null,null,null,null,null,null,null,""]
[413,null,null,null,null,null,null,null,null,null,null,null,null,null,null,null,null,null,null,null,null,null,null,null,""]
[414,null,null,null,null,null,null,null,null,null,null,null,null,null,null,null,null,null,null,null,null,null,null,null,""]
[415,null,null,null,null,null,null,null,null,null,null,null,null,null,null,null,null,null,null,null,null,null,null,null,""]
[416,null,null,null,null,null,null,null,null,null,null,null,null,null,null,null,null,null,null,null,null,null,null,null,""]
[417,null,null,null,null,null,null,null,null,null,null,null,null,null,null,null,null,null,null,null,null,null,null,null,""]
[418,null,null,null,null,null,null,null,null,null,null,null,null,null,null,null,null,null,null,null,null,null,null,null,""]
[419,null,null,null,null,null,null,null,null,null,null,null,null,null,null,null,null,null,null,null,null,null,null,null,""]
[420,null,null,null,null,null,null,null,null,null,null,null,null,null,null,null,null,null,null,null,null,null,null,null,""]
[421,null,null,null,null,null,null,null,null,null,null,null,null,null,null,null,null,null,null,null,null,null,null,null,""]
[422,null,null,null,null,null,null,null,null,null,null,null,null,null,null,null,null,null,null,null,null,null,null,null,""]
[423,null,null,null,null,null,null,null,null,null,null,null,null,null,null,null,null,null,null,null,null,null,null,null,""]
[424,null,null,null,null,null,null,null,null,null,null,null,null,null,null,null,null,null,null,null,null,null,null,null,""]
[425,null,null,null,null,null,null,null,null,null,null,null,null,null,null,null,null,null,null,null,null,null,null,null,""]
[426,null,null,null,null,null,null,null,null,null,null,null,null,null,null,null,null,null,null,null,null,null,null,null,""]
[427,null,null,null,null,null,null,null,null,null,null,null,null,null,null,null,null,null,null,null,null,null,null,null,""]
[428,null,null,null,null,null,null,null,null,null,null,null,null,null,null,null,null,null,null,null,null,null,null,null,""]
[429,null,null,null,null,null,null,null,null,null,null,null,null,null,null,null,null,null,null,null,null,null,null,null,""]
[430,null,null,null,null,null,null,null,null,null,null,null,null,null,null,null,null,null,null,null,null,null,null,null,""]
[431,null,null,null,null,null,null,null,null,null,null,null,null,null,null,null,null,null,null,null,null,null,null,null,""]
[432,null,null,null,null,null,null,null,null,null,null,null,null,null,null,null,null,null,null,null,null,null,null,null,""]
[433,null,null,null,null,null,null,null,null,null,null,null,null,null,null,null,null,null,null,null,null,null,null,null,""]
[434,null,null,null,null,null,null,null,null,null,null,null,null,null,null,null,null,null,null,null,null,null,null,null,""]
[435,null,null,null,null,null,null,null,null,null,null,null,null,null,null,null,null,null,null,null,null,null,null,null,""]
[436,null,null,null,null,null,null,null,null,null,null,null,null,null,null,null,null,null,null,null,null,null,null,null,""]
[437,null,null,null,null,null,null,null,null,null,null,null,null,null,null,null,null,null,null,null,null,null,null,null,""]
[438,null,null,null,null,null,null,null,null,null,null,null,null,null,null,null,null,null,null,null,null,null,null,null,""]
[439,null,null,null,null,null,null,null,null,null,null,null,null,null,null,null,null,null,null,null,null,null,null,null,""]
[440,null,null,null,null,null,null,null,null,null,null,null,null,null,null,null,null,null,null,null,null,null,null,null,""]
[441,null,null,null,null,null,null,null,null,null,null,null,null,null,null,null,null,null,null,null,null,null,null,null,""]
[442,null,null,null,null,null,null,null,null,null,null,null,null,null,null,null,null,null,null,null,null,null,null,null,""]
[443,null,null,null,null,null,null,null,null,null,null,null,null,null,null,null,null,null,null,null,null,null,null,null,""]
[444,null,null,null,null,null,null,null,null,null,null,null,null,null,null,null,null,null,null,null,null,null,null,null,""]
[445,null,null,null,null,null,null,null,null,null,null,null,null,null,null,null,null,null,null,null,null,null,null,null,""]
[446,null,null,null,null,null,null,null,null,null,null,null,null,null,null,null,null,null,null,null,null,null,null,null,""]
[447,null,null,null,null,null,null,null,null,null,null,null,null,null,null,null,null,null,null,null,null,null,null,null,""]
[448,null,null,null,null,null,null,null,null,null,null,null,null,null,null,null,null,null,null,null,null,null,null,null,""]
[449,null,null,null,null,null,null,null,null,null,null,null,null,null,null,null,null,null,null,null,null,null,null,null,""]
[450,null,null,null,null,null,null,null,null,null,null,null,null,null,null,null,null,null,null,null,null,null,null,null,{"$f":"IF(O480*S480>0,O480*S480,\"\")","v":""}]
[451,null,null,null,null,null,null,null,null,null,null,null,null,null,null,null,null,null,null,null,null,null,null,null,""]
[452,null,null,null,null,null,null,null,null,null,null,null,null,null,null,null,null,null,null,null,null,null,null,null,""]
[453,null,null,null,null,null,null,null,null,null,null,null,null,null,null,null,null,null,null,null,null,null,null,null,""]
[454,null,null,null,null,null,null,null,null,null,null,null,null,null,null,null,null,null,null,null,null,null,null,null,""]
[455,null,null,null,null,null,null,null,null,null,null,null,null,null,null,null,null,null,null,null,null,null,null,null,""]
[456,null,null,null,null,null,null,null,null,null,null,null,null,null,null,null,null,null,null,null,null,null,null,null,""]
[457,null,null,null,null,null,null,null,null,null,null,null,null,null,null,null,null,null,null,null,null,null,null,null,""]
[458,null,null,null,null,null,null,null,null,null,null,null,null,null,null,null,null,null,null,null,null,null,null,null,""]
[459,null,null,null,null,null,null,null,null,null,null,null,null,null,null,null,null,null,null,null,null,null,null,null,""]
[460,null,null,null,null,null,null,null,null,null,null,null,null,null,null,null,null,null,null,null,null,null,null,null,""]
[461,null,null,null,null,null,null,null,null,null,null,null,null,null,null,null,null,null,null,null,null,null,null,null,""]
[462,null,null,null,null,null,null,null,null,null,null,null,null,null,null,null,null,null,null,null,null,null,null,null,""]
[463,null,null,null,null,null,null,null,null,null,null,null,null,null,null,null,null,null,null,null,null,null,null,null,""]
[464,null,null,null,null,null,null,null,null,null,null,null,null,null,null,null,null,null,null,null,null,null,null,null,""]
[465,null,null,null,null,null,null,null,null,null,null,null,null,null,null,null,null,null,null,null,null,null,null,null,""]
[466,null,null,null,null,null,null,null,null,null,null,null,null,null,null,null,null,null,null,null,null,null,null,null,""]
[467,null,null,null,null,null,null,null,null,null,null,null,null,null,null,null,null,null,null,null,null,null,null,null,""]
[468,null,null,null,null,null,null,null,null,null,null,null,null,null,null,null,null,null,null,null,null,null,null,null,""]
[469,null,null,null,null,null,null,null,null,null,null,null,null,null,null,null,null,null,null,null,null,null,null,null,""]
[470,null,null,null,null,null,null,null,null,null,null,null,null,null,null,null,null,null,null,null,null,null,null,null,""]
[471,null,null,null,null,null,null,null,null,null,null,null,null,null,null,null,null,null,null,null,null,null,null,null,""]
[472,null,null,null,null,null,null,null,null,null,null,null,null,null,null,null,null,null,null,null,null,null,null,null,""]
[473,null,null,null,null,null,null,null,null,null,null,null,null,null,null,null,null,null,null,null,null,null,null,null,""]
[474,null,null,null,null,null,null,null,null,null,null,null,null,null,null,null,null,null,null,null,null,null,null,null,""]
[475,null,null,null,null,null,null,null,null,null,null,null,null,null,null,null,null,null,null,null,null,null,null,null,""]
[476,null,null,null,null,null,null,null,null,null,null,null,null,null,null,null,null,null,null,null,null,null,null,null,""]
[477,null,null,null,null,null,null,null,null,null,null,null,null,null,null,null,null,null,null,null,null,null,null,null,""]
[478,null,null,null,null,null,null,null,null,null,null,null,null,null,null,null,null,null,null,null,null,null,null,null,""]
[479,null,null,null,null,null,null,null,null,null,null,null,null,null,null,null,null,null,null,null,null,null,null,null,""]
[480,null,null,null,null,null,null,null,null,null,null,null,null,null,null,null,null,null,null,null,null,null,null,null,""]
[481,null,null,null,null,null,null,null,null,null,null,null,null,null,null,null,null,null,null,null,null,null,null,null,""]
[482,null,null,null,null,null,null,null,null,null,null,null,null,null,null,null,null,null,null,null,null,null,null,null,""]
[483,null,null,null,null,null,null,null,null,null,null,null,null,null,null,null,null,null,null,null,null,null,null,null,""]
[484,null,null,null,null,null,null,null,null,null,null,null,null,null,null,null,null,null,null,null,null,null,null,null,""]
[485,null,null,null,null,null,null,null,null,null,null,null,null,null,null,null,null,null,null,null,null,null,null,null,""]
[486,null,null,null,null,null,null,null,null,null,null,null,null,null,null,null,null,null,null,null,null,null,null,null,""]
[487,null,null,null,null,null,null,null,null,null,null,null,null,null,null,null,null,null,null,null,null,null,null,null,""]
[488,null,null,null,null,null,null,null,null,null,null,null,null,null,null,null,null,null,null,null,null,null,null,null,""]
[489,null,null,null,null,null,null,null,null,null,null,null,null,null,null,null,null,null,null,null,null,null,null,null,""]
[490,null,null,null,null,null,null,null,null,null,null,null,null,null,null,null,null,null,null,null,null,null,null,null,""]
[491,null,null,null,null,null,null,null,null,null,null,null,null,null,null,null,null,null,null,null,null,null,null,null,""]
[492,null,null,null,null,null,null,null,null,null,null,null,null,null,null,null,null,null,null,null,null,null,null,null,""]
[493,null,null,null,null,null,null,null,null,null,null,null,null,null,null,null,null,null,null,null,null,null,null,null,""]
[494,null,null,null,null,null,null,null,null,null,null,null,null,null,null,null,null,null,null,null,null,null,null,null,""]
[495,null,null,null,null,null,null,null,null,null,null,null,null,null,null,null,null,null,null,null,null,null,null,null,""]
[496,null,null,null,null,null,null,null,null,null,null,null,null,null,null,null,null,null,null,null,null,null,null,null,""]
[497,null,null,null,null,null,null,null,null,null,null,null,null,null,null,null,null,null,null,null,null,null,null,null,""]
[498,null,null,null,null,null,null,null,null,null,null,null,null,null,null,null,null,null,null,null,null,null,null,null,""]
[499,null,null,null,null,null,null,null,null,null,null,null,null,null,null,null,null,null,null,null,null,null,null,null,""]
[500,null,null,null,null,null,null,null,null,null,null,null,null,null,null,null,null,null,null,null,null,null,null,null,{"$f":"IF(O530*S530>0,O530*S530,\"\")","v":""}]

{"sheet":"記入方法　【入力シート（自社の内訳書_添付あり】","index":2,"n_rows":97,"n_cols":23,"rows_kept":97,"cut":false,"hidden":false,"merged":[[7,0,8,0],[7,1,8,3],[7,4,7,12],[8,4,8,12],[3,0,3,13],[4,1,4,3],[4,4,4,6],[5,5,5,9],[6,1,6,3],[14,9,14,11],[9,1,9,3],[9,4,9,12],[10,4,10,6],[11,1,11,3],[11,4,11,6],[12,1,12,3],[12,4,12,5],[12,6,12,9],[12,10,12,11],[29,1,30,3],[29,4,29,6],[29,7,29,9],[30,4,30,9],[21,1,21,3],[21,4,21,13],[25,2,25,3],[25,4,25,6],[25,7,25,9],[26,4,26,6],[26,7,26,9],[0,0,0,13],[27,4,27,6],[27,7,27,9],[28,4,28,6],[28,7,28,9],[15,4,15,7],[15,8,15,13],[17,4,17,5],[19,0,19,13],[20,1,20,3],[20,4,20,6],[13,4,13,5],[13,6,13,9],[13,10,13,11],[14,4,14,5],[14,7,14,8]]}
["≪　自社の内訳書を添付する場合　≫"]
["請求書入力シート【納入業者／一般請求】"]
[]
["取引先情報"]
["①","取引先コード",null,null,"0123456"]
["②","インボイス登録番号",null,null,"T","0000000000000"]
["③","郵便番号",null,null,"321","-","1261"]
["④","住所",null,null,"栃木県日光市今市1525　（住所１）"]
[null,null,null,null,"栃木県日光市今市1525　（住所2）"]
["⑤","社名",null,null,"磯部建設　株式会社"]
["⑥","電話番号",null,null,"0288-22-5111"]
["⑦","FAX",null,null,"0288-22-7355"]
["⑧","振込先情報",null,null,"金融機関名",null,"栃木銀行"]
[null,null,null,null,"本店・支店",null,"今市支店"]
[null,null,null,null,"預金区分",null,"当座","口座番号",null,"0123456"]
[null,null,null,null,"口座名義（カタカナ入力）",null,null,null,"イソベケンセツ（カ"]
["⑨","請求日付",null,null,"20","23","年","10","月",31,"日"]
["⑩","消費税の端数処理",null,null,"切り捨て",null,null,{"$f":"IF(E18=\"\",\"入力必須です\",\"\")","v":""}]
[]
["当社請求先情報"]
["⑪","工事コード",null,null,"CH0750001",null,null,"-","000"]
["⑫","工事名称又は部課名",null,null,"工事名称入力"]
[]
[null,null,null,null,"自社の内訳書を添付する場合"]
[]
[null,null,true,null,"税率別計",null,null,"消費税額"]
[null,"　　①　10% 対象　　",null,null,1000000,null,null,100000]
[null,"　　②　  8% 対象 　※",null,null,100000,null,null,8000]
[null,"  　③　非課税対象　◎",null,null,10000,null,null,0]
[null,"合　計 （①+②+③）",null,null,{"$f":"SUM(E27:G29)","v":1110000},null,null,{"$f":"SUM(H27:J29)","v":108000}]
[null,null,null,null,{"$f":"SUM(E30:J30)","v":1218000}]
[]
[]
[]
[]
[]
[]
[]
[]
[]
[]
[]
[]
[]
[]
[]
[]
[]
[]
[]
[]
[]
[]
[]
[]
[]
[]
[]
[]
[]
[]
[]
[]
[]
[]
[]
[]
[]
[]
[]
[]
[]
[]
[]
[]
[]
[]
[]
[]
[]
[]
[]
[]
[]
[]
[]
[]
[]
[]
[]
[]
[]
[]
[]
[]
[]
[null,null,null,null,null,null,null,null,null,null,null,null,null,null,null,null,null,null,null,null,null,null,{"$f":"IF(SUM(W57:AB96)>0,SUM(W57:AB96),\"\")","v":""}]

{"sheet":"記入方法　【請求書（自社の内訳書_添付あり】","index":3,"n_rows":530,"n_cols":33,"rows_kept":530,"cut":false,"hidden":false,"merged":[[0,0,1,32],[2,0,2,7],[2,8,2,9],[2,18,2,21],[2,22,2,23],[2,24,2,25],[2,27,2,28],[2,30,2,31],[4,15,4,17],[4,18,4,19],[4,21,4,23],[22,8,22,9],[22,10,22,11],[24,8,24,10],[15,0,15,5],[15,6,15,33],[17,0,17,14],[18,0,19,3],[10,0,11,3],[10,4,11,4],[10,5,11,13],[11,15,11,17],[11,18,11,24],[11,25,11,27],[11,28,11,32],[12,0,12,3],[12,15,12,17],[12,18,12,21],[12,22,12,24],[12,25,12,32],[5,15,6,17],[5,18,5,32],[6,18,6,32],[7,15,8,17],[7,18,8,32],[9,15,9,17],[9,18,9,23],[9,24,9,26],[9,27,9,32],[20,0,20,21],[20,22,20,27],[20,28,20,33],[21,8,21,9],[21,10,21,11],[21,16,21,21],[21,22,21,27],[21,28,21,33],[18,4,19,12],[18,13,19,14],[18,16,19,19],[18,20,19,23],[18,24,19,24],[18,25,19,25],[13,0,13,3],[13,4,13,13],[13,15,13,17],[13,18,13,32],[14,0,14,3],[14,4,14,10],[14,12,14,13],[24,16,25,21],[24,22,24,27],[24,28,24,33],[25,22,25,33],[27,0,27,33],[28,0,29,1],[28,2,29,4],[28,5,29,13],[28,14,29,15],[28,16,29,17],[22,16,22,21],[22,22,22,27],[22,28,22,33],[23,8,23,9],[23,10,23,11],[23,16,23,21],[23,22,23,27],[23,28,23,33],[30,22,30,23],[30,24,30,29],[30,30,30,33],[31,0,31,1],[31,2,31,4],[31,5,31,13],[31,14,31,15],[31,16,31,17],[31,18,31,21],[31,22,31,23],[28,18,29,21],[28,22,29,23],[28,24,29,29],[28,30,29,33],[30,0,30,1],[30,2,30,4],[30,5,30,13],[30,14,30,15],[30,16,30,17],[30,18,30,21],[32,30,32,33],[33,0,33,1],[33,2,33,4],[33,5,33,13],[33,14,33,15],[33,16,33,17],[33,18,33,21],[33,22,33,23],[33,24,33,29],[33,30,33,33],[31,24,31,29],[31,30,31,33],[32,0,32,1],[32,2,32,4],[32,5,32,13],[32,14,32,15],[32,16,32,17],[32,18,32,21],[32,22,32,23],[32,24,32,29],[35,24,35,29],[35,30,35,33],[36,0,36,1],[36,2,36,4],[36,5,36,13],[36,14,36,15],[36,16,36,17],[36,18,36,21],[36,22,36,23],[36,24,36,29],[34,22,34,23],[34,24,34,29],[34,30,34,33],[35,0,35,1],[35,2,35,4],[35,5,35,13],[35,14,35,15],[35,16,35,17],[35,18,35,21],[35,22,35,23],[34,0,34,1],[34,2,34,4],[34,5,34,13],[34,14,34,15],[34,16,34,17],[34,18,34,21],[38,22,38,23],[38,24,38,29],[38,30,38,33],[39,0,39,1],[39,2,39,4],[39,5,39,13],[39,14,39,15],[39,16,39,17],[39,18,39,21],[39,22,39,23],[38,0,38,1],[38,2,38,4],[38,5,38,13],[38,14,38,15],[38,16,38,17],[38,18,38,21],[36,30,36,33],[37,0,37,1],[37,2,37,4],[37,5,37,13],[37,14,37,15],[37,16,37,17],[37,18,37,21],[37,22,37,23],[37,24,37,29],[37,30,37,33],[40,30,40,33],[41,0,41,1],[41,2,41,4],[41,5,41,13],[41,14,41,15],[41,16,41,17],[41,18,41,21],[41,22,41,23],[41,24,41,29],[41,30,41,33],[39,24,39,29],[39,30,39,33],[40,0,40,1],[40,2,40,4],[40,5,40,13],[40,14,40,15],[40,16,40,17],[40,18,40,21],[40,22,40,23],[40,24,40,29],[43,24,43,29],[43,30,43,33],[44,0,44,1],[44,2,44,4],[44,5,44,13],[44,14,44,15],[44,16,44,17],[44,18,44,21],[44,22,44,23],[44,24,44,29],[42,22,42,23],[42,24,42,29],[42,30,42,33],[43,0,43,1],[43,2,43,4],[43,5,43,13],[43,14,43,15],[43,16,43,17],[43,18,43,21],[43,22,43,23],[42,0,42,1],[42,2,42,4],[42,5,42,13],[42,14,42,15],[42,16,42,17],[42,18,42,21],[46,22,46,23],[46,24,46,29],[46,30,46,33],[47,0,47,1],[47,2,47,4],[47,5,47,13],[47,14,47,15],[47,16,47,17],[47,18,47,21],[47,22,47,23],[46,0,46,1],[46,2,46,4],[46,5,46,13],[46,14,46,15],[46,16,46,17],[46,18,46,21],[44,30,44,33],[45,0,45,1],[45,2,45,4],[45,5,45,13],[45,14,45,15],[45,16,45,17],[45,18,45,21],[45,22,45,23],[45,24,45,29],[45,30,45,33],[48,30,48,33],[49,0,49,1],[49,2,49,4],[49,5,49,13],[49,14,49,15],[49,16,49,17],[49,18,49,21],[49,22,49,23],[49,24,49,29],[49,30,49,33],[47,24,47,29],[47,30,47,33],[48,0,48,1],[48,2,48,4],[48,5,48,13],[48,14,48,15],[48,16,48,17],[48,18,48,21],[48,22,48,23],[48,24,48,29],[51,24,51,29],[51,30,51,33],[52,0,52,1],[52,2,52,4],[52,5,52,13],[52,14,52,15],[52,16,52,17],[52,18,52,21],[52,22,52,23],[52,24,52,29],[50,22,50,23],[50,24,50,29],[50,30,50,33],[51,0,51,1],[51,2,51,4],[51,5,51,13],[51,14,51,15],[51,16,51,17],[51,18,51,21],[51,22,51,23],[50,0,50,1],[50,2,50,4],[50,5,50,13],[50,14,50,15],[50,16,50,17],[50,18,50,21],[54,22,54,23],[54,24,54,29],[54,30,54,33],[55,0,55,1],[55,2,55,4],[55,5,55,13],[55,14,55,15],[55,16,55,17],[55,18,55,21],[55,22,55,23],[54,0,54,1],[54,2,54,4],[54,5,54,13],[54,14,54,15],[54,16,54,17],[54,18,54,21],[52,30,52,33],[53,0,53,1],[53,2,53,4],[53,5,53,13],[53,14,53,15],[53,16,53,17],[53,18,53,21],[53,22,53,23],[53,24,53,29],[53,30,53,33],[56,30,56,33],[57,0,57,1],[57,2,57,4],[57,5,57,13],[57,14,57,15],[57,16,57,17],[57,18,57,21],[57,22,57,23],[57,24,57,29],[57,30,57,33],[55,24,55,29],[55,30,55,33],[56,0,56,1],[56,2,56,4],[56,5,56,13],[56,14,56,15],[56,16,56,17],[56,18,56,21],[56,22,56,23],[56,24,56,29],[59,24,59,29],[59,30,59,33],[60,0,60,1],[60,2,60,4],[60,5,60,13],[60,14,60,15],[60,16,60,17],[60,18,60,21],[60,22,60,23],[60,24,60,29],[58,22,58,23],[58,24,58,29],[58,30,58,33],[59,0,59,1],[59,2,59,4],[59,5,59,13],[59,14,59,15],[59,16,59,17],[59,18,59,21],[59,22,59,23],[58,0,58,1],[58,2,58,4],[58,5,58,13],[58,14,58,15],[58,16,58,17],[58,18,58,21],[62,22,62,23],[62,24,62,29],[62,30,62,33],[63,0,63,1],[63,2,63,4],[63,5,63,13],[63,14,63,15],[63,16,63,17],[63,18,63,21],[63,22,63,23],[62,0,62,1],[62,2,62,4],[62,5,62,13],[62,14,62,15],[62,16,62,17],[62,18,62,21],[60,30,60,33],[61,0,61,1],[61,2,61,4],[61,5,61,13],[61,14,61,15],[61,16,61,17],[61,18,61,21],[61,22,61,23],[61,24,61,29],[61,30,61,33],[64,30,64,33],[65,0,65,1],[65,2,65,4],[65,5,65,13],[65,14,65,15],[65,16,65,17],[65,18,65,21],[65,22,65,23],[65,24,65,29],[65,30,65,33],[63,24,63,29],[63,30,63,33],[64,0,64,1],[64,2,64,4],[64,5,64,13],[64,14,64,15],[64,16,64,17],[64,18,64,21],[64,22,64,23],[64,24,64,29],[67,24,67,29],[67,30,67,33],[68,0,68,1],[68,2,68,4],[68,5,68,13],[68,14,68,15],[68,16,68,17],[68,18,68,21],[68,22,68,23],[68,24,68,29],[66,22,66,23],[66,24,66,29],[66,30,66,33],[67,0,67,1],[67,2,67,4],[67,5,67,13],[67,14,67,15],[67,16,67,17],[67,18,67,21],[67,22,67,23],[66,0,66,1],[66,2,66,4],[66,5,66,13],[66,14,66,15],[66,16,66,17],[66,18,66,21],[70,22,70,23],[70,24,70,29],[70,30,70,33],[71,0,71,1],[71,2,71,4],[71,5,71,13],[71,14,71,15],[71,16,71,17],[71,18,71,21],[71,22,71,23],[70,0,70,1],[70,2,70,4],[70,5,70,13],[70,14,70,15],[70,16,70,17],[70,18,70,21],[68,30,68,33],[69,0,69,1],[69,2,69,4],[69,5,69,13],[69,14,69,15],[69,16,69,17],[69,18,69,21],[69,22,69,23],[69,24,69,29],[69,30,69,33],[72,30,72,33],[73,0,73,1],[73,2,73,4],[73,5,73,13],[73,14,73,15],[73,16,73,17],[73,18,73,21],[73,22,73,23],[73,24,73,29],[73,30,73,33],[71,24,71,29],[71,30,71,33],[72,0,72,1],[72,2,72,4],[72,5,72,13],[72,14,72,15],[72,16,72,17],[72,18,72,21],[72,22,72,23],[72,24,72,29],[75,24,75,29],[75,30,75,33],[76,0,76,1],[76,2,76,4],[76,5,76,13],[76,14,76,15],[76,16,76,17],[76,18,76,21],[76,22,76,23],[76,24,76,29],[74,22,74,23],[74,24,74,29],[74,30,74,33],[75,0,75,1],[75,2,75,4],[75,5,75,13],[75,14,75,15],[75,16,75,17],[75,18,75,21],[75,22,75,23],[74,0,74,1],[74,2,74,4],[74,5,74,13],[74,14,74,15],[74,16,74,17],[74,18,74,21],[78,22,78,23],[78,24,78,29],[78,30,78,33],[79,0,79,1],[79,2,79,4],[79,5,79,13],[79,14,79,15],[79,16,79,17],[79,18,79,21],[79,22,79,23],[78,0,78,1],[78,2,78,4],[78,5,78,13],[78,14,78,15],[78,16,78,17],[78,18,78,21],[76,30,76,33],[77,0,77,1],[77,2,77,4],[77,5,77,13],[77,14,77,15],[77,16,77,17],[77,18,77,21],[77,22,77,23],[77,24,77,29],[77,30,77,33],[80,30,80,33],[81,0,81,1],[81,2,81,4],[81,5,81,13],[81,14,81,15],[81,16,81,17],[81,18,81,21],[81,22,81,23],[81,24,81,29],[81,30,81,33],[79,24,79,29],[79,30,79,33],[80,0,80,1],[80,2,80,4],[80,5,80,13],[80,14,80,15],[80,16,80,17],[80,18,80,21],[80,22,80,23],[80,24,80,29],[83,24,83,29],[83,30,83,33],[84,0,84,1],[84,2,84,4],[84,5,84,13],[84,14,84,15],[84,16,84,17],[84,18,84,21],[84,22,84,23],[84,24,84,29],[82,22,82,23],[82,24,82,29],[82,30,82,33],[83,0,83,1],[83,2,83,4],[83,5,83,13],[83,14,83,15],[83,16,83,17],[83,18,83,21],[83,22,83,23],[82,0,82,1],[82,2,82,4],[82,5,82,13],[82,14,82,15],[82,16,82,17],[82,18,82,21],[86,22,86,23],[86,24,86,29],[86,30,86,33],[87,0,87,1],[87,2,87,4],[87,5,87,13],[87,14,87,15],[87,16,87,17],[87,18,87,21],[87,22,87,23],[86,0,86,1],[86,2,86,4],[86,5,86,13],[86,14,86,15],[86,16,86,17],[86,18,86,21],[84,30,84,33],[85,0,85,1],[85,2,85,4],[85,5,85,13],[85,14,85,15],[85,16,85,17],[85,18,85,21],[85,22,85,23],[85,24,85,29],[85,30,85,33],[88,30,88,33],[89,0,89,1],[89,2,89,4],[89,5,89,13],[89,14,89,15],[89,16,89,17],[89,18,89,21],[89,22,89,23],[89,24,89,29],[89,30,89,33],[87,24,87,29],[87,30,87,33],[88,0,88,1],[88,2,88,4],[88,5,88,13],[88,14,88,15],[88,16,88,17],[88,18,88,21],[88,22,88,23],[88,24,88,29],[91,24,91,29],[91,30,91,33],[92,0,92,1],[92,2,92,4],[92,5,92,13],[92,14,92,15],[92,16,92,17],[92,18,92,21],[92,22,92,23],[92,24,92,29],[90,22,90,23],[90,24,90,29],[90,30,90,33],[91,0,91,1],[91,2,91,4],[91,5,91,13],[91,14,91,15],[91,16,91,17],[91,18,91,21],[91,22,91,23],[90,0,90,1],[90,2,90,4],[90,5,90,13],[90,14,90,15],[90,16,90,17],[90,18,90,21],[94,22,94,23],[94,24,94,29],[94,30,94,33],[95,0,95,1],[95,2,95,4],[95,5,95,13],[95,14,95,15],[95,16,95,17],[95,18,95,21],[95,22,95,23],[94,0,94,1],[94,2,94,4],[94,5,94,13],[94,14,94,15],[94,16,94,17],[94,18,94,21],[92,30,92,33],[93,0,93,1],[93,2,93,4],[93,5,93,13],[93,14,93,15],[93,16,93,17],[93,18,93,21],[93,22,93,23],[93,24,93,29],[93,30,93,33],[96,30,96,33],[97,0,97,1],[97,2,97,4],[97,5,97,13],[97,14,97,15],[97,16,97,17],[97,18,97,21],[97,22,97,23],[97,24,97,29],[97,30,97,33],[95,24,95,29],[95,30,95,33],[96,0,96,1],[96,2,96,4],[96,5,96,13],[96,14,96,15],[96,16,96,17],[96,18,96,21],[96,22,96,23],[96,24,96,29],[99,24,99,29],[99,30,99,33],[100,0,100,1],[100,2,100,4],[100,5,100,13],[100,14,100,15],[100,16,100,17],[100,18,100,21],[100,22,100,23],[100,24,100,29],[98,22,98,23],[98,24,98,29],[98,30,98,33],[99,0,99,1],[99,2,99,4],[99,5,99,13],[99,14,99,15],[99,16,99,17],[99,18,99,21],[99,22,99,23],[98,0,98,1],[98,2,98,4],[98,5,98,13],[98,14,98,15],[98,16,98,17],[98,18,98,21],[102,22,102,23],[102,24,102,29],[102,30,102,33],[103,0,103,1],[103,2,103,4],[103,5,103,13],[103,14,103,15],[103,16,103,17],[103,18,103,21],[103,22,103,23],[102,0,102,1],[102,2,102,4],[102,5,102,13],[102,14,102,15],[102,16,102,17],[102,18,102,21],[100,30,100,33],[101,0,101,1],[101,2,101,4],[101,5,101,13],[101,14,101,15],[101,16,101,17],[101,18,101,21],[101,22,101,23],[101,24,101,29],[101,30,101,33],[104,30,104,33],[105,0,105,1],[105,2,105,4],[105,5,105,13],[105,14,105,15],[105,16,105,17],[105,18,105,21],[105,22,105,23],[105,24,105,29],[105,30,105,33],[103,24,103,29],[103,30,103,33],[104,0,104,1],[104,2,104,4],[104,5,104,13],[104,14,104,15],[104,16,104,17],[104,18,104,21],[104,22,104,23],[104,24,104,29],[107,24,107,29],[107,30,107,33],[108,0,108,1],[108,2,108,4],[108,5,108,13],[108,14,108,15],[108,16,108,17],[108,18,108,21],[108,22,108,23],[108,24,108,29],[106,22,106,23],[106,24,106,29],[106,30,106,33],[107,0,107,1],[107,2,107,4],[107,5,107,13],[107,14,107,15],[107,16,107,17],[107,18,107,21],[107,22,107,23],[106,0,106,1],[106,2,106,4],[106,5,106,13],[106,14,106,15],[106,16,106,17],[106,18,106,21],[110,22,110,23],[110,24,110,29],[110,30,110,33],[111,0,111,1],[111,2,111,4],[111,5,111,13],[111,14,111,15],[111,16,111,17],[111,18,111,21],[111,22,111,23],[110,0,110,1],[110,2,110,4],[110,5,110,13],[110,14,110,15],[110,16,110,17],[110,18,110,21],[108,30,108,33],[109,0,109,1],[109,2,109,4],[109,5,109,13],[109,14,109,15],[109,16,109,17],[109,18,109,21],[109,22,109,23],[109,24,109,29],[109,30,109,33],[112,30,112,33],[113,0,113,1],[113,2,113,4],[113,5,113,13],[113,14,113,15],[113,16,113,17],[113,18,113,21],[113,22,113,23],[113,24,113,29],[113,30,113,33],[111,24,111,29],[111,30,111,33],[112,0,112,1],[112,2,112,4],[112,5,112,13],[112,14,112,15],[112,16,112,17],[112,18,112,21],[112,22,112,23],[112,24,112,29],[115,24,115,29],[115,30,115,33],[116,0,116,1],[116,2,116,4],[116,5,116,13],[116,14,116,15],[116,16,116,17],[116,18,116,21],[116,22,116,23],[116,24,116,29],[114,22,114,23],[114,24,114,29],[114,30,114,33],[115,0,115,1],[115,2,115,4],[115,5,115,13],[115,14,115,15],[115,16,115,17],[115,18,115,21],[115,22,115,23],[114,0,114,1],[114,2,114,4],[114,5,114,13],[114,14,114,15],[114,16,114,17],[114,18,114,21],[118,22,118,23],[118,24,118,29],[118,30,118,33],[119,0,119,1],[119,2,119,4],[119,5,119,13],[119,14,119,15],[119,16,119,17],[119,18,119,21],[119,22,119,23],[118,0,118,1],[118,2,118,4],[118,5,118,13],[118,14,118,15],[118,16,118,17],[118,18,118,21],[116,30,116,33],[117,0,117,1],[117,2,117,4],[117,5,117,13],[117,14,117,15],[117,16,117,17],[117,18,117,21],[117,22,117,23],[117,24,117,29],[117,30,117,33],[120,30,120,33],[121,0,121,1],[121,2,121,4],[121,5,121,13],[121,14,121,15],[121,16,121,17],[121,18,121,21],[121,22,121,23],[121,24,121,29],[121,30,121,33],[119,24,119,29],[119,30,119,33],[120,0,120,1],[120,2,120,4],[120,5,120,13],[120,14,120,15],[120,16,120,17],[120,18,120,21],[120,22,120,23],[120,24,120,29],[123,24,123,29],[123,30,123,33],[124,0,124,1],[124,2,124,4],[124,5,124,13],[124,14,124,15],[124,16,124,17],[124,18,124,21],[124,22,124,23],[124,24,124,29],[122,22,122,23],[122,24,122,29],[122,30,122,33],[123,0,123,1],[123,2,123,4],[123,5,123,13],[123,14,123,15],[123,16,123,17],[123,18,123,21],[123,22,123,23],[122,0,122,1],[122,2,122,4],[122,5,122,13],[122,14,122,15],[122,16,122,17],[122,18,122,21],[126,22,126,23],[126,24,126,29],[126,30,126,33],[127,0,127,1],[127,2,127,4],[127,5,127,13],[127,14,127,15],[127,16,127,17],[127,18,127,21],[127,22,127,23],[126,0,126,1],[126,2,126,4],[126,5,126,13],[126,14,126,15],[126,16,126,17],[126,18,126,21],[124,30,124,33],[125,0,125,1],[125,2,125,4],[125,5,125,13],[125,14,125,15],[125,16,125,17],[125,18,125,21],[125,22,125,23],[125,24,125,29],[125,30,125,33],[128,30,128,33],[129,0,129,1],[129,2,129,4],[129,5,129,13],[129,14,129,15],[129,16,129,17],[129,18,129,21],[129,22,129,23],[129,24,129,29],[129,30,129,33],[127,24,127,29],[127,30,127,33],[128,0,128,1],[128,2,128,4],[128,5,128,13],[128,14,128,15],[128,16,128,17],[128,18,128,21],[128,22,128,23],[128,24,128,29],[131,24,131,29],[131,30,131,33],[132,0,132,1],[132,2,132,4],[132,5,132,13],[132,14,132,15],[132,16,132,17],[132,18,132,21],[132,22,132,23],[132,24,132,29],[130,22,130,23],[130,24,130,29],[130,30,130,33],[131,0,131,1],[131,2,131,4],[131,5,131,13],[131,14,131,15],[131,16,131,17]],"merged_total":4582,"flags":["merged_cut"]}
["請　求　書　【納入業者／一般請求】"]
[]
["磯部建設株式会社",null,null,null,null,null,null,null,"御中",null,null,null,null,null,null,null,null,null,"請求年月日",null,null,null,20,null,23,null,"年",10,null,"月",31,null,"日"]
[]
[null,null,null,null,null,null,null,null,null,null,null,null,null,null,null,"〒",null,null,321,null,"-",1261]
[null,null,null,null,null,null,null,null,null,null,null,null,null,null,null,"住　所",null,null,"栃木県日光市今市1525　（住所1）"]
[null,null,null,null,null,null,null,null,null,null,null,null,null,null,null,null,null,null,"栃木県日光市今市1525　（住所2）"]
[null,null,null,null,null,null,null,null,null,null,null,null,null,null,null,"社　名",null,null," 磯部建設　株式会社"]
[]
[null,null,null,null,null,null,null,null,null,null,null,null,null,null,null,"電話番号",null,null,"0288-22-5111",null,null,null,null,null,"FAX",null,null,"0288-22-7355"]
["インボイス\n登録番号",null,null,null,"T","0000000000000"]
[null,null,null,null,null,null,null,null,null,null,null,null,null,null,null,"金融機関",null,null,"栃木銀行",null,null,null,null,null,null,"店名",null,null,"今市支店"]
[null,null,null,null,null,null,null,null,null,null,null,null,null,null,null,"預金区分",null,null,"当座",null,null,null,"口座番号",null,null,"0123456"]
["取引先コード",null,null,null,"0123456",null,null,null,null,null,null,null,null,null,null,"口座名義",null,null,"イソベケンセツ（カ"]
["工事コード",null,null,null,"CH0750001",null,null,null,null,null,null,"-","000"]
["工事名称又は部課名",null,null,null,null,null,"工事名称入力"]
[]
["下記の通りご請求申し上げます。"]
["請求金額",null,null,null,{"$f":"W26","v":1218000},null,null,null,null,null,null,null,null,"円",null,null,"（内、消費税額",null,null,null,{"$f":"AC25","v":108000},null,null,null,null,"円）"]
[]
[null,null,null,null,null,null,null,null,null,null,null,null,null,null,null,null,null,null,null,null,null,null,"税率別計",null,null,null,null,null,"消費税額"]
[null,"・税率区分について",null,null,null,null,null,null,"空白",null,0.1,null,null,null,null,null,"　①　10% 対象　　",null,null,null,null,null,1000000,null,null,null,null,null,100000]
[null,null,null,null,null,null,null,null,"※",null,0.08,null,null,null,null,null,"　②　  8% 対象 　※",null,null,null,null,null,100000,null,null,null,null,null,8000]
[null,null,null,null,null,null,null,null,"◎",null,"非課税",null,null,null,null,null,"  ③　非課税対象　◎",null,null,null,null,null,10000,null,null,null,null,null,0]
[null,"・消費税の端数処理　　≪",null,null,null,null,null,null,"切り捨て",null,null,"≫",null,null,null,null,"合　計 （①+②+③）",null,null,null,null,null,{"$f":"SUM(W22:AB24)","v":1110000},null,null,null,null,null,{"$f":"SUM(AC22:AH24)","v":108000}]
[null,null,null,null,null,null,null,null,null,null,null,null,null,null,null,null,null,null,null,null,null,null,{"$f":"SUM(W25:AH25)","v":1218000}]
[]
["【請求金額内訳】"]
["番号",null,"日付",null,null,"取引内容",null,null,null,null,null,null,null,null,"数量",null,"単位",null,"単価",null,null,null,"税率\n区分",null,"金額",null,null,null,null,null,"備考"]
[]
[1,null,null,null,null,"別紙の通り",null,null,null,null,null,null,null,null,null,null,null,null,null,null,null,null,null,null,{"$f":"IF(O31*S31>0,O31*S31,\"\")","v":""}]
[2,null,null,null,null,null,null,null,null,null,null,null,null,null,null,null,null,null,null,null,null,null,null,null,{"$f":"IF(O32*S32>0,O32*S32,\"\")","v":""}]
[3,null,null,null,null,null,null,null,null,null,null,null,null,null,null,null,null,null,null,null,null,null,null,null,""]
[4,null,null,null,null,null,null,null,null,null,null,null,null,null,null,null,null,null,null,null,null,null,null,null,""]
[5,null,null,null,null,null,null,null,null,null,null,null,null,null,null,null,null,null,null,null,null,null,null,null,""]
[6,null,null,null,null,null,null,null,null,null,null,null,null,null,null,null,null,null,null,null,null,null,null,null,""]
[7,null,null,null,null,null,null,null,null,null,null,null,null,null,null,null,null,null,null,null,null,null,null,null,""]
[8,null,null,null,null,null,null,null,null,null,null,null,null,null,null,null,null,null,null,null,null,null,null,null,""]
[9,null,null,null,null,null,null,null,null,null,null,null,null,null,null,null,null,null,null,null,null,null,null,null,""]
[10,null,null,null,null,null,null,null,null,null,null,null,null,null,null,null,null,null,null,null,null,null,null,null,""]
[11,null,null,null,null,null,null,null,null,null,null,null,null,null,null,null,null,null,null,null,null,null,null,null,{"$f":"IF(O41*S41>0,O41*S41,\"\")","v":""}]
[12,null,null,null,null,null,null,null,null,null,null,null,null,null,null,null,null,null,null,null,null,null,null,null,""]
[13,null,null,null,null,null,null,null,null,null,null,null,null,null,null,null,null,null,null,null,null,null,null,null,""]
[14,null,null,null,null,null,null,null,null,null,null,null,null,null,null,null,null,null,null,null,null,null,null,null,""]
[15,null,null,null,null,null,null,null,null,null,null,null,null,null,null,null,null,null,null,null,null,null,null,null,""]
[16,null,null,null,null,null,null,null,null,null,null,null,null,null,null,null,null,null,null,null,null,null,null,null,""]
[17,null,null,null,null,null,null,null,null,null,null,null,null,null,null,null,null,null,null,null,null,null,null,null,""]
[18,null,null,null,null,null,null,null,null,null,null,null,null,null,null,null,null,null,null,null,null,null,null,null,{"$f":"IF(O48*S48>0,O48*S48,\"\")","v":""}]
[19,null,null,null,null,null,null,null,null,null,null,null,null,null,null,null,null,null,null,null,null,null,null,null,""]
[20,null,null,null,null,null,null,null,null,null,null,null,null,null,null,null,null,null,null,null,null,null,null,null,""]
[21,null,null,null,null,null,null,null,null,null,null,null,null,null,null,null,null,null,null,null,null,null,null,null,""]
[22,null,null,null,null,null,null,null,null,null,null,null,null,null,null,null,null,null,null,null,null,null,null,null,""]
[23,null,null,null,null,null,null,null,null,null,null,null,null,null,null,null,null,null,null,null,null,null,null,null,""]
[24,null,null,null,null,null,null,null,null,null,null,null,null,null,null,null,null,null,null,null,null,null,null,null,""]
[25,null,null,null,null,null,null,null,null,null,null,null,null,null,null,null,null,null,null,null,null,null,null,null,""]
[26,null,null,null,null,null,null,null,null,null,null,null,null,null,null,null,null,null,null,null,null,null,null,null,""]
[27,null,null,null,null,null,null,null,null,null,null,null,null,null,null,null,null,null,null,null,null,null,null,null,""]
[28,null,null,null,null,null,null,null,null,null,null,null,null,null,null,null,null,null,null,null,null,null,null,null,""]
[29,null,null,null,null,null,null,null,null,null,null,null,null,null,null,null,null,null,null,null,null,null,null,null,""]
[30,null,null,null,null,null,null,null,null,null,null,null,null,null,null,null,null,null,null,null,null,null,null,null,""]
[31,null,null,null,null,null,null,null,null,null,null,null,null,null,null,null,null,null,null,null,null,null,null,null,""]
[32,null,null,null,null,null,null,null,null,null,null,null,null,null,null,null,null,null,null,null,null,null,null,null,""]
[33,null,null,null,null,null,null,null,null,null,null,null,null,null,null,null,null,null,null,null,null,null,null,null,""]
[34,null,null,null,null,null,null,null,null,null,null,null,null,null,null,null,null,null,null,null,null,null,null,null,""]
[35,null,null,null,null,null,null,null,null,null,null,null,null,null,null,null,null,null,null,null,null,null,null,null,""]
[36,null,null,null,null,null,null,null,null,null,null,null,null,null,null,null,null,null,null,null,null,null,null,null,""]
[37,null,null,null,null,null,null,null,null,null,null,null,null,null,null,null,null,null,null,null,null,null,null,null,""]
[38,null,null,null,null,null,null,null,null,null,null,null,null,null,null,null,null,null,null,null,null,null,null,null,""]
[39,null,null,null,null,null,null,null,null,null,null,null,null,null,null,null,null,null,null,null,null,null,null,null,""]
[40,null,null,null,null,null,null,null,null,null,null,null,null,null,null,null,null,null,null,null,null,null,null,null,""]
[41,null,null,null,null,null,null,null,null,null,null,null,null,null,null,null,null,null,null,null,null,null,null,null,""]
[42,null,null,null,null,null,null,null,null,null,null,null,null,null,null,null,null,null,null,null,null,null,null,null,""]
[43,null,null,null,null,null,null,null,null,null,null,null,null,null,null,null,null,null,null,null,null,null,null,null,""]
[44,null,null,null,null,null,null,null,null,null,null,null,null,null,null,null,null,null,null,null,null,null,null,null,""]
[45,null,null,null,null,null,null,null,null,null,null,null,null,null,null,null,null,null,null,null,null,null,null,null,""]
[46,null,null,null,null,null,null,null,null,null,null,null,null,null,null,null,null,null,null,null,null,null,null,null,""]
[47,null,null,null,null,null,null,null,null,null,null,null,null,null,null,null,null,null,null,null,null,null,null,null,""]
[48,null,null,null,null,null,null,null,null,null,null,null,null,null,null,null,null,null,null,null,null,null,null,null,""]
[49,null,null,null,null,null,null,null,null,null,null,null,null,null,null,null,null,null,null,null,null,null,null,null,""]
[50,null,null,null,null,null,null,null,null,null,null,null,null,null,null,null,null,null,null,null,null,null,null,null,""]
[51,null,null,null,null,null,null,null,null,null,null,null,null,null,null,null,null,null,null,null,null,null,null,null,""]
[52,null,null,null,null,null,null,null,null,null,null,null,null,null,null,null,null,null,null,null,null,null,null,null,""]
[53,null,null,null,null,null,null,null,null,null,null,null,null,null,null,null,null,null,null,null,null,null,null,null,""]
[54,null,null,null,null,null,null,null,null,null,null,null,null,null,null,null,null,null,null,null,null,null,null,null,""]
[55,null,null,null,null,null,null,null,null,null,null,null,null,null,null,null,null,null,null,null,null,null,null,null,""]
[56,null,null,null,null,null,null,null,null,null,null,null,null,null,null,null,null,null,null,null,null,null,null,null,""]
[57,null,null,null,null,null,null,null,null,null,null,null,null,null,null,null,null,null,null,null,null,null,null,null,""]
[58,null,null,null,null,null,null,null,null,null,null,null,null,null,null,null,null,null,null,null,null,null,null,null,""]
[59,null,null,null,null,null,null,null,null,null,null,null,null,null,null,null,null,null,null,null,null,null,null,null,""]
[60,null,null,null,null,null,null,null,null,null,null,null,null,null,null,null,null,null,null,null,null,null,null,null,""]
[61,null,null,null,null,null,null,null,null,null,null,null,null,null,null,null,null,null,null,null,null,null,null,null,""]
[62,null,null,null,null,null,null,null,null,null,null,null,null,null,null,null,null,null,null,null,null,null,null,null,""]
[63,null,null,null,null,null,null,null,null,null,null,null,null,null,null,null,null,null,null,null,null,null,null,null,""]
[64,null,null,null,null,null,null,null,null,null,null,null,null,null,null,null,null,null,null,null,null,null,null,null,{"$f":"IF(O94*S94>0,O94*S94,\"\")","v":""}]
[65,null,null,null,null,null,null,null,null,null,null,null,null,null,null,null,null,null,null,null,null,null,null,null,{"$f":"IF(O95*S95>0,O95*S95,\"\")","v":""}]
[66,null,null,null,null,null,null,null,null,null,null,null,null,null,null,null,null,null,null,null,null,null,null,null,{"$f":"IF(O96*S96>0,O96*S96,\"\")","v":""}]
[67,null,null,null,null,null,null,null,null,null,null,null,null,null,null,null,null,null,null,null,null,null,null,null,""]
[68,null,null,null,null,null,null,null,null,null,null,null,null,null,null,null,null,null,null,null,null,null,null,null,""]
[69,null,null,null,null,null,null,null,null,null,null,null,null,null,null,null,null,null,null,null,null,null,null,null,""]
[70,null,null,null,null,null,null,null,null,null,null,null,null,null,null,null,null,null,null,null,null,null,null,null,""]
[71,null,null,null,null,null,null,null,null,null,null,null,null,null,null,null,null,null,null,null,null,null,null,null,""]
[72,null,null,null,null,null,null,null,null,null,null,null,null,null,null,null,null,null,null,null,null,null,null,null,""]
[73,null,null,null,null,null,null,null,null,null,null,null,null,null,null,null,null,null,null,null,null,null,null,null,""]
[74,null,null,null,null,null,null,null,null,null,null,null,null,null,null,null,null,null,null,null,null,null,null,null,""]
[75,null,null,null,null,null,null,null,null,null,null,null,null,null,null,null,null,null,null,null,null,null,null,null,""]
[76,null,null,null,null,null,null,null,null,null,null,null,null,null,null,null,null,null,null,null,null,null,null,null,""]
[77,null,null,null,null,null,null,null,null,null,null,null,null,null,null,null,null,null,null,null,null,null,null,null,""]
[78,null,null,null,null,null,null,null,null,null,null,null,null,null,null,null,null,null,null,null,null,null,null,null,""]
[79,null,null,null,null,null,null,null,null,null,null,null,null,null,null,null,null,null,null,null,null,null,null,null,""]
[80,null,null,null,null,null,null,null,null,null,null,null,null,null,null,null,null,null,null,null,null,null,null,null,""]
[81,null,null,null,null,null,null,null,null,null,null,null,null,null,null,null,null,null,null,null,null,null,null,null,""]
[82,null,null,null,null,null,null,null,null,null,null,null,null,null,null,null,null,null,null,null,null,null,null,null,""]
[83,null,null,null,null,null,null,null,null,null,null,null,null,null,null,null,null,null,null,null,null,null,null,null,""]
[84,null,null,null,null,null,null,null,null,null,null,null,null,null,null,null,null,null,null,null,null,null,null,null,""]
[85,null,null,null,null,null,null,null,null,null,null,null,null,null,null,null,null,null,null,null,null,null,null,null,""]
[86,null,null,null,null,null,null,null,null,null,null,null,null,null,null,null,null,null,null,null,null,null,null,null,""]
[87,null,null,null,null,null,null,null,null,null,null,null,null,null,null,null,null,null,null,null,null,null,null,null,""]
[88,null,null,null,null,null,null,null,null,null,null,null,null,null,null,null,null,null,null,null,null,null,null,null,""]
[89,null,null,null,null,null,null,null,null,null,null,null,null,null,null,null,null,null,null,null,null,null,null,null,""]
[90,null,null,null,null,null,null,null,null,null,null,null,null,null,null,null,null,null,null,null,null,null,null,null,""]
[91,null,null,null,null,null,null,null,null,null,null,null,null,null,null,null,null,null,null,null,null,null,null,null,""]
[92,null,null,null,null,null,null,null,null,null,null,null,null,null,null,null,null,null,null,null,null,null,null,null,""]
[93,null,null,null,null,null,null,null,null,null,null,null,null,null,null,null,null,null,null,null,null,null,null,null,""]
[94,null,null,null,null,null,null,null,null,null,null,null,null,null,null,null,null,null,null,null,null,null,null,null,""]
[95,null,null,null,null,null,null,null,null,null,null,null,null,null,null,null,null,null,null,null,null,null,null,null,""]
[96,null,null,null,null,null,null,null,null,null,null,null,null,null,null,null,null,null,null,null,null,null,null,null,""]
[97,null,null,null,null,null,null,null,null,null,null,null,null,null,null,null,null,null,null,null,null,null,null,null,""]
[98,null,null,null,null,null,null,null,null,null,null,null,null,null,null,null,null,null,null,null,null,null,null,null,""]
[99,null,null,null,null,null,null,null,null,null,null,null,null,null,null,null,null,null,null,null,null,null,null,null,""]
[100,null,null,null,null,null,null,null,null,null,null,null,null,null,null,null,null,null,null,null,null,null,null,null,""]
[101,null,null,null,null,null,null,null,null,null,null,null,null,null,null,null,null,null,null,null,null,null,null,null,""]
[102,null,null,null,null,null,null,null,null,null,null,null,null,null,null,null,null,null,null,null,null,null,null,null,""]
[103,null,null,null,null,null,null,null,null,null,null,null,null,null,null,null,null,null,null,null,null,null,null,null,""]
[104,null,null,null,null,null,null,null,null,null,null,null,null,null,null,null,null,null,null,null,null,null,null,null,""]
[105,null,null,null,null,null,null,null,null,null,null,null,null,null,null,null,null,null,null,null,null,null,null,null,""]
[106,null,null,null,null,null,null,null,null,null,null,null,null,null,null,null,null,null,null,null,null,null,null,null,""]
[107,null,null,null,null,null,null,null,null,null,null,null,null,null,null,null,null,null,null,null,null,null,null,null,""]
[108,null,null,null,null,null,null,null,null,null,null,null,null,null,null,null,null,null,null,null,null,null,null,null,""]
[109,null,null,null,null,null,null,null,null,null,null,null,null,null,null,null,null,null,null,null,null,null,null,null,""]
[110,null,null,null,null,null,null,null,null,null,null,null,null,null,null,null,null,null,null,null,null,null,null,null,""]
[111,null,null,null,null,null,null,null,null,null,null,null,null,null,null,null,null,null,null,null,null,null,null,null,""]
[112,null,null,null,null,null,null,null,null,null,null,null,null,null,null,null,null,null,null,null,null,null,null,null,""]
[113,null,null,null,null,null,null,null,null,null,null,null,null,null,null,null,null,null,null,null,null,null,null,null,""]
[114,null,null,null,null,null,null,null,null,null,null,null,null,null,null,null,null,null,null,null,null,null,null,null,""]
[115,null,null,null,null,null,null,null,null,null,null,null,null,null,null,null,null,null,null,null,null,null,null,null,""]
[116,null,null,null,null,null,null,null,null,null,null,null,null,null,null,null,null,null,null,null,null,null,null,null,""]
[117,null,null,null,null,null,null,null,null,null,null,null,null,null,null,null,null,null,null,null,null,null,null,null,""]
[118,null,null,null,null,null,null,null,null,null,null,null,null,null,null,null,null,null,null,null,null,null,null,null,""]
[119,null,null,null,null,null,null,null,null,null,null,null,null,null,null,null,null,null,null,null,null,null,null,null,""]
[120,null,null,null,null,null,null,null,null,null,null,null,null,null,null,null,null,null,null,null,null,null,null,null,""]
[121,null,null,null,null,null,null,null,null,null,null,null,null,null,null,null,null,null,null,null,null,null,null,null,""]
[122,null,null,null,null,null,null,null,null,null,null,null,null,null,null,null,null,null,null,null,null,null,null,null,""]
[123,null,null,null,null,null,null,null,null,null,null,null,null,null,null,null,null,null,null,null,null,null,null,null,""]
[124,null,null,null,null,null,null,null,null,null,null,null,null,null,null,null,null,null,null,null,null,null,null,null,""]
[125,null,null,null,null,null,null,null,null,null,null,null,null,null,null,null,null,null,null,null,null,null,null,null,""]
[126,null,null,null,null,null,null,null,null,null,null,null,null,null,null,null,null,null,null,null,null,null,null,null,""]
[127,null,null,null,null,null,null,null,null,null,null,null,null,null,null,null,null,null,null,null,null,null,null,null,""]
[128,null,null,null,null,null,null,null,null,null,null,null,null,null,null,null,null,null,null,null,null,null,null,null,""]
[129,null,null,null,null,null,null,null,null,null,null,null,null,null,null,null,null,null,null,null,null,null,null,null,""]
[130,null,null,null,null,null,null,null,null,null,null,null,null,null,null,null,null,null,null,null,null,null,null,null,{"$f":"IF(O160*S160>0,O160*S160,\"\")","v":""}]
[131,null,null,null,null,null,null,null,null,null,null,null,null,null,null,null,null,null,null,null,null,null,null,null,""]
[132,null,null,null,null,null,null,null,null,null,null,null,null,null,null,null,null,null,null,null,null,null,null,null,""]
[133,null,null,null,null,null,null,null,null,null,null,null,null,null,null,null,null,null,null,null,null,null,null,null,""]
[134,null,null,null,null,null,null,null,null,null,null,null,null,null,null,null,null,null,null,null,null,null,null,null,""]
[135,null,null,null,null,null,null,null,null,null,null,null,null,null,null,null,null,null,null,null,null,null,null,null,""]
[136,null,null,null,null,null,null,null,null,null,null,null,null,null,null,null,null,null,null,null,null,null,null,null,""]
[137,null,null,null,null,null,null,null,null,null,null,null,null,null,null,null,null,null,null,null,null,null,null,null,""]
[138,null,null,null,null,null,null,null,null,null,null,null,null,null,null,null,null,null,null,null,null,null,null,null,""]
[139,null,null,null,null,null,null,null,null,null,null,null,null,null,null,null,null,null,null,null,null,null,null,null,""]
[140,null,null,null,null,null,null,null,null,null,null,null,null,null,null,null,null,null,null,null,null,null,null,null,""]
[141,null,null,null,null,null,null,null,null,null,null,null,null,null,null,null,null,null,null,null,null,null,null,null,""]
[142,null,null,null,null,null,null,null,null,null,null,null,null,null,null,null,null,null,null,null,null,null,null,null,""]
[143,null,null,null,null,null,null,null,null,null,null,null,null,null,null,null,null,null,null,null,null,null,null,null,""]
[144,null,null,null,null,null,null,null,null,null,null,null,null,null,null,null,null,null,null,null,null,null,null,null,""]
[145,null,null,null,null,null,null,null,null,null,null,null,null,null,null,null,null,null,null,null,null,null,null,null,""]
[146,null,null,null,null,null,null,null,null,null,null,null,null,null,null,null,null,null,null,null,null,null,null,null,""]
[147,null,null,null,null,null,null,null,null,null,null,null,null,null,null,null,null,null,null,null,null,null,null,null,""]
[148,null,null,null,null,null,null,null,null,null,null,null,null,null,null,null,null,null,null,null,null,null,null,null,""]
[149,null,null,null,null,null,null,null,null,null,null,null,null,null,null,null,null,null,null,null,null,null,null,null,""]
[150,null,null,null,null,null,null,null,null,null,null,null,null,null,null,null,null,null,null,null,null,null,null,null,""]
[151,null,null,null,null,null,null,null,null,null,null,null,null,null,null,null,null,null,null,null,null,null,null,null,""]
[152,null,null,null,null,null,null,null,null,null,null,null,null,null,null,null,null,null,null,null,null,null,null,null,""]
[153,null,null,null,null,null,null,null,null,null,null,null,null,null,null,null,null,null,null,null,null,null,null,null,""]
[154,null,null,null,null,null,null,null,null,null,null,null,null,null,null,null,null,null,null,null,null,null,null,null,""]
[155,null,null,null,null,null,null,null,null,null,null,null,null,null,null,null,null,null,null,null,null,null,null,null,""]
[156,null,null,null,null,null,null,null,null,null,null,null,null,null,null,null,null,null,null,null,null,null,null,null,""]
[157,null,null,null,null,null,null,null,null,null,null,null,null,null,null,null,null,null,null,null,null,null,null,null,""]
[158,null,null,null,null,null,null,null,null,null,null,null,null,null,null,null,null,null,null,null,null,null,null,null,""]
[159,null,null,null,null,null,null,null,null,null,null,null,null,null,null,null,null,null,null,null,null,null,null,null,""]
[160,null,null,null,null,null,null,null,null,null,null,null,null,null,null,null,null,null,null,null,null,null,null,null,""]
[161,null,null,null,null,null,null,null,null,null,null,null,null,null,null,null,null,null,null,null,null,null,null,null,""]
[162,null,null,null,null,null,null,null,null,null,null,null,null,null,null,null,null,null,null,null,null,null,null,null,""]
[163,null,null,null,null,null,null,null,null,null,null,null,null,null,null,null,null,null,null,null,null,null,null,null,""]
[164,null,null,null,null,null,null,null,null,null,null,null,null,null,null,null,null,null,null,null,null,null,null,null,""]
[165,null,null,null,null,null,null,null,null,null,null,null,null,null,null,null,null,null,null,null,null,null,null,null,""]
[166,null,null,null,null,null,null,null,null,null,null,null,null,null,null,null,null,null,null,null,null,null,null,null,""]
[167,null,null,null,null,null,null,null,null,null,null,null,null,null,null,null,null,null,null,null,null,null,null,null,""]
[168,null,null,null,null,null,null,null,null,null,null,null,null,null,null,null,null,null,null,null,null,null,null,null,""]
[169,null,null,null,null,null,null,null,null,null,null,null,null,null,null,null,null,null,null,null,null,null,null,null,""]
[170,null,null,null,null,null,null,null,null,null,null,null,null,null,null,null,null,null,null,null,null,null,null,null,""]
[171,null,null,null,null,null,null,null,null,null,null,null,null,null,null,null,null,null,null,null,null,null,null,null,""]
[172,null,null,null,null,null,null,null,null,null,null,null,null,null,null,null,null,null,null,null,null,null,null,null,""]
[173,null,null,null,null,null,null,null,null,null,null,null,null,null,null,null,null,null,null,null,null,null,null,null,""]
[174,null,null,null,null,null,null,null,null,null,null,null,null,null,null,null,null,null,null,null,null,null,null,null,""]
[175,null,null,null,null,null,null,null,null,null,null,null,null,null,null,null,null,null,null,null,null,null,null,null,""]
[176,null,null,null,null,null,null,null,null,null,null,null,null,null,null,null,null,null,null,null,null,null,null,null,""]
[177,null,null,null,null,null,null,null,null,null,null,null,null,null,null,null,null,null,null,null,null,null,null,null,""]
[178,null,null,null,null,null,null,null,null,null,null,null,null,null,null,null,null,null,null,null,null,null,null,null,""]
[179,null,null,null,null,null,null,null,null,null,null,null,null,null,null,null,null,null,null,null,null,null,null,null,""]
[180,null,null,null,null,null,null,null,null,null,null,null,null,null,null,null,null,null,null,null,null,null,null,null,""]
[181,null,null,null,null,null,null,null,null,null,null,null,null,null,null,null,null,null,null,null,null,null,null,null,""]
[182,null,null,null,null,null,null,null,null,null,null,null,null,null,null,null,null,null,null,null,null,null,null,null,""]
[183,null,null,null,null,null,null,null,null,null,null,null,null,null,null,null,null,null,null,null,null,null,null,null,""]
[184,null,null,null,null,null,null,null,null,null,null,null,null,null,null,null,null,null,null,null,null,null,null,null,""]
[185,null,null,null,null,null,null,null,null,null,null,null,null,null,null,null,null,null,null,null,null,null,null,null,""]
[186,null,null,null,null,null,null,null,null,null,null,null,null,null,null,null,null,null,null,null,null,null,null,null,""]
[187,null,null,null,null,null,null,null,null,null,null,null,null,null,null,null,null,null,null,null,null,null,null,null,""]
[188,null,null,null,null,null,null,null,null,null,null,null,null,null,null,null,null,null,null,null,null,null,null,null,""]
[189,null,null,null,null,null,null,null,null,null,null,null,null,null,null,null,null,null,null,null,null,null,null,null,""]
[190,null,null,null,null,null,null,null,null,null,null,null,null,null,null,null,null,null,null,null,null,null,null,null,""]
[191,null,null,null,null,null,null,null,null,null,null,null,null,null,null,null,null,null,null,null,null,null,null,null,""]
[192,null,null,null,null,null,null,null,null,null,null,null,null,null,null,null,null,null,null,null,null,null,null,null,""]
[193,null,null,null,null,null,null,null,null,null,null,null,null,null,null,null,null,null,null,null,null,null,null,null,""]
[194,null,null,null,null,null,null,null,null,null,null,null,null,null,null,null,null,null,null,null,null,null,null,null,{"$f":"IF(O224*S224>0,O224*S224,\"\")","v":""}]
[195,null,null,null,null,null,null,null,null,null,null,null,null,null,null,null,null,null,null,null,null,null,null,null,""]
[196,null,null,null,null,null,null,null,null,null,null,null,null,null,null,null,null,null,null,null,null,null,null,null,""]
[197,null,null,null,null,null,null,null,null,null,null,null,null,null,null,null,null,null,null,null,null,null,null,null,""]
[198,null,null,null,null,null,null,null,null,null,null,null,null,null,null,null,null,null,null,null,null,null,null,null,""]
[199,null,null,null,null,null,null,null,null,null,null,null,null,null,null,null,null,null,null,null,null,null,null,null,""]
[200,null,null,null,null,null,null,null,null,null,null,null,null,null,null,null,null,null,null,null,null,null,null,null,""]
[201,null,null,null,null,null,null,null,null,null,null,null,null,null,null,null,null,null,null,null,null,null,null,null,""]
[202,null,null,null,null,null,null,null,null,null,null,null,null,null,null,null,null,null,null,null,null,null,null,null,""]
[203,null,null,null,null,null,null,null,null,null,null,null,null,null,null,null,null,null,null,null,null,null,null,null,""]
[204,null,null,null,null,null,null,null,null,null,null,null,null,null,null,null,null,null,null,null,null,null,null,null,""]
[205,null,null,null,null,null,null,null,null,null,null,null,null,null,null,null,null,null,null,null,null,null,null,null,""]
[206,null,null,null,null,null,null,null,null,null,null,null,null,null,null,null,null,null,null,null,null,null,null,null,""]
[207,null,null,null,null,null,null,null,null,null,null,null,null,null,null,null,null,null,null,null,null,null,null,null,""]
[208,null,null,null,null,null,null,null,null,null,null,null,null,null,null,null,null,null,null,null,null,null,null,null,""]
[209,null,null,null,null,null,null,null,null,null,null,null,null,null,null,null,null,null,null,null,null,null,null,null,""]
[210,null,null,null,null,null,null,null,null,null,null,null,null,null,null,null,null,null,null,null,null,null,null,null,""]
[211,null,null,null,null,null,null,null,null,null,null,null,null,null,null,null,null,null,null,null,null,null,null,null,""]
[212,null,null,null,null,null,null,null,null,null,null,null,null,null,null,null,null,null,null,null,null,null,null,null,""]
[213,null,null,null,null,null,null,null,null,null,null,null,null,null,null,null,null,null,null,null,null,null,null,null,""]
[214,null,null,null,null,null,null,null,null,null,null,null,null,null,null,null,null,null,null,null,null,null,null,null,""]
[215,null,null,null,null,null,null,null,null,null,null,null,null,null,null,null,null,null,null,null,null,null,null,null,""]
[216,null,null,null,null,null,null,null,null,null,null,null,null,null,null,null,null,null,null,null,null,null,null,null,""]
[217,null,null,null,null,null,null,null,null,null,null,null,null,null,null,null,null,null,null,null,null,null,null,null,""]
[218,null,null,null,null,null,null,null,null,null,null,null,null,null,null,null,null,null,null,null,null,null,null,null,""]
[219,null,null,null,null,null,null,null,null,null,null,null,null,null,null,null,null,null,null,null,null,null,null,null,""]
[220,null,null,null,null,null,null,null,null,null,null,null,null,null,null,null,null,null,null,null,null,null,null,null,""]
[221,null,null,null,null,null,null,null,null,null,null,null,null,null,null,null,null,null,null,null,null,null,null,null,""]
[222,null,null,null,null,null,null,null,null,null,null,null,null,null,null,null,null,null,null,null,null,null,null,null,""]
[223,null,null,null,null,null,null,null,null,null,null,null,null,null,null,null,null,null,null,null,null,null,null,null,""]
[224,null,null,null,null,null,null,null,null,null,null,null,null,null,null,null,null,null,null,null,null,null,null,null,""]
[225,null,null,null,null,null,null,null,null,null,null,null,null,null,null,null,null,null,null,null,null,null,null,null,""]
[226,null,null,null,null,null,null,null,null,null,null,null,null,null,null,null,null,null,null,null,null,null,null,null,""]
[227,null,null,null,null,null,null,null,null,null,null,null,null,null,null,null,null,null,null,null,null,null,null,null,""]
[228,null,null,null,null,null,null,null,null,null,null,null,null,null,null,null,null,null,null,null,null,null,null,null,""]
[229,null,null,null,null,null,null,null,null,null,null,null,null,null,null,null,null,null,null,null,null,null,null,null,""]
[230,null,null,null,null,null,null,null,null,null,null,null,null,null,null,null,null,null,null,null,null,null,null,null,""]
[231,null,null,null,null,null,null,null,null,null,null,null,null,null,null,null,null,null,null,null,null,null,null,null,""]
[232,null,null,null,null,null,null,null,null,null,null,null,null,null,null,null,null,null,null,null,null,null,null,null,""]
[233,null,null,null,null,null,null,null,null,null,null,null,null,null,null,null,null,null,null,null,null,null,null,null,""]
[234,null,null,null,null,null,null,null,null,null,null,null,null,null,null,null,null,null,null,null,null,null,null,null,""]
[235,null,null,null,null,null,null,null,null,null,null,null,null,null,null,null,null,null,null,null,null,null,null,null,""]
[236,null,null,null,null,null,null,null,null,null,null,null,null,null,null,null,null,null,null,null,null,null,null,null,""]
[237,null,null,null,null,null,null,null,null,null,null,null,null,null,null,null,null,null,null,null,null,null,null,null,""]
[238,null,null,null,null,null,null,null,null,null,null,null,null,null,null,null,null,null,null,null,null,null,null,null,""]
[239,null,null,null,null,null,null,null,null,null,null,null,null,null,null,null,null,null,null,null,null,null,null,null,""]
[240,null,null,null,null,null,null,null,null,null,null,null,null,null,null,null,null,null,null,null,null,null,null,null,""]
[241,null,null,null,null,null,null,null,null,null,null,null,null,null,null,null,null,null,null,null,null,null,null,null,""]
[242,null,null,null,null,null,null,null,null,null,null,null,null,null,null,null,null,null,null,null,null,null,null,null,""]
[243,null,null,null,null,null,null,null,null,null,null,null,null,null,null,null,null,null,null,null,null,null,null,null,""]
[244,null,null,null,null,null,null,null,null,null,null,null,null,null,null,null,null,null,null,null,null,null,null,null,""]
[245,null,null,null,null,null,null,null,null,null,null,null,null,null,null,null,null,null,null,null,null,null,null,null,""]
[246,null,null,null,null,null,null,null,null,null,null,null,null,null,null,null,null,null,null,null,null,null,null,null,""]
[247,null,null,null,null,null,null,null,null,null,null,null,null,null,null,null,null,null,null,null,null,null,null,null,""]
[248,null,null,null,null,null,null,null,null,null,null,null,null,null,null,null,null,null,null,null,null,null,null,null,""]
[249,null,null,null,null,null,null,null,null,null,null,null,null,null,null,null,null,null,null,null,null,null,null,null,""]
[250,null,null,null,null,null,null,null,null,null,null,null,null,null,null,null,null,null,null,null,null,null,null,null,""]
[251,null,null,null,null,null,null,null,null,null,null,null,null,null,null,null,null,null,null,null,null,null,null,null,""]
[252,null,null,null,null,null,null,null,null,null,null,null,null,null,null,null,null,null,null,null,null,null,null,null,""]
[253,null,null,null,null,null,null,null,null,null,null,null,null,null,null,null,null,null,null,null,null,null,null,null,""]
[254,null,null,null,null,null,null,null,null,null,null,null,null,null,null,null,null,null,null,null,null,null,null,null,""]
[255,null,null,null,null,null,null,null,null,null,null,null,null,null,null,null,null,null,null,null,null,null,null,null,""]
[256,null,null,null,null,null,null,null,null,null,null,null,null,null,null,null,null,null,null,null,null,null,null,null,""]
[257,null,null,null,null,null,null,null,null,null,null,null,null,null,null,null,null,null,null,null,null,null,null,null,""]
[258,null,null,null,null,null,null,null,null,null,null,null,null,null,null,null,null,null,null,null,null,null,null,null,{"$f":"IF(O288*S288>0,O288*S288,\"\")","v":""}]
[259,null,null,null,null,null,null,null,null,null,null,null,null,null,null,null,null,null,null,null,null,null,null,null,""]
[260,null,null,null,null,null,null,null,null,null,null,null,null,null,null,null,null,null,null,null,null,null,null,null,""]
[261,null,null,null,null,null,null,null,null,null,null,null,null,null,null,null,null,null,null,null,null,null,null,null,""]
[262,null,null,null,null,null,null,null,null,null,null,null,null,null,null,null,null,null,null,null,null,null,null,null,""]
[263,null,null,null,null,null,null,null,null,null,null,null,null,null,null,null,null,null,null,null,null,null,null,null,""]
[264,null,null,null,null,null,null,null,null,null,null,null,null,null,null,null,null,null,null,null,null,null,null,null,""]
[265,null,null,null,null,null,null,null,null,null,null,null,null,null,null,null,null,null,null,null,null,null,null,null,""]
[266,null,null,null,null,null,null,null,null,null,null,null,null,null,null,null,null,null,null,null,null,null,null,null,""]
[267,null,null,null,null,null,null,null,null,null,null,null,null,null,null,null,null,null,null,null,null,null,null,null,""]
[268,null,null,null,null,null,null,null,null,null,null,null,null,null,null,null,null,null,null,null,null,null,null,null,""]
[269,null,null,null,null,null,null,null,null,null,null,null,null,null,null,null,null,null,null,null,null,null,null,null,""]
[270,null,null,null,null,null,null,null,null,null,null,null,null,null,null,null,null,null,null,null,null,null,null,null,""]
[271,null,null,null,null,null,null,null,null,null,null,null,null,null,null,null,null,null,null,null,null,null,null,null,""]
[272,null,null,null,null,null,null,null,null,null,null,null,null,null,null,null,null,null,null,null,null,null,null,null,""]
[273,null,null,null,null,null,null,null,null,null,null,null,null,null,null,null,null,null,null,null,null,null,null,null,""]
[274,null,null,null,null,null,null,null,null,null,null,null,null,null,null,null,null,null,null,null,null,null,null,null,""]
[275,null,null,null,null,null,null,null,null,null,null,null,null,null,null,null,null,null,null,null,null,null,null,null,""]
[276,null,null,null,null,null,null,null,null,null,null,null,null,null,null,null,null,null,null,null,null,null,null,null,""]
[277,null,null,null,null,null,null,null,null,null,null,null,null,null,null,null,null,null,null,null,null,null,null,null,""]
[278,null,null,null,null,null,null,null,null,null,null,null,null,null,null,null,null,null,null,null,null,null,null,null,""]
[279,null,null,null,null,null,null,null,null,null,null,null,null,null,null,null,null,null,null,null,null,null,null,null,""]
[280,null,null,null,null,null,null,null,null,null,null,null,null,null,null,null,null,null,null,null,null,null,null,null,""]
[281,null,null,null,null,null,null,null,null,null,null,null,null,null,null,null,null,null,null,null,null,null,null,null,""]
[282,null,null,null,null,null,null,null,null,null,null,null,null,null,null,null,null,null,null,null,null,null,null,null,""]
[283,null,null,null,null,null,null,null,null,null,null,null,null,null,null,null,null,null,null,null,null,null,null,null,""]
[284,null,null,null,null,null,null,null,null,null,null,null,null,null,null,null,null,null,null,null,null,null,null,null,""]
[285,null,null,null,null,null,null,null,null,null,null,null,null,null,null,null,null,null,null,null,null,null,null,null,""]
[286,null,null,null,null,null,null,null,null,null,null,null,null,null,null,null,null,null,null,null,null,null,null,null,""]
[287,null,null,null,null,null,null,null,null,null,null,null,null,null,null,null,null,null,null,null,null,null,null,null,""]
[288,null,null,null,null,null,null,null,null,null,null,null,null,null,null,null,null,null,null,null,null,null,null,null,""]
[289,null,null,null,null,null,null,null,null,null,null,null,null,null,null,null,null,null,null,null,null,null,null,null,""]
[290,null,null,null,null,null,null,null,null,null,null,null,null,null,null,null,null,null,null,null,null,null,null,null,""]
[291,null,null,null,null,null,null,null,null,null,null,null,null,null,null,null,null,null,null,null,null,null,null,null,""]
[292,null,null,null,null,null,null,null,null,null,null,null,null,null,null,null,null,null,null,null,null,null,null,null,""]
[293,null,null,null,null,null,null,null,null,null,null,null,null,null,null,null,null,null,null,null,null,null,null,null,""]
[294,null,null,null,null,null,null,null,null,null,null,null,null,null,null,null,null,null,null,null,null,null,null,null,""]
[295,null,null,null,null,null,null,null,null,null,null,null,null,null,null,null,null,null,null,null,null,null,null,null,""]
[296,null,null,null,null,null,null,null,null,null,null,null,null,null,null,null,null,null,null,null,null,null,null,null,""]
[297,null,null,null,null,null,null,null,null,null,null,null,null,null,null,null,null,null,null,null,null,null,null,null,""]
[298,null,null,null,null,null,null,null,null,null,null,null,null,null,null,null,null,null,null,null,null,null,null,null,""]
[299,null,null,null,null,null,null,null,null,null,null,null,null,null,null,null,null,null,null,null,null,null,null,null,""]
[300,null,null,null,null,null,null,null,null,null,null,null,null,null,null,null,null,null,null,null,null,null,null,null,""]
[301,null,null,null,null,null,null,null,null,null,null,null,null,null,null,null,null,null,null,null,null,null,null,null,""]
[302,null,null,null,null,null,null,null,null,null,null,null,null,null,null,null,null,null,null,null,null,null,null,null,""]
[303,null,null,null,null,null,null,null,null,null,null,null,null,null,null,null,null,null,null,null,null,null,null,null,""]
[304,null,null,null,null,null,null,null,null,null,null,null,null,null,null,null,null,null,null,null,null,null,null,null,""]
[305,null,null,null,null,null,null,null,null,null,null,null,null,null,null,null,null,null,null,null,null,null,null,null,""]
[306,null,null,null,null,null,null,null,null,null,null,null,null,null,null,null,null,null,null,null,null,null,null,null,""]
[307,null,null,null,null,null,null,null,null,null,null,null,null,null,null,null,null,null,null,null,null,null,null,null,""]
[308,null,null,null,null,null,null,null,null,null,null,null,null,null,null,null,null,null,null,null,null,null,null,null,""]
[309,null,null,null,null,null,null,null,null,null,null,null,null,null,null,null,null,null,null,null,null,null,null,null,""]
[310,null,null,null,null,null,null,null,null,null,null,null,null,null,null,null,null,null,null,null,null,null,null,null,""]
[311,null,null,null,null,null,null,null,null,null,null,null,null,null,null,null,null,null,null,null,null,null,null,null,""]
[312,null,null,null,null,null,null,null,null,null,null,null,null,null,null,null,null,null,null,null,null,null,null,null,""]
[313,null,null,null,null,null,null,null,null,null,null,null,null,null,null,null,null,null,null,null,null,null,null,null,""]
[314,null,null,null,null,null,null,null,null,null,null,null,null,null,null,null,null,null,null,null,null,null,null,null,""]
[315,null,null,null,null,null,null,null,null,null,null,null,null,null,null,null,null,null,null,null,null,null,null,null,""]
[316,null,null,null,null,null,null,null,null,null,null,null,null,null,null,null,null,null,null,null,null,null,null,null,""]
[317,null,null,null,null,null,null,null,null,null,null,null,null,null,null,null,null,null,null,null,null,null,null,null,""]
[318,null,null,null,null,null,null,null,null,null,null,null,null,null,null,null,null,null,null,null,null,null,null,null,""]
[319,null,null,null,null,null,null,null,null,null,null,null,null,null,null,null,null,null,null,null,null,null,null,null,""]
[320,null,null,null,null,null,null,null,null,null,null,null,null,null,null,null,null,null,null,null,null,null,null,null,""]
[321,null,null,null,null,null,null,null,null,null,null,null,null,null,null,null,null,null,null,null,null,null,null,null,""]
[322,null,null,null,null,null,null,null,null,null,null,null,null,null,null,null,null,null,null,null,null,null,null,null,{"$f":"IF(O352*S352>0,O352*S352,\"\")","v":""}]
[323,null,null,null,null,null,null,null,null,null,null,null,null,null,null,null,null,null,null,null,null,null,null,null,""]
[324,null,null,null,null,null,null,null,null,null,null,null,null,null,null,null,null,null,null,null,null,null,null,null,""]
[325,null,null,null,null,null,null,null,null,null,null,null,null,null,null,null,null,null,null,null,null,null,null,null,""]
[326,null,null,null,null,null,null,null,null,null,null,null,null,null,null,null,null,null,null,null,null,null,null,null,""]
[327,null,null,null,null,null,null,null,null,null,null,null,null,null,null,null,null,null,null,null,null,null,null,null,""]
[328,null,null,null,null,null,null,null,null,null,null,null,null,null,null,null,null,null,null,null,null,null,null,null,""]
[329,null,null,null,null,null,null,null,null,null,null,null,null,null,null,null,null,null,null,null,null,null,null,null,""]
[330,null,null,null,null,null,null,null,null,null,null,null,null,null,null,null,null,null,null,null,null,null,null,null,""]
[331,null,null,null,null,null,null,null,null,null,null,null,null,null,null,null,null,null,null,null,null,null,null,null,""]
[332,null,null,null,null,null,null,null,null,null,null,null,null,null,null,null,null,null,null,null,null,null,null,null,""]
[333,null,null,null,null,null,null,null,null,null,null,null,null,null,null,null,null,null,null,null,null,null,null,null,""]
[334,null,null,null,null,null,null,null,null,null,null,null,null,null,null,null,null,null,null,null,null,null,null,null,""]
[335,null,null,null,null,null,null,null,null,null,null,null,null,null,null,null,null,null,null,null,null,null,null,null,""]
[336,null,null,null,null,null,null,null,null,null,null,null,null,null,null,null,null,null,null,null,null,null,null,null,""]
[337,null,null,null,null,null,null,null,null,null,null,null,null,null,null,null,null,null,null,null,null,null,null,null,""]
[338,null,null,null,null,null,null,null,null,null,null,null,null,null,null,null,null,null,null,null,null,null,null,null,""]
[339,null,null,null,null,null,null,null,null,null,null,null,null,null,null,null,null,null,null,null,null,null,null,null,""]
[340,null,null,null,null,null,null,null,null,null,null,null,null,null,null,null,null,null,null,null,null,null,null,null,""]
[341,null,null,null,null,null,null,null,null,null,null,null,null,null,null,null,null,null,null,null,null,null,null,null,""]
[342,null,null,null,null,null,null,null,null,null,null,null,null,null,null,null,null,null,null,null,null,null,null,null,""]
[343,null,null,null,null,null,null,null,null,null,null,null,null,null,null,null,null,null,null,null,null,null,null,null,""]
[344,null,null,null,null,null,null,null,null,null,null,null,null,null,null,null,null,null,null,null,null,null,null,null,""]
[345,null,null,null,null,null,null,null,null,null,null,null,null,null,null,null,null,null,null,null,null,null,null,null,""]
[346,null,null,null,null,null,null,null,null,null,null,null,null,null,null,null,null,null,null,null,null,null,null,null,""]
[347,null,null,null,null,null,null,null,null,null,null,null,null,null,null,null,null,null,null,null,null,null,null,null,""]
[348,null,null,null,null,null,null,null,null,null,null,null,null,null,null,null,null,null,null,null,null,null,null,null,""]
[349,null,null,null,null,null,null,null,null,null,null,null,null,null,null,null,null,null,null,null,null,null,null,null,""]
[350,null,null,null,null,null,null,null,null,null,null,null,null,null,null,null,null,null,null,null,null,null,null,null,""]
[351,null,null,null,null,null,null,null,null,null,null,null,null,null,null,null,null,null,null,null,null,null,null,null,""]
[352,null,null,null,null,null,null,null,null,null,null,null,null,null,null,null,null,null,null,null,null,null,null,null,""]
[353,null,null,null,null,null,null,null,null,null,null,null,null,null,null,null,null,null,null,null,null,null,null,null,""]
[354,null,null,null,null,null,null,null,null,null,null,null,null,null,null,null,null,null,null,null,null,null,null,null,""]
[355,null,null,null,null,null,null,null,null,null,null,null,null,null,null,null,null,null,null,null,null,null,null,null,""]
[356,null,null,null,null,null,null,null,null,null,null,null,null,null,null,null,null,null,null,null,null,null,null,null,""]
[357,null,null,null,null,null,null,null,null,null,null,null,null,null,null,null,null,null,null,null,null,null,null,null,""]
[358,null,null,null,null,null,null,null,null,null,null,null,null,null,null,null,null,null,null,null,null,null,null,null,""]
[359,null,null,null,null,null,null,null,null,null,null,null,null,null,null,null,null,null,null,null,null,null,null,null,""]
[360,null,null,null,null,null,null,null,null,null,null,null,null,null,null,null,null,null,null,null,null,null,null,null,""]
[361,null,null,null,null,null,null,null,null,null,null,null,null,null,null,null,null,null,null,null,null,null,null,null,""]
[362,null,null,null,null,null,null,null,null,null,null,null,null,null,null,null,null,null,null,null,null,null,null,null,""]
[363,null,null,null,null,null,null,null,null,null,null,null,null,null,null,null,null,null,null,null,null,null,null,null,""]
[364,null,null,null,null,null,null,null,null,null,null,null,null,null,null,null,null,null,null,null,null,null,null,null,""]
[365,null,null,null,null,null,null,null,null,null,null,null,null,null,null,null,null,null,null,null,null,null,null,null,""]
[366,null,null,null,null,null,null,null,null,null,null,null,null,null,null,null,null,null,null,null,null,null,null,null,""]
[367,null,null,null,null,null,null,null,null,null,null,null,null,null,null,null,null,null,null,null,null,null,null,null,""]
[368,null,null,null,null,null,null,null,null,null,null,null,null,null,null,null,null,null,null,null,null,null,null,null,""]
[369,null,null,null,null,null,null,null,null,null,null,null,null,null,null,null,null,null,null,null,null,null,null,null,""]
[370,null,null,null,null,null,null,null,null,null,null,null,null,null,null,null,null,null,null,null,null,null,null,null,""]
[371,null,null,null,null,null,null,null,null,null,null,null,null,null,null,null,null,null,null,null,null,null,null,null,""]
[372,null,null,null,null,null,null,null,null,null,null,null,null,null,null,null,null,null,null,null,null,null,null,null,""]
[373,null,null,null,null,null,null,null,null,null,null,null,null,null,null,null,null,null,null,null,null,null,null,null,""]
[374,null,null,null,null,null,null,null,null,null,null,null,null,null,null,null,null,null,null,null,null,null,null,null,""]
[375,null,null,null,null,null,null,null,null,null,null,null,null,null,null,null,null,null,null,null,null,null,null,null,""]
[376,null,null,null,null,null,null,null,null,null,null,null,null,null,null,null,null,null,null,null,null,null,null,null,""]
[377,null,null,null,null,null,null,null,null,null,null,null,null,null,null,null,null,null,null,null,null,null,null,null,""]
[378,null,null,null,null,null,null,null,null,null,null,null,null,null,null,null,null,null,null,null,null,null,null,null,""]
[379,null,null,null,null,null,null,null,null,null,null,null,null,null,null,null,null,null,null,null,null,null,null,null,""]
[380,null,null,null,null,null,null,null,null,null,null,null,null,null,null,null,null,null,null,null,null,null,null,null,""]
[381,null,null,null,null,null,null,null,null,null,null,null,null,null,null,null,null,null,null,null,null,null,null,null,""]
[382,null,null,null,null,null,null,null,null,null,null,null,null,null,null,null,null,null,null,null,null,null,null,null,""]
[383,null,null,null,null,null,null,null,null,null,null,null,null,null,null,null,null,null,null,null,null,null,null,null,""]
[384,null,null,null,null,null,null,null,null,null,null,null,null,null,null,null,null,null,null,null,null,null,null,null,""]
[385,null,null,null,null,null,null,null,null,null,null,null,null,null,null,null,null,null,null,null,null,null,null,null,""]
[386,null,null,null,null,null,null,null,null,null,null,null,null,null,null,null,null,null,null,null,null,null,null,null,{"$f":"IF(O416*S416>0,O416*S416,\"\")","v":""}]
[387,null,null,null,null,null,null,null,null,null,null,null,null,null,null,null,null,null,null,null,null,null,null,null,""]
[388,null,null,null,null,null,null,null,null,null,null,null,null,null,null,null,null,null,null,null,null,null,null,null,""]
[389,null,null,null,null,null,null,null,null,null,null,null,null,null,null,null,null,null,null,null,null,null,null,null,""]
[390,null,null,null,null,null,null,null,null,null,null,null,null,null,null,null,null,null,null,null,null,null,null,null,""]
[391,null,null,null,null,null,null,null,null,null,null,null,null,null,null,null,null,null,null,null,null,null,null,null,""]
[392,null,null,null,null,null,null,null,null,null,null,null,null,null,null,null,null,null,null,null,null,null,null,null,""]
[393,null,null,null,null,null,null,null,null,null,null,null,null,null,null,null,null,null,null,null,null,null,null,null,""]
[394,null,null,null,null,null,null,null,null,null,null,null,null,null,null,null,null,null,null,null,null,null,null,null,""]
[395,null,null,null,null,null,null,null,null,null,null,null,null,null,null,null,null,null,null,null,null,null,null,null,""]
[396,null,null,null,null,null,null,null,null,null,null,null,null,null,null,null,null,null,null,null,null,null,null,null,""]
[397,null,null,null,null,null,null,null,null,null,null,null,null,null,null,null,null,null,null,null,null,null,null,null,""]
[398,null,null,null,null,null,null,null,null,null,null,null,null,null,null,null,null,null,null,null,null,null,null,null,""]
[399,null,null,null,null,null,null,null,null,null,null,null,null,null,null,null,null,null,null,null,null,null,null,null,""]
[400,null,null,null,null,null,null,null,null,null,null,null,null,null,null,null,null,null,null,null,null,null,null,null,""]
[401,null,null,null,null,null,null,null,null,null,null,null,null,null,null,null,null,null,null,null,null,null,null,null,""]
[402,null,null,null,null,null,null,null,null,null,null,null,null,null,null,null,null,null,null,null,null,null,null,null,""]
[403,null,null,null,null,null,null,null,null,null,null,null,null,null,null,null,null,null,null,null,null,null,null,null,""]
[404,null,null,null,null,null,null,null,null,null,null,null,null,null,null,null,null,null,null,null,null,null,null,null,""]
[405,null,null,null,null,null,null,null,null,null,null,null,null,null,null,null,null,null,null,null,null,null,null,null,""]
[406,null,null,null,null,null,null,null,null,null,null,null,null,null,null,null,null,null,null,null,null,null,null,null,""]
[407,null,null,null,null,null,null,null,null,null,null,null,null,null,null,null,null,null,null,null,null,null,null,null,""]
[408,null,null,null,null,null,null,null,null,null,null,null,null,null,null,null,null,null,null,null,null,null,null,null,""]
[409,null,null,null,null,null,null,null,null,null,null,null,null,null,null,null,null,null,null,null,null,null,null,null,""]
[410,null,null,null,null,null,null,null,null,null,null,null,null,null,null,null,null,null,null,null,null,null,null,null,""]
[411,null,null,null,null,null,null,null,null,null,null,null,null,null,null,null,null,null,null,null,null,null,null,null,""]
[412,null,null,null,null,null,null,null,null,null,null,null,null,null,null,null,null,null,null,null,null,null,null,null,""]
[413,null,null,null,null,null,null,null,null,null,null,null,null,null,null,null,null,null,null,null,null,null,null,null,""]
[414,null,null,null,null,null,null,null,null,null,null,null,null,null,null,null,null,null,null,null,null,null,null,null,""]
[415,null,null,null,null,null,null,null,null,null,null,null,null,null,null,null,null,null,null,null,null,null,null,null,""]
[416,null,null,null,null,null,null,null,null,null,null,null,null,null,null,null,null,null,null,null,null,null,null,null,""]
[417,null,null,null,null,null,null,null,null,null,null,null,null,null,null,null,null,null,null,null,null,null,null,null,""]
[418,null,null,null,null,null,null,null,null,null,null,null,null,null,null,null,null,null,null,null,null,null,null,null,""]
[419,null,null,null,null,null,null,null,null,null,null,null,null,null,null,null,null,null,null,null,null,null,null,null,""]
[420,null,null,null,null,null,null,null,null,null,null,null,null,null,null,null,null,null,null,null,null,null,null,null,""]
[421,null,null,null,null,null,null,null,null,null,null,null,null,null,null,null,null,null,null,null,null,null,null,null,""]
[422,null,null,null,null,null,null,null,null,null,null,null,null,null,null,null,null,null,null,null,null,null,null,null,""]
[423,null,null,null,null,null,null,null,null,null,null,null,null,null,null,null,null,null,null,null,null,null,null,null,""]
[424,null,null,null,null,null,null,null,null,null,null,null,null,null,null,null,null,null,null,null,null,null,null,null,""]
[425,null,null,null,null,null,null,null,null,null,null,null,null,null,null,null,null,null,null,null,null,null,null,null,""]
[426,null,null,null,null,null,null,null,null,null,null,null,null,null,null,null,null,null,null,null,null,null,null,null,""]
[427,null,null,null,null,null,null,null,null,null,null,null,null,null,null,null,null,null,null,null,null,null,null,null,""]
[428,null,null,null,null,null,null,null,null,null,null,null,null,null,null,null,null,null,null,null,null,null,null,null,""]
[429,null,null,null,null,null,null,null,null,null,null,null,null,null,null,null,null,null,null,null,null,null,null,null,""]
[430,null,null,null,null,null,null,null,null,null,null,null,null,null,null,null,null,null,null,null,null,null,null,null,""]
[431,null,null,null,null,null,null,null,null,null,null,null,null,null,null,null,null,null,null,null,null,null,null,null,""]
[432,null,null,null,null,null,null,null,null,null,null,null,null,null,null,null,null,null,null,null,null,null,null,null,""]
[433,null,null,null,null,null,null,null,null,null,null,null,null,null,null,null,null,null,null,null,null,null,null,null,""]
[434,null,null,null,null,null,null,null,null,null,null,null,null,null,null,null,null,null,null,null,null,null,null,null,""]
[435,null,null,null,null,null,null,null,null,null,null,null,null,null,null,null,null,null,null,null,null,null,null,null,""]
[436,null,null,null,null,null,null,null,null,null,null,null,null,null,null,null,null,null,null,null,null,null,null,null,""]
[437,null,null,null,null,null,null,null,null,null,null,null,null,null,null,null,null,null,null,null,null,null,null,null,""]
[438,null,null,null,null,null,null,null,null,null,null,null,null,null,null,null,null,null,null,null,null,null,null,null,""]
[439,null,null,null,null,null,null,null,null,null,null,null,null,null,null,null,null,null,null,null,null,null,null,null,""]
[440,null,null,null,null,null,null,null,null,null,null,null,null,null,null,null,null,null,null,null,null,null,null,null,""]
[441,null,null,null,null,null,null,null,null,null,null,null,null,null,null,null,null,null,null,null,null,null,null,null,""]
[442,null,null,null,null,null,null,null,null,null,null,null,null,null,null,null,null,null,null,null,null,null,null,null,""]
[443,null,null,null,null,null,null,null,null,null,null,null,null,null,null,null,null,null,null,null,null,null,null,null,""]
[444,null,null,null,null,null,null,null,null,null,null,null,null,null,null,null,null,null,null,null,null,null,null,null,""]
[445,null,null,null,null,null,null,null,null,null,null,null,null,null,null,null,null,null,null,null,null,null,null,null,""]
[446,null,null,null,null,null,null,null,null,null,null,null,null,null,null,null,null,null,null,null,null,null,null,null,""]
[447,null,null,null,null,null,null,null,null,null,null,null,null,null,null,null,null,null,null,null,null,null,null,null,""]
[448,null,null,null,null,null,null,null,null,null,null,null,null,null,null,null,null,null,null,null,null,null,null,null,""]
[449,null,null,null,null,null,null,null,null,null,null,null,null,null,null,null,null,null,null,null,null,null,null,null,""]
[450,null,null,null,null,null,null,null,null,null,null,null,null,null,null,null,null,null,null,null,null,null,null,null,{"$f":"IF(O480*S480>0,O480*S480,\"\")","v":""}]
[451,null,null,null,null,null,null,null,null,null,null,null,null,null,null,null,null,null,null,null,null,null,null,null,""]
[452,null,null,null,null,null,null,null,null,null,null,null,null,null,null,null,null,null,null,null,null,null,null,null,""]
[453,null,null,null,null,null,null,null,null,null,null,null,null,null,null,null,null,null,null,null,null,null,null,null,""]
[454,null,null,null,null,null,null,null,null,null,null,null,null,null,null,null,null,null,null,null,null,null,null,null,""]
[455,null,null,null,null,null,null,null,null,null,null,null,null,null,null,null,null,null,null,null,null,null,null,null,""]
[456,null,null,null,null,null,null,null,null,null,null,null,null,null,null,null,null,null,null,null,null,null,null,null,""]
[457,null,null,null,null,null,null,null,null,null,null,null,null,null,null,null,null,null,null,null,null,null,null,null,""]
[458,null,null,null,null,null,null,null,null,null,null,null,null,null,null,null,null,null,null,null,null,null,null,null,""]
[459,null,null,null,null,null,null,null,null,null,null,null,null,null,null,null,null,null,null,null,null,null,null,null,""]
[460,null,null,null,null,null,null,null,null,null,null,null,null,null,null,null,null,null,null,null,null,null,null,null,""]
[461,null,null,null,null,null,null,null,null,null,null,null,null,null,null,null,null,null,null,null,null,null,null,null,""]
[462,null,null,null,null,null,null,null,null,null,null,null,null,null,null,null,null,null,null,null,null,null,null,null,""]
[463,null,null,null,null,null,null,null,null,null,null,null,null,null,null,null,null,null,null,null,null,null,null,null,""]
[464,null,null,null,null,null,null,null,null,null,null,null,null,null,null,null,null,null,null,null,null,null,null,null,""]
[465,null,null,null,null,null,null,null,null,null,null,null,null,null,null,null,null,null,null,null,null,null,null,null,""]
[466,null,null,null,null,null,null,null,null,null,null,null,null,null,null,null,null,null,null,null,null,null,null,null,""]
[467,null,null,null,null,null,null,null,null,null,null,null,null,null,null,null,null,null,null,null,null,null,null,null,""]
[468,null,null,null,null,null,null,null,null,null,null,null,null,null,null,null,null,null,null,null,null,null,null,null,""]
[469,null,null,null,null,null,null,null,null,null,null,null,null,null,null,null,null,null,null,null,null,null,null,null,""]
[470,null,null,null,null,null,null,null,null,null,null,null,null,null,null,null,null,null,null,null,null,null,null,null,""]
[471,null,null,null,null,null,null,null,null,null,null,null,null,null,null,null,null,null,null,null,null,null,null,null,""]
[472,null,null,null,null,null,null,null,null,null,null,null,null,null,null,null,null,null,null,null,null,null,null,null,""]
[473,null,null,null,null,null,null,null,null,null,null,null,null,null,null,null,null,null,null,null,null,null,null,null,""]
[474,null,null,null,null,null,null,null,null,null,null,null,null,null,null,null,null,null,null,null,null,null,null,null,""]
[475,null,null,null,null,null,null,null,null,null,null,null,null,null,null,null,null,null,null,null,null,null,null,null,""]
[476,null,null,null,null,null,null,null,null,null,null,null,null,null,null,null,null,null,null,null,null,null,null,null,""]
[477,null,null,null,null,null,null,null,null,null,null,null,null,null,null,null,null,null,null,null,null,null,null,null,""]
[478,null,null,null,null,null,null,null,null,null,null,null,null,null,null,null,null,null,null,null,null,null,null,null,""]
[479,null,null,null,null,null,null,null,null,null,null,null,null,null,null,null,null,null,null,null,null,null,null,null,""]
[480,null,null,null,null,null,null,null,null,null,null,null,null,null,null,null,null,null,null,null,null,null,null,null,""]
[481,null,null,null,null,null,null,null,null,null,null,null,null,null,null,null,null,null,null,null,null,null,null,null,""]
[482,null,null,null,null,null,null,null,null,null,null,null,null,null,null,null,null,null,null,null,null,null,null,null,""]
[483,null,null,null,null,null,null,null,null,null,null,null,null,null,null,null,null,null,null,null,null,null,null,null,""]
[484,null,null,null,null,null,null,null,null,null,null,null,null,null,null,null,null,null,null,null,null,null,null,null,""]
[485,null,null,null,null,null,null,null,null,null,null,null,null,null,null,null,null,null,null,null,null,null,null,null,""]
[486,null,null,null,null,null,null,null,null,null,null,null,null,null,null,null,null,null,null,null,null,null,null,null,""]
[487,null,null,null,null,null,null,null,null,null,null,null,null,null,null,null,null,null,null,null,null,null,null,null,""]
[488,null,null,null,null,null,null,null,null,null,null,null,null,null,null,null,null,null,null,null,null,null,null,null,""]
[489,null,null,null,null,null,null,null,null,null,null,null,null,null,null,null,null,null,null,null,null,null,null,null,""]
[490,null,null,null,null,null,null,null,null,null,null,null,null,null,null,null,null,null,null,null,null,null,null,null,""]
[491,null,null,null,null,null,null,null,null,null,null,null,null,null,null,null,null,null,null,null,null,null,null,null,""]
[492,null,null,null,null,null,null,null,null,null,null,null,null,null,null,null,null,null,null,null,null,null,null,null,""]
[493,null,null,null,null,null,null,null,null,null,null,null,null,null,null,null,null,null,null,null,null,null,null,null,""]
[494,null,null,null,null,null,null,null,null,null,null,null,null,null,null,null,null,null,null,null,null,null,null,null,""]
[495,null,null,null,null,null,null,null,null,null,null,null,null,null,null,null,null,null,null,null,null,null,null,null,""]
[496,null,null,null,null,null,null,null,null,null,null,null,null,null,null,null,null,null,null,null,null,null,null,null,""]
[497,null,null,null,null,null,null,null,null,null,null,null,null,null,null,null,null,null,null,null,null,null,null,null,""]
[498,null,null,null,null,null,null,null,null,null,null,null,null,null,null,null,null,null,null,null,null,null,null,null,""]
[499,null,null,null,null,null,null,null,null,null,null,null,null,null,null,null,null,null,null,null,null,null,null,null,""]
[500,null,null,null,null,null,null,null,null,null,null,null,null,null,null,null,null,null,null,null,null,null,null,null,{"$f":"IF(O530*S530>0,O530*S530,\"\")","v":""}]

{"sheet":"記入方法　【入力シート（自社の内訳書_添付なし】","index":4,"n_rows":97,"n_cols":23,"rows_kept":97,"cut":false,"hidden":false,"merged":[[8,4,8,12],[9,4,9,12],[0,0,0,13],[3,0,3,13],[4,1,4,3],[4,4,4,6],[5,5,5,9],[21,1,21,3],[19,0,19,13],[20,1,20,3],[20,4,20,6],[21,4,21,13],[26,4,26,6],[26,7,26,9],[27,4,27,6],[27,7,27,9],[25,2,25,3],[25,4,25,6],[25,7,25,9],[28,4,28,6],[28,7,28,9],[29,4,29,6],[29,7,29,9],[29,1,30,3],[30,4,30,9],[17,4,17,5],[6,1,6,3],[7,0,8,0],[7,1,8,3],[7,4,7,12],[9,1,9,3],[10,4,10,6],[13,10,13,11],[14,4,14,5],[11,4,11,6],[12,1,12,3],[13,4,13,5],[13,6,13,9],[11,1,11,3],[12,4,12,5],[12,6,12,9],[12,10,12,11],[14,7,14,8],[14,9,14,11],[15,4,15,7],[15,8,15,13]]}
["≪　自社の内訳書を添付せず明細を入力する場合　≫"]
["請求書入力シート【納入業者／一般請求】"]
[]
["取引先情報"]
["①","取引先コード",null,null,"0123456"]
["②","インボイス登録番号",null,null,"T","0000000000000"]
["③","郵便番号",null,null,"321","-","1261"]
["④","住所",null,null,"栃木県日光市今市1525　（住所１）"]
[null,null,null,null,"栃木県日光市今市1525　（住所2）"]
["⑤","社名",null,null,"磯部建設　株式会社"]
["⑥","電話番号",null,null,"0288-22-5111"]
["⑦","FAX",null,null,"0288-22-7355"]
["⑧","振込先情報",null,null,"金融機関名",null,"栃木銀行"]
[null,null,null,null,"本店・支店",null,"今市支店"]
[null,null,null,null,"預金区分",null,"当座","口座番号",null,"0123456"]
[null,null,null,null,"口座名義（カタカナ入力）",null,null,null,"イソベケンセツ（カ"]
["⑨","請求日付",null,null,"20","23","年","10","月",31,"日"]
["⑩","消費税の端数処理",null,null,"切り捨て",null,null,{"$f":"IF(E18=\"\",\"入力必須です\",\"\")","v":""}]
[]
["当社請求先情報"]
["⑪","工事コード",null,null,"CH0750001",null,null,"-","000"]
["⑫","工事名称又は部課名",null,null,"工事名称入力"]
[]
[null,null,null,null,"自社の内訳書を添付する場合"]
[]
[null,null,false,null,"税率別計",null,null,"消費税額"]
[null,"　　①　10% 対象　　"]
[null,"　　②　  8% 対象 　※"]
[null,"  　③　非課税対象　◎",null,null,null,null,null,0]
[null,"合　計 （①+②+③）",null,null,{"$f":"SUM(E27:G29)","v":0},null,null,{"$f":"SUM(H27:J29)","v":0}]
[null,null,null,null,{"$f":"SUM(E30:J30)","v":0}]
[]
[]
[]
[]
[]
[]
[]
[]
[]
[]
[]
[]
[]
[]
[]
[]
[]
[]
[]
[]
[]
[]
[]
[]
[]
[]
[]
[]
[]
[]
[]
[]
[]
[]
[]
[]
[]
[]
[]
[]
[]
[]
[]
[]
[]
[]
[]
[]
[]
[]
[]
[]
[]
[]
[]
[]
[]
[]
[]
[]
[]
[]
[]
[]
[]
[null,null,null,null,null,null,null,null,null,null,null,null,null,null,null,null,null,null,null,null,null,null,{"$f":"IF(SUM(W57:AB96)>0,SUM(W57:AB96),\"\")","v":""}]

{"sheet":"記入方法　【請求書（自社の内訳書_添付なし】","index":5,"n_rows":53,"n_cols":33,"rows_kept":53,"cut":false,"hidden":false,"merged":[[0,0,1,32],[2,0,2,7],[2,8,2,9],[2,18,2,21],[2,22,2,23],[2,24,2,25],[2,27,2,28],[2,30,2,31],[4,15,4,17],[4,18,4,19],[4,21,4,23],[10,0,11,3],[10,4,11,4],[10,5,11,13],[5,15,6,17],[5,18,5,32],[6,18,6,32],[7,15,8,17],[7,18,8,32],[9,15,9,17],[9,18,9,23],[9,24,9,26],[9,27,9,32],[11,15,11,17],[11,18,11,24],[11,25,11,27],[11,28,11,32],[12,22,12,24],[12,25,12,32],[18,4,19,12],[18,13,19,14],[18,16,19,19],[18,20,19,23],[18,24,19,24],[18,25,19,25],[13,0,13,3],[13,4,13,13],[13,15,13,17],[13,18,13,32],[14,0,14,3],[14,4,14,10],[14,12,14,13],[15,0,15,5],[15,6,15,33],[17,0,17,14],[18,0,19,3],[12,0,12,3],[12,15,12,17],[12,18,12,21],[22,16,22,21],[22,22,22,27],[22,28,22,33],[23,8,23,9],[23,10,23,11],[23,16,23,21],[23,22,23,27],[23,28,23,33],[20,0,20,21],[20,22,20,27],[20,28,20,33],[21,8,21,9],[21,10,21,11],[21,16,21,21],[21,22,21,27],[21,28,21,33],[22,8,22,9],[22,10,22,11],[24,16,25,21],[24,22,24,27],[24,28,24,33],[25,22,25,33],[27,0,27,33],[28,0,29,1],[28,2,29,4],[28,5,29,13],[28,14,29,15],[28,16,29,17],[24,8,24,10],[28,18,29,21],[28,22,29,23],[28,24,29,29],[28,30,29,33],[30,0,30,1],[30,2,30,4],[30,5,30,13],[30,14,30,15],[30,16,30,17],[30,18,30,21],[30,22,30,23],[30,24,30,29],[30,30,30,33],[31,0,31,1],[31,2,31,4],[31,5,31,13],[31,14,31,15],[31,16,31,17],[31,18,31,21],[31,22,31,23],[31,24,31,29],[31,30,31,33],[32,0,32,1],[32,2,32,4],[32,5,32,13],[32,14,32,15],[32,16,32,17],[32,18,32,21],[32,22,32,23],[32,24,32,29],[32,30,32,33],[33,0,33,1],[33,2,33,4],[33,5,33,13],[33,14,33,15],[33,16,33,17],[33,18,33,21],[33,22,33,23],[33,24,33,29],[33,30,33,33],[34,22,34,23],[34,24,34,29],[34,30,34,33],[35,0,35,1],[35,2,35,4],[35,5,35,13],[35,14,35,15],[35,16,35,17],[35,18,35,21],[35,22,35,23],[34,0,34,1],[34,2,34,4],[34,5,34,13],[34,14,34,15],[34,16,34,17],[34,18,34,21],[35,24,35,29],[35,30,35,33],[36,0,36,1],[36,2,36,4],[36,5,36,13],[36,14,36,15],[36,16,36,17],[36,18,36,21],[36,22,36,23],[36,24,36,29],[36,30,36,33],[37,0,37,1],[37,2,37,4],[37,5,37,13],[37,14,37,15],[37,16,37,17],[37,18,37,21],[37,22,37,23],[37,24,37,29],[37,30,37,33],[38,22,38,23],[38,24,38,29],[38,30,38,33],[39,0,39,1],[39,2,39,4],[39,5,39,13],[39,14,39,15],[39,16,39,17],[39,18,39,21],[39,22,39,23],[38,0,38,1],[38,2,38,4],[38,5,38,13],[38,14,38,15],[38,16,38,17],[38,18,38,21],[39,24,39,29],[39,30,39,33],[40,0,40,1],[40,2,40,4],[40,5,40,13],[40,14,40,15],[40,16,40,17],[40,18,40,21],[40,22,40,23],[40,24,40,29],[40,30,40,33],[41,0,41,1],[41,2,41,4],[41,5,41,13],[41,14,41,15],[41,16,41,17],[41,18,41,21],[41,22,41,23],[41,24,41,29],[41,30,41,33],[42,22,42,23],[42,24,42,29],[42,30,42,33],[43,0,43,1],[43,2,43,4],[43,5,43,13],[43,14,43,15],[43,16,43,17],[43,18,43,21],[43,22,43,23],[42,0,42,1],[42,2,42,4],[42,5,42,13],[42,14,42,15],[42,16,42,17],[42,18,42,21],[43,24,43,29],[43,30,43,33],[44,0,44,1],[44,2,44,4],[44,5,44,13],[44,14,44,15],[44,16,44,17],[44,18,44,21],[44,22,44,23],[44,24,44,29],[44,30,44,33],[45,0,45,1],[45,2,45,4],[45,5,45,13],[45,14,45,15],[45,16,45,17],[45,18,45,21],[45,22,45,23],[45,24,45,29],[45,30,45,33],[46,22,46,23],[46,24,46,29],[46,30,46,33],[47,0,47,1],[47,2,47,4],[47,5,47,13],[47,14,47,15],[47,16,47,17],[47,18,47,21],[47,22,47,23],[46,0,46,1],[46,2,46,4],[46,5,46,13],[46,14,46,15],[46,16,46,17],[46,18,46,21],[47,24,47,29],[47,30,47,33],[48,0,48,1],[48,2,48,4],[48,5,48,13],[48,14,48,15],[48,16,48,17],[48,18,48,21],[48,22,48,23],[48,24,48,29],[48,30,48,33],[49,0,49,1],[49,2,49,4],[49,5,49,13],[49,14,49,15],[49,16,49,17],[49,18,49,21],[49,22,49,23],[49,24,49,29],[49,30,49,33],[50,22,50,23],[50,24,50,29],[50,30,50,33],[51,0,51,1],[51,2,51,4],[51,5,51,13],[51,14,51,15],[51,16,51,17],[51,18,51,21],[51,22,51,23],[50,0,50,1],[50,2,50,4],[50,5,50,13],[50,14,50,15],[50,16,50,17],[50,18,50,21],[52,30,52,33],[51,24,51,29],[51,30,51,33],[52,0,52,1],[52,2,52,4],[52,5,52,13],[52,14,52,15],[52,16,52,17],[52,18,52,21],[52,22,52,23],[52,24,52,29]]}
["請　求　書　【納入業者／一般請求】"]
[]
["磯部建設株式会社",null,null,null,null,null,null,null,"御中",null,null,null,null,null,null,null,null,null,"請求年月日",null,null,null,20,null,23,null,"年",10,null,"月",31,null,"日"]
[]
[null,null,null,null,null,null,null,null,null,null,null,null,null,null,null,"〒",null,null,321,null,"-",1261]
[null,null,null,null,null,null,null,null,null,null,null,null,null,null,null,"住　所",null,null,"栃木県日光市今市1525　（住所1）"]
[null,null,null,null,null,null,null,null,null,null,null,null,null,null,null,null,null,null,"栃木県日光市今市1525　（住所2）"]
[null,null,null,null,null,null,null,null,null,null,null,null,null,null,null,"社　名",null,null,"磯部建設　株式会社"]
[]
[null,null,null,null,null,null,null,null,null,null,null,null,null,null,null,"電話番号",null,null,"0288-22-5111",null,null,null,null,null,"FAX",null,null,"0288-22-7355"]
["インボイス\n登録番号",null,null,null,"T","0000000000000"]
[null,null,null,null,null,null,null,null,null,null,null,null,null,null,null,"金融機関",null,null,"栃木銀行",null,null,null,null,null,null,"店名",null,null,"今市支店"]
[null,null,null,null,null,null,null,null,null,null,null,null,null,null,null,"預金区分",null,null,"当座",null,null,null,"口座番号",null,null,"0123456"]
["取引先コード",null,null,null,"0123456",null,null,null,null,null,null,null,null,null,null,"口座名義",null,null,"イソベケンセツ（カ"]
["工事コード",null,null,null,"CH0750001",null,null,null,null,null,null,"-","000"]
["工事名称又は部課名",null,null,null,null,null,"工事名称入力"]
[]
["下記の通りご請求申し上げます。"]
["請求金額",null,null,null,{"$f":"W26","v":299792},null,null,null,null,null,null,null,null,"円",null,null,"（内、消費税額",null,null,null,{"$f":"AC25","v":27008},null,null,null,null,"円）"]
[]
[null,null,null,null,null,null,null,null,null,null,null,null,null,null,null,null,null,null,null,null,null,null,"税率別計",null,null,null,null,null,"消費税額"]
[null,"・税率区分について",null,null,null,null,null,null,"空白",null,0.1,null,null,null,null,null,"　①　10% 対象　　",null,null,null,null,null,{"$f":"SUMIF( W31:W53, \"\", Y31:Y53 )","v":260084},null,null,null,null,null,{"$f":"IF(I25=\"切り捨て\",ROUNDDOWN(W22*0.1,0),IF(I25=\"切り上げ\",ROUNDUP(W22*0.1,0),ROUND(W22*0.1,0)))","v":26008}]
[null,null,null,null,null,null,null,null,"※",null,0.08,null,null,null,null,null,"　②　  8% 対象 　※",null,null,null,null,null,{"$f":"SUMIF( W31:W53, \"※\", Y31:Y53 )","v":12500},null,null,null,null,null,{"$f":"IF(I25=\"切り捨て\",ROUNDDOWN(W23*0.08,0),IF(I25=\"切り上げ\",ROUNDUP(W23*0.08,0),ROUND(W23*0.08,0)))","v":1000}]
[null,null,null,null,null,null,null,null,"◎",null,"非課税",null,null,null,null,null,"  ③　非課税対象　◎",null,null,null,null,null,{"$f":"SUMIF( W31:W53, \"◎\", Y31:Y53 )","v":200},null,null,null,null,null,0]
[null,"・消費税の端数処理　　≪",null,null,null,null,null,null,"切り捨て",null,null,"≫",null,null,null,null,"合　計 （①+②+③）",null,null,null,null,null,{"$f":"SUM(W22:AB24)","v":272784},null,null,null,null,null,{"$f":"SUM(AC22:AH24)","v":27008}]
[null,null,null,null,null,null,null,null,null,null,null,null,null,null,null,null,null,null,null,null,null,null,{"$f":"SUM(W25:AH25)","v":299792}]
[]
["【請求金額内訳】"]
["番号",null,"日付",null,null,"取引内容",null,null,null,null,null,null,null,null,"数量",null,"単位",null,"単価",null,null,null,"税率\n区分",null,"金額",null,null,null,null,null,"備考"]
[]
[1,null,"2023-10-01",null,null,null,null,null,null,null,null,null,null,null,1,null,"式",null,250000,null,null,null,null,null,{"$f":"IF(O31*S31>0,O31*S31,\"\")","v":250000}]
[2,null,"2023-10-10",null,null,"切手",null,null,null,null,null,null,null,null,1,null,"枚",null,84,null,null,null,null,null,{"$f":"IF(O32*S32>0,O32*S32,\"\")","v":84}]
[3,null,"2023-10-15",null,null,"ウォーターサーバー",null,null,null,null,null,null,null,null,1,null,"台",null,10000,null,null,null,null,null,10000]
[4,null,"2023-10-15",null,null,"飲料水",null,null,null,null,null,null,null,null,5,null,"本",null,2500,null,null,null,"※",null,12500]
[5,null,"2023-10-31",null,null,"収入印紙",null,null,null,null,null,null,null,null,1,null,"枚",null,200,null,null,null,"◎",null,200]
[6,null,null,null,null,null,null,null,null,null,null,null,null,null,null,null,null,null,null,null,null,null,null,null,""]
[7,null,null,null,null,null,null,null,null,null,null,null,null,null,null,null,null,null,null,null,null,null,null,null,""]
[8,null,null,null,null,null,null,null,null,null,null,null,null,null,null,null,null,null,null,null,null,null,null,null,""]
[9,null,null,null,null,null,null,null,null,null,null,null,null,null,null,null,null,null,null,null,null,null,null,null,""]
[10,null,null,null,null,null,null,null,null,null,null,null,null,null,null,null,null,null,null,null,null,null,null,null,""]
[11,null,null,null,null,null,null,null,null,null,null,null,null,null,null,null,null,null,null,null,null,null,null,null,{"$f":"IF(O41*S41>0,O41*S41,\"\")","v":""}]
[12,null,null,null,null,null,null,null,null,null,null,null,null,null,null,null,null,null,null,null,null,null,null,null,""]
[13,null,null,null,null,null,null,null,null,null,null,null,null,null,null,null,null,null,null,null,null,null,null,null,""]
[14,null,null,null,null,null,null,null,null,null,null,null,null,null,null,null,null,null,null,null,null,null,null,null,""]
[15,null,null,null,null,null,null,null,null,null,null,null,null,null,null,null,null,null,null,null,null,null,null,null,""]
[16,null,null,null,null,null,null,null,null,null,null,null,null,null,null,null,null,null,null,null,null,null,null,null,""]
[17,null,null,null,null,null,null,null,null,null,null,null,null,null,null,null,null,null,null,null,null,null,null,null,""]
[18,null,null,null,null,null,null,null,null,null,null,null,null,null,null,null,null,null,null,null,null,null,null,null,{"$f":"IF(O48*S48>0,O48*S48,\"\")","v":""}]
[19,null,null,null,null,null,null,null,null,null,null,null,null,null,null,null,null,null,null,null,null,null,null,null,""]
[20,null,null,null,null,null,null,null,null,null,null,null,null,null,null,null,null,null,null,null,null,null,null,null,""]
[21,null,null,null,null,null,null,null,null,null,null,null,null,null,null,null,null,null,null,null,null,null,null,null,""]
[22,null,null,null,null,null,null,null,null,null,null,null,null,null,null,null,null,null,null,null,null,null,null,null,""]
[23,null,null,null,null,null,null,null,null,null,null,null,null,null,null,null,null,null,null,null,null,null,null,null,""]

{"sheet":"設定","index":6,"n_rows":3,"n_cols":7,"rows_kept":3,"cut":false,"hidden":true,"merged":[]}
["切り捨て",null,"当座",null,null,"10%",{"$f":"\"　 \"&F1","v":"　 10%"}]
["切り上げ",null,"普通",null,"※","8%",{"$f":"E2&\" \"&F2","v":"※ 8%"}]
["四捨五入",null,null,null,"◎","非課税",{"$f":"E3&\" \" &F3","v":"◎ 非課税"}]